Department Family,Entity,Date of Payment,Expense Type,Expense Area,Supplier,Voluntary & Community Sector,SME Class,Sole Trader,D-U-N-S Number,Transaction number,PSPES Level 2,Narrative,Postal Code,Amount in Sterling,Grant?
Communities & Local Government,DCLG,01/06/2017,Agency Staff,Corporate Services,BROOK STREET UK LTD,,Large,,364940028,5106228806,Contingent Labour,Temporary Admin Support,AL1 4JB,511.70,
Communities & Local Government,DCLG,01/06/2017,Catering,Corporate Services,BOUYGUES E&S FM UK LTD (CATERING),,Large,,,2100274173,Business Support,Consolidated Monthly Catering May 17,SE1 7EU,4.80,
Communities & Local Government,DCLG,01/06/2017,Catering,Corporate Services,BOUYGUES E&S FM UK LTD (CATERING),,Large,,,2100274173,Business Support,Consolidated Monthly Catering May 17,SE1 7EU,295.70,
Communities & Local Government,DCLG,01/06/2017,Catering,Corporate Services,BOUYGUES E&S FM UK LTD (CATERING),,Large,,,2100274174,Business Support,Consolidated Monthly Catering Jan 17,SE1 7EU,4.80,
Communities & Local Government,DCLG,01/06/2017,Catering,Corporate Services,BOUYGUES E&S FM UK LTD (CATERING),,Large,,,2100274175,Business Support,Consolidated Monthly Catering March 17,SE1 7EU,54.60,
Communities & Local Government,DCLG,01/06/2017,Catering,Decentralisation and Local Growth,BOUYGUES E&S FM UK LTD (CATERING),,Large,,,2100274173,Business Support,Consolidated Monthly Catering May 17,SE1 7EU,51.60,
Communities & Local Government,DCLG,01/06/2017,Catering,Decentralisation and Local Growth,BOUYGUES E&S FM UK LTD (CATERING),,Large,,,2100274173,Business Support,Consolidated Monthly Catering May 17,SE1 7EU,19.60,
Communities & Local Government,DCLG,01/06/2017,Catering,Decentralisation and Local Growth,BOUYGUES E&S FM UK LTD (CATERING),,Large,,,2100274174,Business Support,Consolidated Monthly Catering Jan 17,SE1 7EU,21.00,
Communities & Local Government,DCLG,01/06/2017,Catering,Decentralisation and Local Growth,BOUYGUES E&S FM UK LTD (CATERING),,Large,,,2100274174,Business Support,Consolidated Monthly Catering Jan 17,SE1 7EU,35.00,
Communities & Local Government,DCLG,01/06/2017,Catering,Decentralisation and Local Growth,BOUYGUES E&S FM UK LTD (CATERING),,Large,,,2100274175,Business Support,Consolidated Monthly Catering March 17,SE1 7EU,250.10,
Communities & Local Government,DCLG,01/06/2017,Catering,Housing & Planning,BOUYGUES E&S FM UK LTD (CATERING),,Large,,,2100274173,Business Support,Consolidated Monthly Catering May 17,SE1 7EU,60.00,
Communities & Local Government,DCLG,01/06/2017,Catering,Housing & Planning,BOUYGUES E&S FM UK LTD (CATERING),,Large,,,2100274174,Business Support,Consolidated Monthly Catering Jan 17,SE1 7EU,184.40,
Communities & Local Government,DCLG,01/06/2017,Catering,Housing & Planning,BOUYGUES E&S FM UK LTD (CATERING),,Large,,,2100274175,Business Support,Consolidated Monthly Catering March 17,SE1 7EU,19.05,
Communities & Local Government,DCLG,01/06/2017,Catering,Housing & Planning,BOUYGUES E&S FM UK LTD (CATERING),,Large,,,2100274175,Business Support,Consolidated Monthly Catering March 17,SE1 7EU,33.30,
Communities & Local Government,DCLG,01/06/2017,Catering,Local Government & Public Services,BOUYGUES E&S FM UK LTD (CATERING),,Large,,,2100274173,Business Support,Consolidated Monthly Catering May 17,SE1 7EU,67.50,
Communities & Local Government,DCLG,01/06/2017,Catering,Local Government & Public Services,BOUYGUES E&S FM UK LTD (CATERING),,Large,,,2100274174,Business Support,Consolidated Monthly Catering Jan 17,SE1 7EU,92.40,
Communities & Local Government,DCLG,01/06/2017,Catering,Local Government & Public Services,BOUYGUES E&S FM UK LTD (CATERING),,Large,,,2100274175,Business Support,Consolidated Monthly Catering March 17,SE1 7EU,11.00,
Communities & Local Government,DCLG,01/06/2017,Catering,Local Government & Public Services,BOUYGUES E&S FM UK LTD (CATERING),,Large,,,2100274175,Business Support,Consolidated Monthly Catering March 17,SE1 7EU,44.40,
Communities & Local Government,DCLG,01/06/2017,Current (non AEF) Grants to Local Authorities,Local Government & Public Services,ADUR DC,,,,227472891,5000374087,,Transition Grant,BN11 1HA,"12,119.00",Yes
Communities & Local Government,DCLG,01/06/2017,Current (non AEF) Grants to Local Authorities,Local Government & Public Services,ARUN DC,,,,211217668,5000373993,,Transition Grant,BN17 5LF,"13,551.00",Yes
Communities & Local Government,DCLG,01/06/2017,Current (non AEF) Grants to Local Authorities,Local Government & Public Services,ASHFORD BC,,,,229467071,5000373994,,Transition Grant,TN23 1PL,"4,780.00",Yes
Communities & Local Government,DCLG,01/06/2017,Current (non AEF) Grants to Local Authorities,Local Government & Public Services,AYLESBURY VALE DC(HSG),,,,396710709,5000373995,,Transition Grant,HP19 8FF,"13,486.00",Yes
Communities & Local Government,DCLG,01/06/2017,Current (non AEF) Grants to Local Authorities,Local Government & Public Services,BABERGH DC,,,,232618405,5000373996,,Transition Grant,IP7 6SJ,"3,735.00",Yes
Communities & Local Government,DCLG,01/06/2017,Current (non AEF) Grants to Local Authorities,Local Government & Public Services,BASILDON BOROUGH COUNCIL,,,,,5000374089,,Transition Grant,SS14 0DF,"23,000.00",Yes
Communities & Local Government,DCLG,01/06/2017,Current (non AEF) Grants to Local Authorities,Local Government & Public Services,BASINGSTOKE & DEANE BC,,,,228328506,5000374090,,Transition Grant,RG21 2AJ,"5,332.00",Yes
Communities & Local Government,DCLG,01/06/2017,Current (non AEF) Grants to Local Authorities,Local Government & Public Services,BATH & NE SOMERSET DC (HSG),,,,214502499,5000373997,,Transition Grant,BA1 5AW,"155,006.00",Yes
Communities & Local Government,DCLG,01/06/2017,Current (non AEF) Grants to Local Authorities,Local Government & Public Services,BEDFORD UNITARY AUTHORITY,,,,225682160,5000374215,,Transition Grant,MK40 1SJ,"119,310.00",Yes
Communities & Local Government,DCLG,01/06/2017,Current (non AEF) Grants to Local Authorities,Local Government & Public Services,BEDS & LUTON FIRE & RESCUE SERVICE,,Medium,,387821283,5000374202,,Transition Grant,MK42 7NR,"14,099.00",Yes
Communities & Local Government,DCLG,01/06/2017,Current (non AEF) Grants to Local Authorities,Local Government & Public Services,BEXLEY LB (HSG),,,,,5000373998,,Transition Grant,DA8 1TL,"118,891.00",Yes
Communities & Local Government,DCLG,01/06/2017,Current (non AEF) Grants to Local Authorities,Local Government & Public Services,BLABY DC (HSG),,,,,5000373999,,Transition Grant,LE9 5EP,"1,852.00",Yes
Communities & Local Government,DCLG,01/06/2017,Current (non AEF) Grants to Local Authorities,Local Government & Public Services,BOURNEMOUTH DC,,,,,5000374091,,Transition Grant,BH2 6EB,"48,709.00",Yes
Communities & Local Government,DCLG,01/06/2017,Current (non AEF) Grants to Local Authorities,Local Government & Public Services,BRACKNELL FOREST DC,,,,236184867,5000374092,,Transition Grant,RG12 1AQ,"152,290.00",Yes
Communities & Local Government,DCLG,01/06/2017,Current (non AEF) Grants to Local Authorities,Local Government & Public Services,BRAINTREE DC,,,,226941730,5000374000,,Transition Grant,CM7 6HB,"8,776.00",Yes
Communities & Local Government,DCLG,01/06/2017,Current (non AEF) Grants to Local Authorities,Local Government & Public Services,BRENTWOOD BC,,,,227473188,5000374093,,Transition Grant,CM15 8AY,"11,745.00",Yes
Communities & Local Government,DCLG,01/06/2017,Current (non AEF) Grants to Local Authorities,Local Government & Public Services,BRIGHTON & HOVE CITY COUNCIL,,Large,,228455218,5000374094,,Transition Grant,BN3 2LS,"7,878.00",Yes
Communities & Local Government,DCLG,01/06/2017,Current (non AEF) Grants to Local Authorities,Local Government & Public Services,BROMLEY LB,,,,211331954,5000374095,,Transition Grant,BR1 3UH,"341,976.00",Yes
Communities & Local Government,DCLG,01/06/2017,Current (non AEF) Grants to Local Authorities,Local Government & Public Services,BROMSGROVE DC,,,,236654745,5000374001,,Transition Grant,B60 1AA,"19,037.00",Yes
Communities & Local Government,DCLG,01/06/2017,Current (non AEF) Grants to Local Authorities,Local Government & Public Services,BROXTOWE BC,,,,239877640,5000374096,,Transition Grant,NG9 1AB,918.00,Yes
Communities & Local Government,DCLG,01/06/2017,Current (non AEF) Grants to Local Authorities,Local Government & Public Services,BUCKINGHAMSHIRE CC,,,,293750923,5000374097,,Transition Grant,HP20 1UD,"764,394.00",Yes
Communities & Local Government,DCLG,01/06/2017,Current (non AEF) Grants to Local Authorities,Local Government & Public Services,BUCKS & MILTON KEYNES FIRE AUTH,,Public Bodies,,423679463,5000374194,,Transition Grant,HP20 1BD,"18,612.00",Yes
Communities & Local Government,DCLG,01/06/2017,Current (non AEF) Grants to Local Authorities,Local Government & Public Services,BURY MBC,,,,,5000374098,,Transition Grant,BL9 0SW,"4,999.00",Yes
Communities & Local Government,DCLG,01/06/2017,Current (non AEF) Grants to Local Authorities,Local Government & Public Services,CAMBRIDGESHIRE COUNTY CNCL,,,,219047347,5000374100,,Transition Grant,CB3 0AP,"528,354.00",Yes
Communities & Local Government,DCLG,01/06/2017,Current (non AEF) Grants to Local Authorities,Local Government & Public Services,CAMBS & PETERBOROUGH FIRE AUTHORITY,,,,235999737,5000374199,,Transition Grant,PE29 2NA,"12,834.00",Yes
Communities & Local Government,DCLG,01/06/2017,Current (non AEF) Grants to Local Authorities,Local Government & Public Services,CANTERBURY CITY CNCL,,,,,5000374002,,Transition Grant,CT1 1YW,"3,511.00",Yes
Communities & Local Government,DCLG,01/06/2017,Current (non AEF) Grants to Local Authorities,Local Government & Public Services,CARLISLE CITY CNCL,,,,227471059,5000374003,,Transition Grant,CA3 8QG,832.00,Yes
Communities & Local Government,DCLG,01/06/2017,Current (non AEF) Grants to Local Authorities,Local Government & Public Services,CASTLE POINT BC,,Public Bodies,,228217931,5000374101,,Transition Grant,SS7 1TF,"14,386.00",Yes
Communities & Local Government,DCLG,01/06/2017,Current (non AEF) Grants to Local Authorities,Local Government & Public Services,CENTRAL BEDFORDSHIRE COUNCIL,,,,232624882,5000374212,,Transition Grant,SG17 5TQ,"370,954.00",Yes
Communities & Local Government,DCLG,01/06/2017,Current (non AEF) Grants to Local Authorities,Local Government & Public Services,CHELMSFORD BC,,,,,5000374102,,Transition Grant,CM1 1JE,"22,892.00",Yes
Communities & Local Government,DCLG,01/06/2017,Current (non AEF) Grants to Local Authorities,Local Government & Public Services,CHELTENHAM BC,,,,,5000374103,,Transition Grant,GL50 1PW,"12,366.00",Yes
Communities & Local Government,DCLG,01/06/2017,Current (non AEF) Grants to Local Authorities,Local Government & Public Services,CHESHIRE EAST COUNCIL,,Large,,,5000374213,,Transition Grant,CW11 1HZ,"495,675.00",Yes
Communities & Local Government,DCLG,01/06/2017,Current (non AEF) Grants to Local Authorities,Local Government & Public Services,CHESHIRE FIRE AUTHORITY,,,,424872737,5000374198,,Transition Grant,CW7 2FQ,"13,144.00",Yes
Communities & Local Government,DCLG,01/06/2017,Current (non AEF) Grants to Local Authorities,Local Government & Public Services,CHESHIRE WEST & CHESTER UA,,Large,,215584383,5000374214,,Transition Grant,CH1 2NP,"239,381.00",Yes
Communities & Local Government,DCLG,01/06/2017,Current (non AEF) Grants to Local Authorities,Local Government & Public Services,CHICHESTER DC,,,,739800998,5000374004,,Transition Grant,PO19 1TY,"15,499.00",Yes
Communities & Local Government,DCLG,01/06/2017,Current (non AEF) Grants to Local Authorities,Local Government & Public Services,CHILTERN DC (HSG),,,,,5000374005,,Transition Grant,HP6 5AW,"16,691.00",Yes
Communities & Local Government,DCLG,01/06/2017,Current (non AEF) Grants to Local Authorities,Local Government & Public Services,CHORLEY BOROUGH COUNCIL,,,,236415576,5000374104,,Transition Grant,PR7 1DP,"4,486.00",Yes
Communities & Local Government,DCLG,01/06/2017,Current (non AEF) Grants to Local Authorities,Local Government & Public Services,CHRISTCHURCH BC (HSG),,,,227415213,5000374006,,Transition Grant,BH23 1AZ,"8,967.00",Yes
Communities & Local Government,DCLG,01/06/2017,Current (non AEF) Grants to Local Authorities,Local Government & Public Services,CODURHAM&DARLINGTON FIRE & RES AUT,,,,424872851,5000374204,,Transition Grant,DH1 1TW,"1,279.00",Yes
Communities & Local Government,DCLG,01/06/2017,Current (non AEF) Grants to Local Authorities,Local Government & Public Services,COLCHESTER BC,,,,,5000374105,,Transition Grant,CO3 3WG,"14,622.00",Yes
Communities & Local Government,DCLG,01/06/2017,Current (non AEF) Grants to Local Authorities,Local Government & Public Services,COTSWOLD DC,,,,232462085,5000374007,,Transition Grant,GL7 1PX,"7,131.00",Yes
Communities & Local Government,DCLG,01/06/2017,Current (non AEF) Grants to Local Authorities,Local Government & Public Services,CRAVEN DC (HSG),,,,,5000374008,,Transition Grant,BD23 1FJ,"3,522.00",Yes
Communities & Local Government,DCLG,01/06/2017,Current (non AEF) Grants to Local Authorities,Local Government & Public Services,CROYDON LB,,,,212419973,5000374106,,Transition Grant,CR9 3JS,"69,638.00",Yes
Communities & Local Government,DCLG,01/06/2017,Current (non AEF) Grants to Local Authorities,Local Government & Public Services,CUMBRIA COUNTY CNCL,,,,211316542,5000374107,,Transition Grant,CA3 8NA,"148,875.00",Yes
Communities & Local Government,DCLG,01/06/2017,Current (non AEF) Grants to Local Authorities,Local Government & Public Services,DACORUM BC,,,,236448643,5000374108,,Transition Grant,HP1 1DN,"20,877.00",Yes
Communities & Local Government,DCLG,01/06/2017,Current (non AEF) Grants to Local Authorities,Local Government & Public Services,DARTFORD BC,,,,225694942,5000374009,,Transition Grant,DA1 1DR,"3,279.00",Yes
Communities & Local Government,DCLG,01/06/2017,Current (non AEF) Grants to Local Authorities,Local Government & Public Services,DAVENTRY DC,,,,239859333,5000374010,,Transition Grant,NN11 5AF,506.00,Yes
Communities & Local Government,DCLG,01/06/2017,Current (non AEF) Grants to Local Authorities,Local Government & Public Services,DERBYSHIRE COUNTYCOUNCIL,,,,232152967,5000374109,,Transition Grant,DE4 3AG,"187,405.00",Yes
Communities & Local Government,DCLG,01/06/2017,Current (non AEF) Grants to Local Authorities,Local Government & Public Services,DERBYSHIRE DALES DC,,,,,5000374011,,Transition Grant,DE4 3NN,"12,823.00",Yes
Communities & Local Government,DCLG,01/06/2017,Current (non AEF) Grants to Local Authorities,Local Government & Public Services,DERBYSHIRE FIRE AND RESCUE SERVICE,,,,424872935,5000374205,,Transition Grant,DE5 3RS,"6,076.00",Yes
Communities & Local Government,DCLG,01/06/2017,Current (non AEF) Grants to Local Authorities,Local Government & Public Services,DEVON & SOMERSET FIRE & RESCUE SERV,,Large,,424872976,5000374201,,Transition Grant,EX3 0NW,"31,333.00",Yes
Communities & Local Government,DCLG,01/06/2017,Current (non AEF) Grants to Local Authorities,Local Government & Public Services,DEVON COUNTY CNCL,,,,213754018,5000374110,,Transition Grant,EX2 4QJ,"468,406.00",Yes
Communities & Local Government,DCLG,01/06/2017,Current (non AEF) Grants to Local Authorities,Local Government & Public Services,DORSET & WILTSHIRE FIRE & RESCUE AU,,Large,,,5000374217,,Transition Grant,SP1 3NR,"34,989.00",Yes
Communities & Local Government,DCLG,01/06/2017,Current (non AEF) Grants to Local Authorities,Local Government & Public Services,DORSET COUNTY CNCL,,,,225431279,5000374111,,Transition Grant,DT1 1XJ,"491,193.00",Yes
Communities & Local Government,DCLG,01/06/2017,Current (non AEF) Grants to Local Authorities,Local Government & Public Services,EAST DEVON DC,,,,,5000374012,,Transition Grant,EX10 8HL,"10,355.00",Yes
Communities & Local Government,DCLG,01/06/2017,Current (non AEF) Grants to Local Authorities,Local Government & Public Services,EAST DORSET DC,,,,228470456,5000374112,,Transition Grant,BH21 4HN,"13,393.00",Yes
Communities & Local Government,DCLG,01/06/2017,Current (non AEF) Grants to Local Authorities,Local Government & Public Services,EAST HAMPSHIRE DC,,,,,5000374013,,Transition Grant,GU31 4EX,"16,015.00",Yes
Communities & Local Government,DCLG,01/06/2017,Current (non AEF) Grants to Local Authorities,Local Government & Public Services,EAST HERTFORDSHIRE DC,,,,236176954,5000374014,,Transition Grant,SG13 8EQ,"19,980.00",Yes
Communities & Local Government,DCLG,01/06/2017,Current (non AEF) Grants to Local Authorities,Local Government & Public Services,EAST RIDING OF YORKS (HSG),,,,423159987,5000374015,,Transition Grant,HU17 9BA,"126,601.00",Yes
Communities & Local Government,DCLG,01/06/2017,Current (non AEF) Grants to Local Authorities,Local Government & Public Services,EAST STAFFORDSHIRE BC,,,,226778033,5000374016,,Transition Grant,DE14 2EB,"2,466.00",Yes
Communities & Local Government,DCLG,01/06/2017,Current (non AEF) Grants to Local Authorities,Local Government & Public Services,EAST SUSSEX COUNTY CNCL,,,,,5000374113,,Transition Grant,BN7 1SF,"449,359.00",Yes
Communities & Local Government,DCLG,01/06/2017,Current (non AEF) Grants to Local Authorities,Local Government & Public Services,EAST SUSSEX FIRE AUTHORITY,,Large,,,5000374208,,Transition Grant,BN21 1EU,"20,317.00",Yes
Communities & Local Government,DCLG,01/06/2017,Current (non AEF) Grants to Local Authorities,Local Government & Public Services,EASTBOURNE BC,,,,229896428,5000374114,,Transition Grant,BN21 4TW,"5,081.00",Yes
Communities & Local Government,DCLG,01/06/2017,Current (non AEF) Grants to Local Authorities,Local Government & Public Services,EASTLEIGH BOROUGH COUNCIL,,,,232669911,5000374115,,Transition Grant,SO5 9YN,"4,745.00",Yes
Communities & Local Government,DCLG,01/06/2017,Current (non AEF) Grants to Local Authorities,Local Government & Public Services,EDEN DC (HSG),,,,,5000374017,,Transition Grant,CA11 7QF,"3,035.00",Yes
Communities & Local Government,DCLG,01/06/2017,Current (non AEF) Grants to Local Authorities,Local Government & Public Services,ELMBRIDGE BC (HSG),,,,,5000374018,,Transition Grant,KT10 9SD,"31,716.00",Yes
Communities & Local Government,DCLG,01/06/2017,Current (non AEF) Grants to Local Authorities,Local Government & Public Services,EPPING FOREST DC,,,,775876360,5000374116,,Transition Grant,CM16 4BZ,"8,892.00",Yes
Communities & Local Government,DCLG,01/06/2017,Current (non AEF) Grants to Local Authorities,Local Government & Public Services,EPSOM & EWELL BC,,,,225423094,5000374117,,Transition Grant,KT18 5BY,"13,770.00",Yes
Communities & Local Government,DCLG,01/06/2017,Current (non AEF) Grants to Local Authorities,Local Government & Public Services,ESSEX COUNTY CNCL,,,,233572986,5000374118,,Transition Grant,CM1 1JZ,"1,161,977.00",Yes
Communities & Local Government,DCLG,01/06/2017,Current (non AEF) Grants to Local Authorities,Local Government & Public Services,ESSEX FIRE AUTHORITY,,Large,,424873099,5000374195,,Transition Grant,CM8 3HB,"18,175.00",Yes
Communities & Local Government,DCLG,01/06/2017,Current (non AEF) Grants to Local Authorities,Local Government & Public Services,FAREHAM BC,,,,228474144,5000374019,,Transition Grant,PO16 7PU,"12,271.00",Yes
Communities & Local Government,DCLG,01/06/2017,Current (non AEF) Grants to Local Authorities,Local Government & Public Services,FENLAND DC,,,,227476348,5000374020,,Transition Grant,PE15 8NQ,263.00,Yes
Communities & Local Government,DCLG,01/06/2017,Current (non AEF) Grants to Local Authorities,Local Government & Public Services,FYLDE BC,,,,227479912,5000374119,,Transition Grant,FY8 1LW,"9,262.00",Yes
Communities & Local Government,DCLG,01/06/2017,Current (non AEF) Grants to Local Authorities,Local Government & Public Services,GLOUCESTER CITY CNCL,,,,230841392,5000374120,,Transition Grant,GL1 2EQ,"1,672.00",Yes
Communities & Local Government,DCLG,01/06/2017,Current (non AEF) Grants to Local Authorities,Local Government & Public Services,GLOUCESTERSHIRE COUNTY CNCL,,,,211272067,5000374121,,Transition Grant,GL1 2TG,"413,664.00",Yes
Communities & Local Government,DCLG,01/06/2017,Current (non AEF) Grants to Local Authorities,Local Government & Public Services,GOSPORT BOROUGH COUNCIL,,,,239825078,5000374122,,Transition Grant,PO12 1ED,"4,028.00",Yes
Communities & Local Government,DCLG,01/06/2017,Current (non AEF) Grants to Local Authorities,Local Government & Public Services,GRAVESHAM BC,,,,236178612,5000374123,,Transition Grant,DA12 1AU,"1,868.00",Yes
Communities & Local Government,DCLG,01/06/2017,Current (non AEF) Grants to Local Authorities,Local Government & Public Services,GUILDFORD BC,,,,236663720,5000374021,,Transition Grant,GU2 5BB,"16,964.00",Yes
Communities & Local Government,DCLG,01/06/2017,Current (non AEF) Grants to Local Authorities,Local Government & Public Services,HAMPSHIRE COUNTY COUNCIL,,,,211325832,5000374124,,Transition Grant,SO23 8UB,"1,556,242.00",Yes
Communities & Local Government,DCLG,01/06/2017,Current (non AEF) Grants to Local Authorities,Local Government & Public Services,HAMPSHIRE FIRE & RESCUE AUTHORITY,,Large,,,5000374206,,Transition Grant,SO23 8UB,"20,938.00",Yes
Communities & Local Government,DCLG,01/06/2017,Current (non AEF) Grants to Local Authorities,Local Government & Public Services,HARBOROUGH DC (HSG),,,,212935774,5000374022,,Transition Grant,LE16 7AG,"10,712.00",Yes
Communities & Local Government,DCLG,01/06/2017,Current (non AEF) Grants to Local Authorities,Local Government & Public Services,HARLOW DISTRICT COUNCIL,,Large,,239999055,5000374125,,Transition Grant,CM20 1WG,"4,211.00",Yes
Communities & Local Government,DCLG,01/06/2017,Current (non AEF) Grants to Local Authorities,Local Government & Public Services,HARROGATE BC,,,,236660031,5000374023,,Transition Grant,HG1 2SG,"32,182.00",Yes
Communities & Local Government,DCLG,01/06/2017,Current (non AEF) Grants to Local Authorities,Local Government & Public Services,HARROW LB,,,,,5000374126,,Transition Grant,HA1 2UZ,"116,533.00",Yes
Communities & Local Government,DCLG,01/06/2017,Current (non AEF) Grants to Local Authorities,Local Government & Public Services,HART DC,,,,229723895,5000374127,,Transition Grant,GU13 8AE,"18,024.00",Yes
Communities & Local Government,DCLG,01/06/2017,Current (non AEF) Grants to Local Authorities,Local Government & Public Services,HASTINGS BC,,,,,5000374128,,Transition Grant,TN34 3WN,911.00,Yes
Communities & Local Government,DCLG,01/06/2017,Current (non AEF) Grants to Local Authorities,Local Government & Public Services,HAVANT BC,,,,211047543,5000374129,,Transition Grant,PO9 2AX,"8,077.00",Yes
Communities & Local Government,DCLG,01/06/2017,Current (non AEF) Grants to Local Authorities,Local Government & Public Services,HAVERING LB,,,,211209770,5000374130,,Transition Grant,RM1 3BB,"226,662.00",Yes
Communities & Local Government,DCLG,01/06/2017,Current (non AEF) Grants to Local Authorities,Local Government & Public Services,HEREFORD WORCESTER FIRE & RESCUE,,Large,,236425484,5000374203,,Transition Grant,WR5 1JR,"23,724.00",Yes
Communities & Local Government,DCLG,01/06/2017,Current (non AEF) Grants to Local Authorities,Local Government & Public Services,HEREFORDSHIRE COUNCIL,,,,,5000374024,,Transition Grant,HR4 0XH,"96,050.00",Yes
Communities & Local Government,DCLG,01/06/2017,Current (non AEF) Grants to Local Authorities,Local Government & Public Services,HERTFORDSHIRE COUNTY CNCL,,,,210659897,5000374131,,Transition Grant,SG13 8DQ,"1,308,180.00",Yes
Communities & Local Government,DCLG,01/06/2017,Current (non AEF) Grants to Local Authorities,Local Government & Public Services,HERTSMERE BC,,,,237549253,5000374132,,Transition Grant,WD6 1WA,"6,595.00",Yes
Communities & Local Government,DCLG,01/06/2017,Current (non AEF) Grants to Local Authorities,Local Government & Public Services,HIGH PEAK BC,,,,239967771,5000374025,,Transition Grant,SK17 6EL,"5,181.00",Yes
Communities & Local Government,DCLG,01/06/2017,Current (non AEF) Grants to Local Authorities,Local Government & Public Services,HILLINGDON LB,,,,211198585,5000374133,,Transition Grant,UB8 1UW,"85,800.00",Yes
Communities & Local Government,DCLG,01/06/2017,Current (non AEF) Grants to Local Authorities,Local Government & Public Services,HORSHAM DC,,,,229776588,5000374026,,Transition Grant,RH12 1RL,"22,330.00",Yes
Communities & Local Government,DCLG,01/06/2017,Current (non AEF) Grants to Local Authorities,Local Government & Public Services,IPSWICH BC,,,,226861391,5000374134,,Transition Grant,IP1 2DE,"19,894.00",Yes
Communities & Local Government,DCLG,01/06/2017,Current (non AEF) Grants to Local Authorities,Local Government & Public Services,KENT & MEDWAY TOWNS FIRE AUTHORITY,,Large,,423679414,5000374197,,Transition Grant,ME15 6XB,"29,634.00",Yes
Communities & Local Government,DCLG,01/06/2017,Current (non AEF) Grants to Local Authorities,Local Government & Public Services,KENT COUNTY CNCL,,,,211334420,5000374135,,Transition Grant,ME14 1RF,"947,413.00",Yes
Communities & Local Government,DCLG,01/06/2017,Current (non AEF) Grants to Local Authorities,Local Government & Public Services,KETTERING BC,,,,211271796,5000374136,,Transition Grant,NN15 7QX,"8,321.00",Yes
Communities & Local Government,DCLG,01/06/2017,Current (non AEF) Grants to Local Authorities,Local Government & Public Services,KINGSTON UPON THAMES  (HSG),,,,211379941,5000374027,,Transition Grant,KT1 1EU,"214,620.00",Yes
Communities & Local Government,DCLG,01/06/2017,Current (non AEF) Grants to Local Authorities,Local Government & Public Services,LANCASHIRE COUNTY CNCL,,,,233136584,5000374137,,Transition Grant,PR1 8RD,"192,293.00",Yes
Communities & Local Government,DCLG,01/06/2017,Current (non AEF) Grants to Local Authorities,Local Government & Public Services,LEICESTERSHIRE COUNTY CNCL,,,,423679836,5000374138,,Transition Grant,LE3 8RB,"550,947.00",Yes
Communities & Local Government,DCLG,01/06/2017,Current (non AEF) Grants to Local Authorities,Local Government & Public Services,LEWES DC,,,,213090082,5000374028,,Transition Grant,BN7 1AB,"13,941.00",Yes
Communities & Local Government,DCLG,01/06/2017,Current (non AEF) Grants to Local Authorities,Local Government & Public Services,LICHFIELD DC,,,,236780086,5000374139,,Transition Grant,WS13 6YX,"8,625.00",Yes
Communities & Local Government,DCLG,01/06/2017,Current (non AEF) Grants to Local Authorities,Local Government & Public Services,LINCOLNSHIRE COUNTY COUNCIL,,,,,5000374140,,Transition Grant,LN2 1DY,"1,574.00",Yes
Communities & Local Government,DCLG,01/06/2017,Current (non AEF) Grants to Local Authorities,Local Government & Public Services,LONDON BOROUGH OF BARNET,,,,211049507,5000374088,,Transition Grant,NN1 1NP,"237,752.00",Yes
Communities & Local Government,DCLG,01/06/2017,Current (non AEF) Grants to Local Authorities,Local Government & Public Services,MAIDSTONE BC,,Public Bodies,,293004214,5000374029,,Transition Grant,ME15 6JQ,"28,661.00",Yes
Communities & Local Government,DCLG,01/06/2017,Current (non AEF) Grants to Local Authorities,Local Government & Public Services,MALDON DC,,,,424668663,5000374030,,Transition Grant,CM9 7DL,"6,679.00",Yes
Communities & Local Government,DCLG,01/06/2017,Current (non AEF) Grants to Local Authorities,Local Government & Public Services,MALVERN HILLS DC,,,,227470424,5000374141,,Transition Grant,WR14 3AF,"3,775.00",Yes
Communities & Local Government,DCLG,01/06/2017,Current (non AEF) Grants to Local Authorities,Local Government & Public Services,MEDWAY TOWNS D C (HSG),,,,,5000374031,,Transition Grant,ME4 4TR,"57,327.00",Yes
Communities & Local Government,DCLG,01/06/2017,Current (non AEF) Grants to Local Authorities,Local Government & Public Services,MELTON BC,,,,346268340,5000374032,,Transition Grant,LE13 0UL,"4,637.00",Yes
Communities & Local Government,DCLG,01/06/2017,Current (non AEF) Grants to Local Authorities,Local Government & Public Services,MENDIP DISTRICT COUNCIL,,,,,5000374033,,Transition Grant,BA4 5BA,"3,391.00",Yes
Communities & Local Government,DCLG,01/06/2017,Current (non AEF) Grants to Local Authorities,Local Government & Public Services,MERTON LB,,,,,5000374142,,Transition Grant,SM4 5DX,"92,760.00",Yes
Communities & Local Government,DCLG,01/06/2017,Current (non AEF) Grants to Local Authorities,Local Government & Public Services,MID DEVON DC,,,,213241137,5000374034,,Transition Grant,EX16 6PP,"5,253.00",Yes
Communities & Local Government,DCLG,01/06/2017,Current (non AEF) Grants to Local Authorities,Local Government & Public Services,MID SUFFOLK DISTRICK COUNCIL,,,,223387239,5000374035,,Transition Grant,IP6 8DL,"6,547.00",Yes
Communities & Local Government,DCLG,01/06/2017,Current (non AEF) Grants to Local Authorities,Local Government & Public Services,MID SUSSEX DC,,,,236675989,5000374036,,Transition Grant,RH16 1SS,"24,134.00",Yes
Communities & Local Government,DCLG,01/06/2017,Current (non AEF) Grants to Local Authorities,Local Government & Public Services,MILTON KEYNES BC,,,,,5000374143,,Transition Grant,MK9 3WJ,693.00,Yes
Communities & Local Government,DCLG,01/06/2017,Current (non AEF) Grants to Local Authorities,Local Government & Public Services,MOLE VALLEY DC,,,,225385772,5000374037,,Transition Grant,RH4 1SJ,"11,884.00",Yes
Communities & Local Government,DCLG,01/06/2017,Current (non AEF) Grants to Local Authorities,Local Government & Public Services,NEW FOREST DC,,Public Bodies,,,5000374038,,Transition Grant,SO43 7PA,"18,454.00",Yes
Communities & Local Government,DCLG,01/06/2017,Current (non AEF) Grants to Local Authorities,Local Government & Public Services,NORFOLK COUNTY COUNCIL,,,,232602789,5000374144,,Transition Grant,NR1 2DW,"276,237.00",Yes
Communities & Local Government,DCLG,01/06/2017,Current (non AEF) Grants to Local Authorities,Local Government & Public Services,NORTH EAST DERBYSHIRE DC,,,,238879308,5000374145,,Transition Grant,S42 6NG,844.00,Yes
Communities & Local Government,DCLG,01/06/2017,Current (non AEF) Grants to Local Authorities,Local Government & Public Services,NORTH HERTS DC (HOUSING) (HSG),,,,233593917,5000374039,,Transition Grant,SG6 3JF,"23,436.00",Yes
Communities & Local Government,DCLG,01/06/2017,Current (non AEF) Grants to Local Authorities,Local Government & Public Services,NORTH SOMERSET COUNCIL,,Large,,,5000374146,,Transition Grant,BS23 1UJ,"155,092.00",Yes
Communities & Local Government,DCLG,01/06/2017,Current (non AEF) Grants to Local Authorities,Local Government & Public Services,NORTH WARWICKSHIRE BC,,Large,,,5000374040,,Transition Grant,CV9 1DE,"3,503.00",Yes
Communities & Local Government,DCLG,01/06/2017,Current (non AEF) Grants to Local Authorities,Local Government & Public Services,NORTH WEST LEICESTERSHIRE DC,,,,232605782,5000374041,,Transition Grant,LE67 9SH,"4,304.00",Yes
Communities & Local Government,DCLG,01/06/2017,Current (non AEF) Grants to Local Authorities,Local Government & Public Services,NORTH YORKSHIRE CC (DL7 8AL),,,,,5000374147,,Transition Grant,DL7 8AL,"493,634.00",Yes
Communities & Local Government,DCLG,01/06/2017,Current (non AEF) Grants to Local Authorities,Local Government & Public Services,NORTH YORKSHIRE FIRE & RESCUE AUTH,,Large,,423679778,5000374209,,Transition Grant,DL6 2ND,"15,627.00",Yes
Communities & Local Government,DCLG,01/06/2017,Current (non AEF) Grants to Local Authorities,Local Government & Public Services,NORTHAMPTON BOROUGH COUNCIL,,,,228310017,5000374148,,Transition Grant,NN4 4FF,"3,945.00",Yes
Communities & Local Government,DCLG,01/06/2017,Current (non AEF) Grants to Local Authorities,Local Government & Public Services,NORTHAMPTONSHIRE COUNTY COUNCIL,,,,,5000374149,,Transition Grant,CB3 0AP,"283,586.00",Yes
Communities & Local Government,DCLG,01/06/2017,Current (non AEF) Grants to Local Authorities,Local Government & Public Services,NORTHUMBERLAND COUNTY COUNCIL,,,,210308905,5000374211,,Transition Grant,NE61 2EF,"46,266.00",Yes
Communities & Local Government,DCLG,01/06/2017,Current (non AEF) Grants to Local Authorities,Local Government & Public Services,NOTTINGHAMSHIRE COUNTY CNCL,,,,,5000374150,,Transition Grant,NG1 4BU,"330,729.00",Yes
Communities & Local Government,DCLG,01/06/2017,Current (non AEF) Grants to Local Authorities,Local Government & Public Services,NUNEATON & BEDWORTH BC,,Large,,,5000374151,,Transition Grant,CV11 5AA,"3,558.00",Yes
Communities & Local Government,DCLG,01/06/2017,Current (non AEF) Grants to Local Authorities,Local Government & Public Services,OADBY & WIGSTON BC (HSG),,,,239831878,5000374042,,Transition Grant,LE8 2DR,"3,385.00",Yes
Communities & Local Government,DCLG,01/06/2017,Current (non AEF) Grants to Local Authorities,Local Government & Public Services,OXFORD CITY COUNCIL,,,,212437417,5000374152,,Transition Grant,OX1 1DS,"9,204.00",Yes
Communities & Local Government,DCLG,01/06/2017,Current (non AEF) Grants to Local Authorities,Local Government & Public Services,OXFORDSHIRE CC,,,,228216438,5000374153,,Transition Grant,OX1 1TH,"743,770.00",Yes
Communities & Local Government,DCLG,01/06/2017,Current (non AEF) Grants to Local Authorities,Local Government & Public Services,POOLE BC (HSG),,,,,5000374043,,Transition Grant,BH15 2RU,"143,700.00",Yes
Communities & Local Government,DCLG,01/06/2017,Current (non AEF) Grants to Local Authorities,Local Government & Public Services,PURBECK DC,,,,,5000374044,,Transition Grant,BH20 4PP,"5,408.00",Yes
Communities & Local Government,DCLG,01/06/2017,Current (non AEF) Grants to Local Authorities,Local Government & Public Services,READING BC,,,,210220399,5000374154,,Transition Grant,RG1 7TD,"64,559.00",Yes
Communities & Local Government,DCLG,01/06/2017,Current (non AEF) Grants to Local Authorities,Local Government & Public Services,REDDITCH BC,,,,231421491,5000374155,,Transition Grant,B98 8AH,"7,348.00",Yes
Communities & Local Government,DCLG,01/06/2017,Current (non AEF) Grants to Local Authorities,Local Government & Public Services,REIGATE & BANSTEAD BC,,,,211313515,5000374156,,Transition Grant,RH2 OSH,"21,400.00",Yes
Communities & Local Government,DCLG,01/06/2017,Current (non AEF) Grants to Local Authorities,Local Government & Public Services,RIBBLE VALLEY BC,,,,232617894,5000374045,,Transition Grant,BB7 2RA,"3,391.00",Yes
Communities & Local Government,DCLG,01/06/2017,Current (non AEF) Grants to Local Authorities,Local Government & Public Services,RICHMOND UPON THAMES LB,,,,228868535,5000374157,,Transition Grant,TW1 3BZ,"486,615.00",Yes
Communities & Local Government,DCLG,01/06/2017,Current (non AEF) Grants to Local Authorities,Local Government & Public Services,RICHMONDSHIRE DC,,,,232245142,5000374046,,Transition Grant,DL10 4JX,"5,373.00",Yes
Communities & Local Government,DCLG,01/06/2017,Current (non AEF) Grants to Local Authorities,Local Government & Public Services,ROCHFORD DISTRICT COUNCIL,,,,387828767,5000374158,,Transition Grant,SS4 1BW,"15,761.00",Yes
Communities & Local Government,DCLG,01/06/2017,Current (non AEF) Grants to Local Authorities,Local Government & Public Services,ROSSENDALE BC,,,,237654020,5000374159,,Transition Grant,OL13 0BB,"5,526.00",Yes
Communities & Local Government,DCLG,01/06/2017,Current (non AEF) Grants to Local Authorities,Local Government & Public Services,ROTHER DC (HSG),,,,,5000374047,,Transition Grant,TN39 3JX,"11,897.00",Yes
Communities & Local Government,DCLG,01/06/2017,Current (non AEF) Grants to Local Authorities,Local Government & Public Services,ROYAL BERKSHIRE FIRE AUTHORITY,,,,424872653,5000374196,,Transition Grant,RG30 4FS,"13,469.00",Yes
Communities & Local Government,DCLG,01/06/2017,Current (non AEF) Grants to Local Authorities,Local Government & Public Services,RUGBY BOROUGH COUNCIL,,,,,5000374160,,Transition Grant,CV21 2RR,"7,618.00",Yes
Communities & Local Government,DCLG,01/06/2017,Current (non AEF) Grants to Local Authorities,Local Government & Public Services,RUNNYMEDE BOROUGH COUNCIL,,,,232225722,5000374161,,Transition Grant,KT15 2AH,"6,613.00",Yes
Communities & Local Government,DCLG,01/06/2017,Current (non AEF) Grants to Local Authorities,Local Government & Public Services,RUSHCLIFFE BOROUGH COUNCIL,,,,,5000374048,,Transition Grant,NG2 5FE,"5,598.00",Yes
Communities & Local Government,DCLG,01/06/2017,Current (non AEF) Grants to Local Authorities,Local Government & Public Services,RUSHMOOR BC,,,,232607606,5000374162,,Transition Grant,GU14 7JU,"6,696.00",Yes
Communities & Local Government,DCLG,01/06/2017,Current (non AEF) Grants to Local Authorities,Local Government & Public Services,RUTLAND CC,,,,,5000374163,,Transition Grant,LE15 6HP,"56,093.00",Yes
Communities & Local Government,DCLG,01/06/2017,Current (non AEF) Grants to Local Authorities,Local Government & Public Services,RYEDALE DC,,,,,5000374049,,Transition Grant,YO17 7HH,"4,179.00",Yes
Communities & Local Government,DCLG,01/06/2017,Current (non AEF) Grants to Local Authorities,Local Government & Public Services,SCARBOROUGH BC,,Large,,,5000374050,,Transition Grant,YO11 2HG,379.00,Yes
Communities & Local Government,DCLG,01/06/2017,Current (non AEF) Grants to Local Authorities,Local Government & Public Services,SELBY DC,,,,239816721,5000374051,,Transition Grant,YO8 9FT,"1,898.00",Yes
Communities & Local Government,DCLG,01/06/2017,Current (non AEF) Grants to Local Authorities,Local Government & Public Services,SEVENOAKS DC,,,,236100913,5000374052,,Transition Grant,TN13 1HG,"20,497.00",Yes
Communities & Local Government,DCLG,01/06/2017,Current (non AEF) Grants to Local Authorities,Local Government & Public Services,SHEPWAY DISTRICT COUNCIL,,,,235550878,5000374053,,Transition Grant,CT20 2QY,"10,167.00",Yes
Communities & Local Government,DCLG,01/06/2017,Current (non AEF) Grants to Local Authorities,Local Government & Public Services,SHROPSHIRE & WREKIN FIRE AUTHORITY,,,,424873610,5000374207,,Transition Grant,SY1 2HJ,"15,233.00",Yes
Communities & Local Government,DCLG,01/06/2017,Current (non AEF) Grants to Local Authorities,Local Government & Public Services,SHROPSHIRE UNITARY AUTHORITY,,,,217036490,5000374216,,Transition Grant,SY2 6ND,"97,610.00",Yes
Communities & Local Government,DCLG,01/06/2017,Current (non AEF) Grants to Local Authorities,Local Government & Public Services,SOLIHULL MBC,,,,,5000374164,,Transition Grant,B91 3QR,"160,147.00",Yes
Communities & Local Government,DCLG,01/06/2017,Current (non AEF) Grants to Local Authorities,Local Government & Public Services,SOMERSET COUNTY CNCL,,,,211229406,5000374165,,Transition Grant,TA1 4DY,"180,828.00",Yes
Communities & Local Government,DCLG,01/06/2017,Current (non AEF) Grants to Local Authorities,Local Government & Public Services,SOUTH BUCKS DC (HSG),,,,,5000374054,,Transition Grant,UB9 4LH,"13,331.00",Yes
Communities & Local Government,DCLG,01/06/2017,Current (non AEF) Grants to Local Authorities,Local Government & Public Services,SOUTH CAMBRIDGESHIRE DC,,,,236369484,5000374055,,Transition Grant,CB23 6EA,"12,595.00",Yes
Communities & Local Government,DCLG,01/06/2017,Current (non AEF) Grants to Local Authorities,Local Government & Public Services,SOUTH DERBYSHIRE DC,,Public Bodies,,232612416,5000374056,,Transition Grant,DE11 0AH,538.00,Yes
Communities & Local Government,DCLG,01/06/2017,Current (non AEF) Grants to Local Authorities,Local Government & Public Services,SOUTH GLOUCESTERSHIRE DC (HSG),,,,,5000374057,,Transition Grant,BS15 2TR,"303,166.00",Yes
Communities & Local Government,DCLG,01/06/2017,Current (non AEF) Grants to Local Authorities,Local Government & Public Services,SOUTH HAMS DC,,,,236445342,5000374058,,Transition Grant,TQ9 5NE,"9,315.00",Yes
Communities & Local Government,DCLG,01/06/2017,Current (non AEF) Grants to Local Authorities,Local Government & Public Services,SOUTH LAKELAND DC,,Large,,236445466,5000374059,,Transition Grant,LA9 4DQ,"19,225.00",Yes
Communities & Local Government,DCLG,01/06/2017,Current (non AEF) Grants to Local Authorities,Local Government & Public Services,SOUTH NORFOLK DC,,,,232605717,5000374060,,Transition Grant,NR15 2XE,"2,740.00",Yes
Communities & Local Government,DCLG,01/06/2017,Current (non AEF) Grants to Local Authorities,Local Government & Public Services,SOUTH NORTHAMPTONSHIRE DC,,,,,5000374061,,Transition Grant,NN12 7AE,"11,788.00",Yes
Communities & Local Government,DCLG,01/06/2017,Current (non AEF) Grants to Local Authorities,Local Government & Public Services,SOUTH OXFORDSHIRE DC,,,,212296766,5000374062,,Transition Grant,OX10 8HQ,"7,110.00",Yes
Communities & Local Government,DCLG,01/06/2017,Current (non AEF) Grants to Local Authorities,Local Government & Public Services,SOUTH RIBBLE BC,,Public Bodies,,,5000374166,,Transition Grant,PR5 1DH,"15,281.00",Yes
Communities & Local Government,DCLG,01/06/2017,Current (non AEF) Grants to Local Authorities,Local Government & Public Services,SOUTH SOMERSET DC,,,,239850811,5000374063,,Transition Grant,BA20 2DS,"9,503.00",Yes
Communities & Local Government,DCLG,01/06/2017,Current (non AEF) Grants to Local Authorities,Local Government & Public Services,SPELTHORNE BOROUGH COUNCIL,,,,211177332,5000374064,,Transition Grant,TW18 1XB,"16,283.00",Yes
Communities & Local Government,DCLG,01/06/2017,Current (non AEF) Grants to Local Authorities,Local Government & Public Services,ST ALBANS CITY COUNCIL,,,,218692510,5000374167,,Transition Grant,AL1 3JE,"28,187.00",Yes
Communities & Local Government,DCLG,01/06/2017,Current (non AEF) Grants to Local Authorities,Local Government & Public Services,ST EDMUNDSBURY BOROUGH COUNCIL,,,,212503653,5000374065,,Transition Grant,IP33 3YU,"8,391.00",Yes
Communities & Local Government,DCLG,01/06/2017,Current (non AEF) Grants to Local Authorities,Local Government & Public Services,STAFFORD BC,,,,227476934,5000374168,,Transition Grant,ST16 3AQ,"7,171.00",Yes
Communities & Local Government,DCLG,01/06/2017,Current (non AEF) Grants to Local Authorities,Local Government & Public Services,STAFFORDSHIRE  FIRE & RESCUE SERV,,Large,,232600577,5000374200,,Transition Grant,ST15 0BS,"7,808.00",Yes
Communities & Local Government,DCLG,01/06/2017,Current (non AEF) Grants to Local Authorities,Local Government & Public Services,STAFFORDSHIRE COUNTY CNCL,,Public Bodies,,,5000374169,,Transition Grant,ST16 2DH,"465,369.00",Yes
Communities & Local Government,DCLG,01/06/2017,Current (non AEF) Grants to Local Authorities,Local Government & Public Services,STAFFORDSHIRE MOORLANDS DC,,,,232749775,5000374066,,Transition Grant,ST13 6HQ,796.00,Yes
Communities & Local Government,DCLG,01/06/2017,Current (non AEF) Grants to Local Authorities,Local Government & Public Services,STEVENAGE BC,,,,236440186,5000374170,,Transition Grant,SG1 1HN,"1,095.00",Yes
Communities & Local Government,DCLG,01/06/2017,Current (non AEF) Grants to Local Authorities,Local Government & Public Services,STOCKPORT MBC,,,,228706248,5000374171,,Transition Grant,SK1 3XE,"168,234.00",Yes
Communities & Local Government,DCLG,01/06/2017,Current (non AEF) Grants to Local Authorities,Local Government & Public Services,STRATFORD ON AVON DC,,,,227473881,5000374172,,Transition Grant,CV37 6HX,"10,204.00",Yes
Communities & Local Government,DCLG,01/06/2017,Current (non AEF) Grants to Local Authorities,Local Government & Public Services,STROUD DC (HSG),,,,,5000374067,,Transition Grant,GL5 4UB,"17,100.00",Yes
Communities & Local Government,DCLG,01/06/2017,Current (non AEF) Grants to Local Authorities,Local Government & Public Services,SUFFOLK CC (SOCIAL CARE SERV) (H,,,,385614821,5000374068,,Transition Grant,IP4 1LH,"329,691.00",Yes
Communities & Local Government,DCLG,01/06/2017,Current (non AEF) Grants to Local Authorities,Local Government & Public Services,SUFFOLK COASTAL DC (HSG),,,,239933203,5000374069,,Transition Grant,IP12 1AU,"9,468.00",Yes
Communities & Local Government,DCLG,01/06/2017,Current (non AEF) Grants to Local Authorities,Local Government & Public Services,SURREY COUNTY COUNCIL,,Public Bodies,,,5000374173,,Transition Grant,KT1 2DN,"2,029,035.00",Yes
Communities & Local Government,DCLG,01/06/2017,Current (non AEF) Grants to Local Authorities,Local Government & Public Services,SURREY HEATH BC,,,,236445441,5000374174,,Transition Grant,GU15 3HD,"14,081.00",Yes
Communities & Local Government,DCLG,01/06/2017,Current (non AEF) Grants to Local Authorities,Local Government & Public Services,SUTTON LB,,,,,5000374175,,Transition Grant,SM1 1EA,"222,147.00",Yes
Communities & Local Government,DCLG,01/06/2017,Current (non AEF) Grants to Local Authorities,Local Government & Public Services,SWINDON BC,,,,458639697,5000374176,,Transition Grant,SN1 2JH,"137,778.00",Yes
Communities & Local Government,DCLG,01/06/2017,Current (non AEF) Grants to Local Authorities,Local Government & Public Services,TANDRIDGE DC,,,,225481076,5000374070,,Transition Grant,RH8 0BT,"21,749.00",Yes
Communities & Local Government,DCLG,01/06/2017,Current (non AEF) Grants to Local Authorities,Local Government & Public Services,TAUNTON DEANE BC,,,,236185294,5000374071,,Transition Grant,TA1 1HE,"2,811.00",Yes
Communities & Local Government,DCLG,01/06/2017,Current (non AEF) Grants to Local Authorities,Local Government & Public Services,TEIGNBRIDGE DC,,,,236440475,5000374072,,Transition Grant,TQ12 4XX,"4,540.00",Yes
Communities & Local Government,DCLG,01/06/2017,Current (non AEF) Grants to Local Authorities,Local Government & Public Services,TEST VALLEY BC,,,,225442698,5000374073,,Transition Grant,SP10 3AJ,"8,934.00",Yes
Communities & Local Government,DCLG,01/06/2017,Current (non AEF) Grants to Local Authorities,Local Government & Public Services,THREE RIVERS DC,,,,,5000374177,,Transition Grant,WD3 1RL,"10,948.00",Yes
Communities & Local Government,DCLG,01/06/2017,Current (non AEF) Grants to Local Authorities,Local Government & Public Services,TONBRIDGE & MALLING BC,,,,,5000374074,,Transition Grant,ME19 6LZ,"19,533.00",Yes
Communities & Local Government,DCLG,01/06/2017,Current (non AEF) Grants to Local Authorities,Local Government & Public Services,TRAFFORD MBC,,,,,5000374178,,Transition Grant,M32 0TH,"76,258.00",Yes
Communities & Local Government,DCLG,01/06/2017,Current (non AEF) Grants to Local Authorities,Local Government & Public Services,TUNBRIDGE WELLS BC,,,,775221013,5000374075,,Transition Grant,TN1 1RS,"12,362.00",Yes
Communities & Local Government,DCLG,01/06/2017,Current (non AEF) Grants to Local Authorities,Local Government & Public Services,UTTLESFORD DC,,,,424423242,5000374076,,Transition Grant,CB11 4ER,"10,059.00",Yes
Communities & Local Government,DCLG,01/06/2017,Current (non AEF) Grants to Local Authorities,Local Government & Public Services,VALE OF WHITE HORSE DC,,,,,5000374077,,Transition Grant,OX14 4SB,"6,951.00",Yes
Communities & Local Government,DCLG,01/06/2017,Current (non AEF) Grants to Local Authorities,Local Government & Public Services,WARRINGTON BC,,,,,5000374179,,Transition Grant,WA1 1BN,"105,670.00",Yes
Communities & Local Government,DCLG,01/06/2017,Current (non AEF) Grants to Local Authorities,Local Government & Public Services,WARWICK,,,,,5000374180,,Transition Grant,CV32 4NW,"6,576.00",Yes
Communities & Local Government,DCLG,01/06/2017,Current (non AEF) Grants to Local Authorities,Local Government & Public Services,WARWICKSHIRE COUNTY CNCL,,,,210396290,5000374181,,Transition Grant,CV34 4RH,"498,859.00",Yes
Communities & Local Government,DCLG,01/06/2017,Current (non AEF) Grants to Local Authorities,Local Government & Public Services,WATFORD COUNCIL,,,,215498572,5000374182,,Transition Grant,WD17 3EX,"15,373.00",Yes
Communities & Local Government,DCLG,01/06/2017,Current (non AEF) Grants to Local Authorities,Local Government & Public Services,WAVERLEY BC V177,,,,,5000374078,,Transition Grant,GU7 1HR,"25,346.00",Yes
Communities & Local Government,DCLG,01/06/2017,Current (non AEF) Grants to Local Authorities,Local Government & Public Services,WEALDEN DC,,,,232688697,5000374079,,Transition Grant,BN22 9LN,"27,700.00",Yes
Communities & Local Government,DCLG,01/06/2017,Current (non AEF) Grants to Local Authorities,Local Government & Public Services,WELWYN HATFIELD COUNCIL,,,,210360804,5000374080,,Transition Grant,AL8 6AE,"12,993.00",Yes
Communities & Local Government,DCLG,01/06/2017,Current (non AEF) Grants to Local Authorities,Local Government & Public Services,WEST BERKSHIRE COUNCIL,,,,364809181,5000374183,,Transition Grant,RG14 2AF,"228,664.00",Yes
Communities & Local Government,DCLG,01/06/2017,Current (non AEF) Grants to Local Authorities,Local Government & Public Services,WEST DEVON BC,,,,234002095,5000374081,,Transition Grant,PL19 0BZ,"5,115.00",Yes
Communities & Local Government,DCLG,01/06/2017,Current (non AEF) Grants to Local Authorities,Local Government & Public Services,WEST LANCASHIRE BC,,,,232240978,5000374184,,Transition Grant,L39 2DF,"1,200.00",Yes
Communities & Local Government,DCLG,01/06/2017,Current (non AEF) Grants to Local Authorities,Local Government & Public Services,WEST SUSSEX CC,,Public Bodies,,232198762,5000374185,,Transition Grant,PO19 1RG,"1,042,226.00",Yes
Communities & Local Government,DCLG,01/06/2017,Current (non AEF) Grants to Local Authorities,Local Government & Public Services,WEYMOUTH & PORTLAND BC,,,,735157948,5000374186,,Transition Grant,DT4 8TA,"10,937.00",Yes
Communities & Local Government,DCLG,01/06/2017,Current (non AEF) Grants to Local Authorities,Local Government & Public Services,WILTSHIRE COUNCIL,,,,211341656,5000374210,,Transition Grant,BA14 4DS,"502,277.00",Yes
Communities & Local Government,DCLG,01/06/2017,Current (non AEF) Grants to Local Authorities,Local Government & Public Services,WINCHESTER CITY CNCL,,,,228838280,5000374082,,Transition Grant,SO23 9LJ,"15,292.00",Yes
Communities & Local Government,DCLG,01/06/2017,Current (non AEF) Grants to Local Authorities,Local Government & Public Services,WINDSOR & MAIDENHEAD (HSG),,,,227411998,5000374083,,Transition Grant,SL6 1RF,"210,438.00",Yes
Communities & Local Government,DCLG,01/06/2017,Current (non AEF) Grants to Local Authorities,Local Government & Public Services,WOKING BC,,,,211163449,5000374187,,Transition Grant,GU21 1YL,"18,666.00",Yes
Communities & Local Government,DCLG,01/06/2017,Current (non AEF) Grants to Local Authorities,Local Government & Public Services,WOKINGHAM DC,,,,,5000374188,,Transition Grant,RG11 1WJ,"350,664.00",Yes
Communities & Local Government,DCLG,01/06/2017,Current (non AEF) Grants to Local Authorities,Local Government & Public Services,WORCESTER CITY CNCL,,,,227419751,5000374189,,Transition Grant,WR1 2EZ,"2,214.00",Yes
Communities & Local Government,DCLG,01/06/2017,Current (non AEF) Grants to Local Authorities,Local Government & Public Services,WORCESTERSHIRE COUNTY COUNCIL,,,,230359643,5000374190,,Transition Grant,WR5 2NP,"419,827.00",Yes
Communities & Local Government,DCLG,01/06/2017,Current (non AEF) Grants to Local Authorities,Local Government & Public Services,WORTHING BC,,,,236429734,5000374191,,Transition Grant,BN11 1HA,"16,583.00",Yes
Communities & Local Government,DCLG,01/06/2017,Current (non AEF) Grants to Local Authorities,Local Government & Public Services,WYCHAVON DISTRICT COUNCIL,,,,232257139,5000374084,,Transition Grant,WR10 1PT,"2,182.00",Yes
Communities & Local Government,DCLG,01/06/2017,Current (non AEF) Grants to Local Authorities,Local Government & Public Services,WYCOMBE DC,,Medium,,232683771,5000374085,,Transition Grant,HP11 1BB,"14,040.00",Yes
Communities & Local Government,DCLG,01/06/2017,Current (non AEF) Grants to Local Authorities,Local Government & Public Services,WYRE BC,,,,236646493,5000374086,,Transition Grant,FY6 7PU,854.00,Yes
Communities & Local Government,DCLG,01/06/2017,Current (non AEF) Grants to Local Authorities,Local Government & Public Services,WYRE FOREST DISTRICT COUNCIL,,,,,5000374192,,Transition Grant,DY11 7WF,"7,180.00",Yes
Communities & Local Government,DCLG,01/06/2017,Current (non AEF) Grants to Local Authorities,Local Government & Public Services,YORK CITY CNCL,,,,,5000374193,,Transition Grant,YO1 0EG,"127,371.00",Yes
Communities & Local Government,DCLG,01/06/2017,ERDF Work in Progress � Resource,Decentralisation and Local Growth,ARCH COMMERCIAL ENTERPRISES LTD,,,,,7700000433,,ERDF grant payment,NE63 9JZ,"36,370.29",Yes
Communities & Local Government,DCLG,01/06/2017,ERDF Work in Progress � Resource,Decentralisation and Local Growth,DURHAM COUNTY COUNCIL,,,,,7700000432,,ERDF grant payment,DH1 5UF,"34,492.26",Yes
Communities & Local Government,DCLG,01/06/2017,ERDF Work in Progress � Resource,Decentralisation and Local Growth,DURHAM COUNTY COUNCIL,,,,,7700000434,,ERDF grant payment,DH1 5UF,"28,727.39",Yes
Communities & Local Government,DCLG,01/06/2017,ERDF Work in Progress � Resource,Decentralisation and Local Growth,LEICESTER CITY COUNCIL,,,,,7700000431,,ERDF grant payment,LE1 1FZ,"47,675.88",Yes
Communities & Local Government,DCLG,01/06/2017,EXP � PURCHASE OF GOODS /SERVICES R & D,Local Government & Public Services,OFFICE FOR NATIONAL STATISTICS,,Public Bodies,,232101196,5106228797,Research,2016/17 - Milestone 3,NP10 8XG,"1,009.04",
Communities & Local Government,DCLG,01/06/2017,EXP � PURCHASE OF GOODS /SERVICES R & D,Local Government & Public Services,OFFICE FOR NATIONAL STATISTICS,,Public Bodies,,232101196,5106228797,Research,2016/17 - Milestone 4,NP10 8XG,"138,138.38",
Communities & Local Government,DCLG,01/06/2017,IT - Service Contracts,Corporate Services,FUJITSU SERVICES LTD,,Large,,423375062,5106228800,IT Managed / Outsourced Services,PINS New Requirements FY17-18,WA3 6GD,"1,439.08",
Communities & Local Government,DCLG,01/06/2017,IT - Service Contracts,Corporate Services,STATIONERY OFFICE LTD,,Large,,779375633,5106228791,IT Managed / Outsourced Services,TSO Datamart Changes,NR3 1PD,"9,315.00",
Communities & Local Government,DCLG,01/06/2017,Repayments of Private Sect Grant (Cap),Decentralisation and Local Growth,THARSUS ENGINEERING LTD,,,,,2300002811,,Ref:1311C-H - RGF Grant recovery,NE24 5TG,"-17,620.35",
Communities & Local Government,DCLG,01/06/2017,Training,Corporate Services,MYCSP LIMITED,,Large,,217279092,5106228786,Development and Training,Civil Service Training,SK3 0XN,"1,960.00",
Communities & Local Government,DCLG,01/06/2017,Utilisation of Unfunded Pension Scheme,Corporate Services,LONDON PENSIONS FUND AUTHORITY,,Public Bodies,,236915880,5106228792,Financial,Pension fund management,SE1 0LL,376.52,
Communities & Local Government,DCLG,02/06/2017,Agency Staff,Corporate Services,BROOK STREET UK LTD,,Large,,364940028,5106228812,Contingent Labour,Recruitment,AL1 4JB,681.54,
Communities & Local Government,DCLG,02/06/2017,Agency Staff,Corporate Services,BROOK STREET UK LTD,,Large,,364940028,5106228813,Contingent Labour,Support worker for staff interim measure,AL1 4JB,525.71,
Communities & Local Government,DCLG,02/06/2017,Agency Staff,Corporate Services,BROOK STREET UK LTD,,Large,,364940028,5106228814,Contingent Labour,Interim Admin support,AL1 4JB,687.31,
Communities & Local Government,DCLG,02/06/2017,Agency Staff,Decentralisation and Local Growth,BROOK STREET UK LTD,,Large,,364940028,5106228824,Contingent Labour,Temporary staff,AL1 4JB,816.24,
Communities & Local Government,DCLG,02/06/2017,Agency Staff,Decentralisation and Local Growth,CAPITA BUS. SERV. LTD (CON LAB),,Large,,,5106228816,Contingent Labour,Interim Manager,DL1 9WQ,"1,407.17",
Communities & Local Government,DCLG,02/06/2017,Current Grants to Non Profit Bodies,Local Government & Public Services,SMALLER AUTHORITIES' AUDIT,,Micro,,,2100274191,,SAAA grant payment,E1 8AN,"62,500.00",Yes
Communities & Local Government,DCLG,02/06/2017,Electronic Data Storage,Corporate Services,TNT UK LIMITED,,Large,,,5106228833,Warehousing and Storage,Visions electronic storage,BL10 9GR,"4,272.10",
Communities & Local Government,DCLG,02/06/2017,ERDF Work in Progress � Capital,Decentralisation and Local Growth,THALAMUS HEALTH LTD,,Micro,,,7700000439,,ERDF grant payment,TA22 9NS,"102,371.60",Yes
Communities & Local Government,DCLG,02/06/2017,ERDF Work in Progress � Capital,Decentralisation and Local Growth,UNIVERSITY OF READING,,Large,,,7700000436,,ERDF grant payment,RG6 6AH,"810,195.53",Yes
Communities & Local Government,DCLG,02/06/2017,ERDF Work in Progress � Resource,Decentralisation and Local Growth,CORNWALL MARINE NETWORK LTD,,Small,,,7700000437,,ERDF grant payment,TR11 4SZ,"10,393.74",Yes
Communities & Local Government,DCLG,02/06/2017,ERDF Work in Progress � Resource,Decentralisation and Local Growth,LANCASHIRE COUNTY COUNCIL,,Large,,,7700000438,,ERDF grant payment,PR1 8XJ,"347,609.85",Yes
Communities & Local Government,DCLG,02/06/2017,ERDF Work in Progress � Resource,Decentralisation and Local Growth,NORTH EAST COMBINED AUTHORITY,,,,,7700000435,,ERDF grant payment,NE27 0BY,"42,126.49",Yes
Communities & Local Government,DCLG,02/06/2017,ERDF Work in Progress � Resource,Decentralisation and Local Growth,THALAMUS HEALTH LTD,,Micro,,,7700000439,,ERDF grant payment,TA22 9NS,"156,834.90",Yes
Communities & Local Government,DCLG,02/06/2017,IT - Service Contracts,Corporate Services,STATIONERY OFFICE LTD,,Large,,779375633,5106228828,IT Managed / Outsourced Services,TSO Datamart Changes,NR3 1PD,"9,317.00",
Communities & Local Government,DCLG,02/06/2017,Online Database Information Retrieval,Corporate Services,HEMMING GROUP LTD,,Medium,,210907168,5106228831,ICT Services,Municipal Year Book Online,SW1V 2SS,336.00,
Communities & Local Government,DCLG,02/06/2017,Publications,Corporate Services,JONES YARRELL LEADENHALL LTD,,Large,,505670265,5106228829,Learning and Development Materials,DCLG Journals subs 2017-18,E3 3JH,271.08,
Communities & Local Government,DCLG,02/06/2017,Research,Local Government & Public Services,BMG RESEARCH LIMITED,,,,569488612,5106228826,Research,Research - ERDF Evaluation Scoping Study,B15 3BE,"26,978.00",
Communities & Local Government,DCLG,02/06/2017,Research,Local Government & Public Services,BMG RESEARCH LIMITED,,,,569488612,5106228832,Research,Research - ERDF Evaluation Scoping Study,B15 3BE,"33,722.50",
Communities & Local Government,DCLG,02/06/2017,Steady State Service Provision,Corporate Services,CGI IT UK LIMITED,,Large,,239881618,5106228820,Business Process Outsourcing Services,Payroll Services & Licences 15/17,CF31 9AP,"7,768.65",
Communities & Local Government,DCLG,02/06/2017,Steady State Service Provision,Corporate Services,CGI IT UK LIMITED,,Large,,239881618,5106228821,Business Process Outsourcing Services,Payroll Services & Licences 15/17,CF31 9AP,"1,158.89",
Communities & Local Government,DCLG,02/06/2017,Steady State Service Provision,Corporate Services,CGI IT UK LIMITED,,Large,,239881618,5106228839,Business Process Outsourcing Services,Payroll Services & Licences 15/17,CF31 9AP,232.56,
Communities & Local Government,DCLG,02/06/2017,Steady State Service Provision,Corporate Services,HM REVENUE & CUSTOMS,,Public Bodies,,365117972,5106228825,Business Process Outsourcing Services,CSR - Online Sift Tests NR VR & CSJT,BN12 4XH,831.60,
Communities & Local Government,DCLG,02/06/2017,Steady State Service Provision,Housing & Planning,LOCALITY,,Medium,,347998312,5106228822,Business Process Outsourcing Services,Neighbourhood Planning and Community Right to Buy,N1 6DR,"36,792.88",
Communities & Local Government,DCLG,02/06/2017,Training,Corporate Services,QA  LTD,,Large,,215584661,5106226727,Development and Training,Civil Service Training,SL1 1SG,-855.00,
Communities & Local Government,DCLG,02/06/2017,Training,Corporate Services,SCT CONSULTANTS LTD,,Micro,,,5106228815,Development and Training,Civil Service Training,W8 5RL,"6,000.00",
Communities & Local Government,DCLG,02/06/2017,Travel and Subsistence Account,Corporate Services,247 TRANSPORT SOLUTIONS LTD,,Medium,,215572440,5106228830,Business Travel,Official Travel & Subsistence,TN38 9BA,267.24,
Communities & Local Government,DCLG,05/06/2017,Advertising,Corporate Services,HEMMING GROUP LTD,,Medium,,210907168,5106228854,Advertising,Director LGF Advert in MJ and Local Govt,SW1V 2SS,900.00,
Communities & Local Government,DCLG,05/06/2017,Agency Staff,Corporate Services,INTERQUEST GROUP UK LIMITED,,Large,,423935241,5106228855,IT Managed / Outsourced Services,SAP UNIX Support Services,EC1N 8UA,"8,580.00",
Communities & Local Government,DCLG,05/06/2017,ERDF Work in Progress � Resource,Decentralisation and Local Growth,DNCC LIMITED,,Medium,,,2300002705,,ERDF grant repayment,S41 7NA,"-8,728.00",Yes
Communities & Local Government,DCLG,05/06/2017,IT - Service Contracts,Corporate Services,ARCUS GLOBAL LIMITED,,Medium,,,5106228864,IT Managed / Outsourced Services,3 Months Extensions - Hostings & Support,CB4 2HY,"11,699.79",
Communities & Local Government,DCLG,05/06/2017,IT - Service Contracts,Corporate Services,ARCUS GLOBAL LIMITED,,Medium,,,5106228873,IT Managed / Outsourced Services,DataMart Hosting charges 2016/17,CB4 2HY,"35,348.30",
Communities & Local Government,DCLG,05/06/2017,IT - Service Contracts,Corporate Services,ARCUS GLOBAL LIMITED,,Medium,,,5106228874,IT Managed / Outsourced Services,DataMart Hosting charges 2016/17,CB4 2HY,"1,129.41",
Communities & Local Government,DCLG,05/06/2017,IT - Service Contracts,Corporate Services,ARCUS GLOBAL LIMITED,,Medium,,,5106228875,IT Managed / Outsourced Services,DataMart Hosting charges 2016/17,CB4 2HY,527.38,
Communities & Local Government,DCLG,05/06/2017,IT - Service Contracts,Corporate Services,ARCUS GLOBAL LIMITED,,Medium,,,5106228876,IT Managed / Outsourced Services,DataMart Hosting charges 2016/17,CB4 2HY,"1,975.09",
Communities & Local Government,DCLG,05/06/2017,IT - Service Contracts,Corporate Services,MARKLOGIC CORPORATION,,Large,,,5106228549,IT Managed / Outsourced Services,AS6 Development Charges,CA 94070,"30,262.50",
Communities & Local Government,DCLG,05/06/2017,IT - Software Maintenance,Corporate Services,MARKLOGIC CORPORATION,,Large,,,5106228866,IT Managed / Outsourced Services,Additional Call Off Days,CA 94070,"21,450.00",
Communities & Local Government,DCLG,05/06/2017,IT - Software Maintenance,Corporate Services,MARKLOGIC CORPORATION,,Large,,,5106228867,IT Managed / Outsourced Services,Additional Call Off Days,CA 94070,"9,600.00",
Communities & Local Government,DCLG,05/06/2017,Physical Storage,Corporate Services,IRON MOUNTAIN (UK) LIMITED,,Large,,501338354,5106228865,Warehousing and Storage,Off-site Storage Tapes 2016,EH54 7DF,440.41,
Communities & Local Government,DCLG,05/06/2017,Repayments of Private Sect Grant (Cap),Decentralisation and Local Growth,DEUTSCHE LEASING (UK) LTD,,Large,,,2300002817,,RGF grant repayment,RH2 9PY,"-31,000.00",
Communities & Local Government,DCLG,05/06/2017,Steady State Service Provision,Housing & Planning,LOCALITY,,Medium,,347998312,5106228746,Business Process Outsourcing Services,Neighbourhood Planning and Community Right to Buy,N1 6DR,"99,088.67",
Communities & Local Government,DCLG,06/06/2017,Advertising,Housing & Planning,REDACTIVE PUBLISHING LTD,,Medium,,494940539,5106228869,Advertising,Plkanning Jobs advertisement,EC1M 5TP,750.00,
Communities & Local Government,DCLG,06/06/2017,EXP � PURCHASE OF GOODS /SERVICES R & D,Local Government & Public Services,NATIONAL CENTRE FOR SOCIAL RESEARCH,,Large,,424047426,5106228893,Research,Research - English Housing Survey,EC1V 0AX,"15,327.81",
Communities & Local Government,DCLG,06/06/2017,EXP � PURCHASE OF GOODS /SERVICES R & D,Local Government & Public Services,NATIONAL CENTRE FOR SOCIAL RESEARCH,,Large,,424047426,5106228894,Research,Research - English Housing Survey,EC1V 0AX,"36,093.84",
Communities & Local Government,DCLG,06/06/2017,EXP � PURCHASE OF GOODS /SERVICES R & D,Local Government & Public Services,NATIONAL CENTRE FOR SOCIAL RESEARCH,,Large,,424047426,5106228895,Research,Research - English Housing Survey,EC1V 0AX,"258,443.81",
Communities & Local Government,DCLG,06/06/2017,EXP � PURCHASE OF GOODS /SERVICES R & D,Local Government & Public Services,NATIONAL CENTRE FOR SOCIAL RESEARCH,,Large,,424047426,5106228896,Research,Research - English Housing Survey,EC1V 0AX,"23,867.62",
Communities & Local Government,DCLG,06/06/2017,Grant in Aid to NDPBs (non budget),Local Government & Public Services,COMMISSION LOCAL ADMINISTRATION,,,,215271508,2100274201,,DCLG DEL 17/18 budget contribution for the CLAE,CV1 3BH,"825,000.00",Yes
Communities & Local Government,DCLG,06/06/2017,IT - Service Contracts,Corporate Services,ARCUS GLOBAL LIMITED,,Medium,,,5106228880,IT Managed / Outsourced Services,T&M wks FY16-17,CB4 2HY,"12,208.41",
Communities & Local Government,DCLG,06/06/2017,IT - Software Maintenance,Corporate Services,INTERQUEST GROUP UK LIMITED,,Large,,423935241,5106228881,IT Managed / Outsourced Services,SAP BASIS Support Services,EC1N 8UA,"13,992.94",
Communities & Local Government,DCLG,06/06/2017,Office Supplies,Corporate Services,CAPITA BUS. SERV. LTD (CSL),,Large,,215580993,5106228879,Office Supplies,ACCA F7 Revision,DL1 9HB,375.24,
Communities & Local Government,DCLG,06/06/2017,Subscriptions,Local Government & Public Services,HM REVENUE & CUSTOMS,,Public Bodies,,365117972,5106228885,Subscriptions and Admissions,Subscription charges,BN12 4XH,"1,640.00",
Communities & Local Government,DCLG,06/06/2017,Training,Corporate Services,YOUNG PROGRAMME EVENTS LTD,,Micro,,,5106228685,Development and Training,Civil Service Training,KA9 2PT,"2,400.00",
Communities & Local Government,DCLG,06/06/2017,Training,Local Government & Public Services,EML LEARNING,,Micro,,218614350,5106228882,Development and Training,Civil Service Training,LS1 9PX,745.00,
Communities & Local Government,DCLG,07/06/2017,Current (non AEF) Grants to Local Authorities,Local Government & Public Services,PEAK DISTRICT NATIONAL PARK AUTH,,Medium,,232883843,2100273539,,Communities Fund Grant,DE45 1AE,"32,500.00",Yes
Communities & Local Government,DCLG,07/06/2017,Current (non AEF) Grants to Local Authorities,Local Government & Public Services,ST EDMUNDSBURY BC,,,,212503653,2100273540,,Communities Fund Grant,IP33 3YU,"63,768.00",Yes
Communities & Local Government,DCLG,07/06/2017,Current Grants to Non Profit Bodies,Housing & Planning,CEL GROUP,,Medium,,394794614,5106228914,Technical Services,Home Improvement Agencies 01.04.16 - 31.03.18,WA2 0YL,"68,870.86",Yes
Communities & Local Government,DCLG,07/06/2017,Electronic Data Storage,Corporate Services,TNT UK LIMITED,,Large,,,5106228917,Warehousing and Storage,Visions electronic storage,BL10 9GR,"4,272.10",
Communities & Local Government,DCLG,07/06/2017,ERDF Work in Progress � Capital,Decentralisation and Local Growth,LEEDS CITY COUNCIL,,Large,,,7700000440,,ERDF grant payment,LS2 8HD,"1,010.72",Yes
Communities & Local Government,DCLG,07/06/2017,ERDF Work in Progress � Capital,Decentralisation and Local Growth,NORTH EAST LINCOLNSHIRE COUNCIL,,Large,,,7700000441,,ERDF grant payment,DN31 1HU,"104,547.71",Yes
Communities & Local Government,DCLG,07/06/2017,ERDF Work in Progress � Resource,Decentralisation and Local Growth,ASTON UNIVERSITY,,Large,,227749751,7700000450,,ERDF grant payment,B4 7ET,"30,513.61",Yes
Communities & Local Government,DCLG,07/06/2017,ERDF Work in Progress � Resource,Decentralisation and Local Growth,BIOCITY GROUP LIMITED,,,,,7700000444,,ERDF grant payment,NG1 1GF,"66,225.33",Yes
Communities & Local Government,DCLG,07/06/2017,ERDF Work in Progress � Resource,Decentralisation and Local Growth,BIOCITY GROUP LIMITED,,,,,7700000453,,ERDF grant payment,NG1 1GF,"41,925.11",Yes
Communities & Local Government,DCLG,07/06/2017,ERDF Work in Progress � Resource,Decentralisation and Local Growth,COMMUNITY MEDIA SOLUTIONS LTD,,Micro,,,7700000443,,ERDF grant payment,S1 2BX,"76,092.00",Yes
Communities & Local Government,DCLG,07/06/2017,ERDF Work in Progress � Resource,Decentralisation and Local Growth,CREATIVE ENGLAND LIMITED,,Medium,,,7700000442,,ERDF grant payment,BS1 5SP,"47,467.86",Yes
Communities & Local Government,DCLG,07/06/2017,ERDF Work in Progress � Resource,Decentralisation and Local Growth,DERBY CITY COUNCIL,,Large,,,7700000455,,ERDF grant payment,DE1 2FE,"3,838.99",Yes
Communities & Local Government,DCLG,07/06/2017,ERDF Work in Progress � Resource,Decentralisation and Local Growth,HAMPSHIRE COUNTY COUNCIL,,,,,7700000451,,ERDF grant payment,SO23 8UJ,"28,183.51",Yes
Communities & Local Government,DCLG,07/06/2017,ERDF Work in Progress � Resource,Decentralisation and Local Growth,LEEDS CITY COUNCIL,,Large,,,7700000440,,ERDF grant payment,LS2 8HD,"27,570.49",Yes
Communities & Local Government,DCLG,07/06/2017,ERDF Work in Progress � Resource,Decentralisation and Local Growth,LEEDS CITY COUNCIL,,Large,,,7700000445,,ERDF grant payment,LS2 8HD,"32,260.15",Yes
Communities & Local Government,DCLG,07/06/2017,ERDF Work in Progress � Resource,Decentralisation and Local Growth,MEDILINK EAST MIDLANDS,,Small,,,7700000454,,ERDF grant payment,NG1 1GF,"165,423.85",Yes
Communities & Local Government,DCLG,07/06/2017,ERDF Work in Progress � Resource,Decentralisation and Local Growth,RTC NORTH,,Small,,,7700000446,,ERDF grant payment,SR5 3XB,"30,280.60",Yes
Communities & Local Government,DCLG,07/06/2017,ERDF Work in Progress � Resource,Decentralisation and Local Growth,RTC NORTH,,Small,,,7700000447,,ERDF grant payment,SR5 3XB,"27,547.71",Yes
Communities & Local Government,DCLG,07/06/2017,ERDF Work in Progress � Resource,Decentralisation and Local Growth,RTC NORTH,,Small,,,7700000448,,ERDF grant payment,SR5 3XB,"34,916.82",Yes
Communities & Local Government,DCLG,07/06/2017,ERDF Work in Progress � Resource,Decentralisation and Local Growth,SURREY UNIVERSITY,,Large,,,7700000452,,ERDF grant payment,GU2 7XH,"20,392.06",Yes
Communities & Local Government,DCLG,07/06/2017,ERDF Work in Progress � Resource,Decentralisation and Local Growth,TEES VALLEY COMBINED AUTHORITY,,,,,7700000449,,ERDF grant payment,TS17 6QY,"3,732.18",Yes
Communities & Local Government,DCLG,07/06/2017,ERDF Work in Progress � Resource,Decentralisation and Local Growth,UNIVERSITY OF CENTRAL LANCASHIRE,,Large,,,7700000456,,ERDF grant payment,PR7 7DL,"18,969.87",Yes
Communities & Local Government,DCLG,07/06/2017,ERDF Work in Progress � Resource,Decentralisation and Local Growth,UNIVERSITY OF CENTRAL LANCASHIRE,,Large,,,7700000457,,ERDF grant payment,PR7 7DL,"54,313.09",Yes
Communities & Local Government,DCLG,07/06/2017,IT - Service Contracts,Corporate Services,DAISY CORPORATE SERVICES LTD,,Large,,221481042,5106228930,IT Managed / Outsourced Services,FY16/17 Transition Costs Resource,BB9 5SR,"17,634.96",
Communities & Local Government,DCLG,07/06/2017,IT - Service Contracts,Corporate Services,FUJITSU SERVICES LTD,,Large,,423375062,5106228911,IT Managed / Outsourced Services,PINS New Requirements FY17-18,WA3 6GD,"8,049.00",
Communities & Local Government,DCLG,07/06/2017,IT - Service Contracts,Corporate Services,FUJITSU SERVICES LTD,,Large,,423375062,5106228916,IT Managed / Outsourced Services,Telephony Fujitsu (resource)FY16/17,WA3 6GD,"8,710.00",
Communities & Local Government,DCLG,07/06/2017,IT - Service Contracts,Corporate Services,INTERQUEST GROUP UK LIMITED,,Large,,423935241,5106228919,IT Managed / Outsourced Services,BW Specialist Support for HR Project,EC1N 8UA,"1,687.50",
Communities & Local Government,DCLG,07/06/2017,IT - Service Contracts,Corporate Services,INTERQUEST GROUP UK LIMITED,,Large,,423935241,5106228920,IT Managed / Outsourced Services,BW Specialist Support for HR Project,EC1N 8UA,"7,875.00",
Communities & Local Government,DCLG,07/06/2017,IT - Service Contracts,Decentralisation and Local Growth,FUJITSU SERVICES LTD,,Large,,423375062,5106228918,IT Managed / Outsourced Services,VTS - CR003- Hardware FY16-17,WA3 6GD,"11,271.58",
Communities & Local Government,DCLG,07/06/2017,IT - Software Maintenance,Corporate Services,KAIZEN ASSOCIATES LTD,,Micro,,217482430,5106228904,IT Managed / Outsourced Services,HR Additional Application Support,SE1 6SW,"35,825.17",
Communities & Local Government,DCLG,07/06/2017,IT - Software Maintenance,Corporate Services,SAP (UK) LTD,,Large,,396951675,5106228903,IT Managed / Outsourced Services,SAP Exhibit 6 12mths support 2017,TW14 8HD,"50,708.40",
Communities & Local Government,DCLG,07/06/2017,Mobile phone costs,Corporate Services,ORANGE (AIRTIME/LINE RENTAL),,Large,,210707540,2100274293,Telecoms,Monthly consolidated telephone costs May 2017,S98 1DX,399.54,
Communities & Local Government,DCLG,07/06/2017,Physical Storage,Corporate Services,WILLIAMS LEA LIMITED,,Large,,393456413,5106228913,Warehousing and Storage,Document Storage,NR3 1PD,524.95,
Communities & Local Government,DCLG,07/06/2017,Professional services,Local Government & Public Services,JOHN McASLAN & PARTNERS,,Medium,,,5106228899,Financial,UKHMF Honorarium,NW1 3ER,"18,000.00",
Communities & Local Government,DCLG,07/06/2017,Publications,Corporate Services,JONES YARRELL LEADENHALL LTD,,Large,,505670265,5106228915,Learning and Development Materials,JYL Printed Publications - 17-18,E3 3JH,389.39,
Communities & Local Government,DCLG,07/06/2017,Web Services,Corporate Services,PULSION TECHNOLOGY LTD,,Small,,,5106228900,ICT Services,Hosting maint & devel Year 2,G4 9XA,858.00,
Communities & Local Government,DCLG,07/06/2017,Web Services,Corporate Services,PULSION TECHNOLOGY LTD,,Small,,,5106228923,ICT Services,Hosting maint & devel Year 2,G4 9XA,858.00,
Communities & Local Government,DCLG,08/06/2017,Current (non AEF) Grants to Local Authorities,Corporate Services,CO DURHAM & DARLINGTON FIRE RESCUE,,Public Bodies,,211684266,2100274287,,Regional Control Centres,DH1 1TW,"75,810.67",Yes
Communities & Local Government,DCLG,08/06/2017,Current (non AEF) Grants to Local Authorities,Corporate Services,GREATER LONDON AUTHORITY,,Large,,225353416,2100274286,,Regional Control Centres,SE10 1AP,"160,743.58",Yes
Communities & Local Government,DCLG,08/06/2017,Current (non AEF) Grants to Local Authorities,Corporate Services,GREATER MANCHESTER FIRE & RESCUE,,Public Bodies,,424873172,2100274285,,Regional Control Centres,M27 8US,"74,517.33",Yes
Communities & Local Government,DCLG,08/06/2017,Current Grants to Non Profit Bodies,Local Government & Public Services,FAITHS FORUM FOR LONDON,,,,,2100274317,,70th Anniversary of India s partition,SE1 0EH,"55,000.00",Yes
Communities & Local Government,DCLG,08/06/2017,Current Grants to Non Profit Bodies,Local Government & Public Services,FAYRE SHARE FOUNDATION,,,,,2100274284,,Strengthening Faith Institutions,W1K 3JF,"146,466.67",Yes
Communities & Local Government,DCLG,08/06/2017,ERDF Work in Progress � Capital,Decentralisation and Local Growth,HOMES & COMMUNITIES AGENCY,,Large,,,2300002799,,ERDF grant repayment,NE11 0NA,"-292,822.00",Yes
Communities & Local Government,DCLG,08/06/2017,ERDF Work in Progress � Resource,Decentralisation and Local Growth,ASTON UNIVERSITY,,Large,,227749751,7700000458,,ERDF grant payment,B4 7ET,"7,262.42",Yes
Communities & Local Government,DCLG,08/06/2017,ERDF Work in Progress � Resource,Decentralisation and Local Growth,CENTRAL BEDFORDSHIRE COUNCIL,,,,,7700000461,,ERDF grant payment,SG17 5TQ,"12,162.16",Yes
Communities & Local Government,DCLG,08/06/2017,ERDF Work in Progress � Resource,Decentralisation and Local Growth,CENTRE FOR PROCESS INNOVATION LTD,,Large,,,7700000462,,ERDF grant payment,TS10 4RF,"62,528.56",Yes
Communities & Local Government,DCLG,08/06/2017,ERDF Work in Progress � Resource,Decentralisation and Local Growth,EAST RIDING OF YORKSHIRE COUNCIL,,,,,7700000459,,ERDF grant payment,HU17 9BA,"51,920.00",Yes
Communities & Local Government,DCLG,08/06/2017,ERDF Work in Progress � Resource,Decentralisation and Local Growth,LANCASTER UNIVERISTY,,,,,7700000463,,ERDF grant payment,LA1 4YW,"46,133.61",Yes
Communities & Local Government,DCLG,08/06/2017,ERDF Work in Progress � Resource,Decentralisation and Local Growth,SERCO REGIONAL SERVICES LIMITED,,,,,7700000460,,ERDF grant payment,PL6 8LU,"175,945.22",Yes
Communities & Local Government,DCLG,08/06/2017,Grant in Aid to NDPBs (non budget),Local Government & Public Services,VALUATION TRIBUNAL SERVICE,,,,211218366,2100274315,,GIA to VTS for NDR appeals,E1 8EU,"567,281.00",Yes
Communities & Local Government,DCLG,08/06/2017,"IT - PC, Network & Hardware",Corporate Services,FUJITSU SERVICES LTD,,Large,,423375062,5106228950,ICT Hardware,VTS - CR001 Hardware FY17/18,WA3 6GD,"7,960.30",
Communities & Local Government,DCLG,08/06/2017,IT - Service Contracts,Corporate Services,DAISY CORPORATE SERVICES LTD,,Large,,221481042,5106228818,IT Managed / Outsourced Services,PAMU Office Moves Project Q4 14/15,BB9 5SR,604.37,
Communities & Local Government,DCLG,08/06/2017,IT - Service Contracts,Corporate Services,FUJITSU SERVICES LTD,,Large,,423375062,5106228730,IT Managed / Outsourced Services,NR     PAMU Office Move Project,WA3 6GD,"3,792.85",
Communities & Local Government,DCLG,08/06/2017,IT - Service Contracts,Corporate Services,FUJITSU SERVICES LTD,,Large,,423375062,5106228949,IT Managed / Outsourced Services,VTS - CR002 Resource FY17/18,WA3 6GD,"43,652.77",
Communities & Local Government,DCLG,08/06/2017,IT - Service Contracts,Corporate Services,FUJITSU SERVICES LTD,,Large,,423375062,5106228951,IT Managed / Outsourced Services,New Requirements  17-18,WA3 6GD,"1,571.00",
Communities & Local Government,DCLG,08/06/2017,IT - Service Contracts,Corporate Services,INTERQUEST GROUP UK LIMITED,,Large,,423935241,5106228939,IT Managed / Outsourced Services,BW Specialist Support,EC1N 8UA,93.75,
Communities & Local Government,DCLG,08/06/2017,IT - Service Contracts,Corporate Services,INTERQUEST GROUP UK LIMITED,,Large,,423935241,5106228939,IT Managed / Outsourced Services,BW Specialist Support for HR Project,EC1N 8UA,468.75,
Communities & Local Government,DCLG,08/06/2017,IT - Service Contracts,Local Government & Public Services,CAJA,,Micro,,,5106228940,IT Managed / Outsourced Services,Interim Manager,ST5 5NB,"8,245.00",
Communities & Local Government,DCLG,08/06/2017,IT - Software Maintenance,Corporate Services,METHODS CONSULTING LTD,,Medium,,505275578,5106228948,IT Managed / Outsourced Services,PIMS Support Charges-Second 3mth extens,EC1A 4EN,"24,000.00",
Communities & Local Government,DCLG,08/06/2017,IT - Software Maintenance,Corporate Services,SAP (UK) LTD,,Large,,396951675,5106228960,IT Managed / Outsourced Services,SAP Exhibit 7 Support 2017,TW14 8HD,"9,092.40",
Communities & Local Government,DCLG,08/06/2017,Legal Fees,Decentralisation and Local Growth,EUROPEAN INVESTMENT BANK,,Large,,,5106228942,Legal,Legal Advice,,"217,157.50",
Communities & Local Government,DCLG,08/06/2017,Legal Fees,Housing & Planning,HER MAJESTYS COURTS & TRIBUNAL SERV,,Public Bodies,,212437904,5106228956,Legal,Legal Advice,NP10 8FZ,"25,344.00",
Communities & Local Government,DCLG,08/06/2017,Legal Fees,Housing & Planning,HER MAJESTYS COURTS & TRIBUNAL SERV,,Public Bodies,,212437904,5106228957,Legal,Legal Advice,NP10 8FZ,"11,264.00",
Communities & Local Government,DCLG,08/06/2017,Physical Storage,Corporate Services,TNT UK LIMITED,,Large,,,5106228962,Warehousing and Storage,Offsite Records Storage FYR 17/18,BL10 9GR,"4,018.59",
Communities & Local Government,DCLG,08/06/2017,Printing,Corporate Services,STATIONERY OFFICE LTD,,Large,,779375633,5106228927,Printing Services,Statutory Instruments,NR3 1PD,295.00,
Communities & Local Government,DCLG,08/06/2017,Printing,Corporate Services,STATIONERY OFFICE LTD,,Large,,779375633,5106228928,Printing Services,Statutory Instruments,NR3 1PD,295.00,
Communities & Local Government,DCLG,08/06/2017,Printing,Corporate Services,STATIONERY OFFICE LTD,,Large,,779375633,5106228929,Printing Services,Statutory Instruments,NR3 1PD,295.00,
Communities & Local Government,DCLG,08/06/2017,Printing,Corporate Services,STATIONERY OFFICE LTD,,Large,,779375633,5106228931,Printing Services,Statutory Instruments,NR3 1PD,295.00,
Communities & Local Government,DCLG,08/06/2017,Printing,Corporate Services,STATIONERY OFFICE LTD,,Large,,779375633,5106228944,Printing Services,Statutory Instruments,NR3 1PD,295.00,
Communities & Local Government,DCLG,08/06/2017,Printing,Local Government & Public Services,WILLIAMS LEA LIMITED,,Large,,393456413,5106228958,Printing Services,"Printing, Design",NR3 1PD,"2,000.45",
Communities & Local Government,DCLG,08/06/2017,Printing,Local Government & Public Services,WILLIAMS LEA LIMITED,,Large,,393456413,5106228959,Printing Services,"Printing, Design",NR3 1PD,"1,451.60",
Communities & Local Government,DCLG,08/06/2017,Professional services,Corporate Services,CGI IT UK LTD,,Large,,548621010,5106228955,IT Managed / Outsourced Services,Implementation Services re:SAP-HR,CF31 9AP,"25,057.60",
Communities & Local Government,DCLG,08/06/2017,Publications,Corporate Services,JONES YARRELL LEADENHALL LTD,,Large,,505670265,5106228946,Learning and Development Materials,Newspapers and periodicals,E3 3JH,250.17,
Communities & Local Government,DCLG,08/06/2017,Research,Housing & Planning,BUILDING RESEARCH ESTABLISHMENT,,Large,,896495033,5106228947,Research,Contract extension,WD25 9XX,"5,104.00",
Communities & Local Government,DCLG,08/06/2017,Steady State Service Provision,Local Government & Public Services,VODAFONE LTD FORMELY CABLE  & WIREL,,Large,,239869688,5106228910,Business Process Outsourcing Services,Managed Internet Access Line,MK3 5JP,582.58,
Communities & Local Government,DCLG,08/06/2017,Training,Corporate Services,CIPFA BUSINESS LTD,,Large,,,5106228941,Development and Training,Civil Service Training,E1W 9LN,"1,300.00",
Communities & Local Government,DCLG,08/06/2017,Web Services,Corporate Services,DEXTROUS WEB LTD,,Micro,,211267270,5106228773,ICT Services,HO-Website Hosting & Support (x2 Years),N1 7NG,"1,285.44",
Communities & Local Government,DCLG,09/06/2017,Agency Staff,Corporate Services,BROOK STREET UK LTD,,Large,,364940028,5106228988,Contingent Labour,Interim Admin support,AL1 4JB,408.67,
Communities & Local Government,DCLG,09/06/2017,Agency Staff,Corporate Services,BROOK STREET UK LTD,,Large,,364940028,5106228997,Contingent Labour,Support worker for staff interim measure,AL1 4JB,577.25,
Communities & Local Government,DCLG,09/06/2017,Agency Staff,Corporate Services,BROOK STREET UK LTD,,Large,,364940028,5106228998,Contingent Labour,EO Reconciliation Clerk,AL1 4JB,543.38,
Communities & Local Government,DCLG,09/06/2017,Agency Staff,Decentralisation and Local Growth,BROOK STREET UK LTD,,Large,,364940028,5106228973,Contingent Labour,Temporary staff,AL1 4JB,670.67,
Communities & Local Government,DCLG,09/06/2017,Current (non AEF) Grants to Local Authorities,Housing & Planning,BARKING & DAGENHAM LB (HSG),,,,217142293,5000374313,,Custom Build Grant Local Authority,RM10 7BY,"15,000.00",Yes
Communities & Local Government,DCLG,09/06/2017,Current (non AEF) Grants to Local Authorities,Housing & Planning,BOSTON BC,,,,236417713,5000374314,,Custom Build Grant Local Authority,PE21 8QR,"15,000.00",Yes
Communities & Local Government,DCLG,09/06/2017,Current (non AEF) Grants to Local Authorities,Housing & Planning,BRADFORD MBC,,,,,5000374317,,Custom Build Grant Local Authority,BD1 1HX,"15,000.00",Yes
Communities & Local Government,DCLG,09/06/2017,Current (non AEF) Grants to Local Authorities,Housing & Planning,BRIGHTON & HOVE CITY COUNCIL,,Large,,228455218,5000374318,,Custom Build Grant Local Authority,BN3 2LS,"15,000.00",Yes
Communities & Local Government,DCLG,09/06/2017,Current (non AEF) Grants to Local Authorities,Housing & Planning,GREATER LONDON AUTHORITY,,Large,,,2100274198,,Fund VRtB compensation payments Pilot Qtr 1 17/18,SE1 2AA,"785,362.50",Yes
Communities & Local Government,DCLG,09/06/2017,Current (non AEF) Grants to Local Authorities,Housing & Planning,HALTON BC (HSG),,,,,5000374315,,Custom Build Grant Local Authority,WA8 7QF,"15,000.00",Yes
Communities & Local Government,DCLG,09/06/2017,Current (non AEF) Grants to Local Authorities,Housing & Planning,NORTH LINCOLNSHIRE DC (HSG),,Public Bodies,,424005502,5000374316,,Custom Build Grant Local Authority,DN16 1AB,"15,000.00",Yes
Communities & Local Government,DCLG,09/06/2017,Current (non AEF) Grants to Local Authorities,Housing & Planning,STOCKPORT MBC,,,,228706248,5000374319,,Custom Build Grant Local Authority,SK1 3XE,"15,000.00",Yes
Communities & Local Government,DCLG,09/06/2017,Current (non AEF) Grants to Local Authorities,Local Government & Public Services,BARNSLEY MBC,,Public Bodies,,211178595,2100274224,,CMF: Housing and Migration,S70 9GG,"210,000.00",Yes
Communities & Local Government,DCLG,09/06/2017,Current (non AEF) Grants to Local Authorities,Local Government & Public Services,BOLSOVER DISTRICT COUNCIL,,,,233408363,2100274220,,CMF: Building Resilience,S44 6NF,"671,826.00",Yes
Communities & Local Government,DCLG,09/06/2017,Current (non AEF) Grants to Local Authorities,Local Government & Public Services,BRADFORD MBC,,Public Bodies,,218122162,2100274225,,CMF: Changing Places,BD1 1HY,"670,000.00",Yes
Communities & Local Government,DCLG,09/06/2017,Current (non AEF) Grants to Local Authorities,Local Government & Public Services,BRISTOL CITY COUNCIL,,,,213039763,2100274221,,CMF various: Rough Slpers/Rogue LL/ESOL/V+V,BS2 8QX,"390,169.00",Yes
Communities & Local Government,DCLG,09/06/2017,Current (non AEF) Grants to Local Authorities,Local Government & Public Services,CALDERDALE MBC,,,,,2100274226,,CMF: Together Calderdale,HX1 1TP,"230,000.00",Yes
Communities & Local Government,DCLG,09/06/2017,Current (non AEF) Grants to Local Authorities,Local Government & Public Services,CARLISLE CITY COUNCIL,,Large,,227471059,2100274227,,CMF: Tackling Rogue Landlords,CA3 8BR,"44,000.00",Yes
Communities & Local Government,DCLG,09/06/2017,Current (non AEF) Grants to Local Authorities,Local Government & Public Services,FENLAND DC,,Large,,227476348,2100274228,,CMF: Migrant Outreach Service,PE15 8NQ,"42,800.00",Yes
Communities & Local Government,DCLG,09/06/2017,Current (non AEF) Grants to Local Authorities,Local Government & Public Services,LEEDS CITY COUNCIL,,Public Bodies,,,2100274229,,Standards and Expectations: Aiding Integration,LS1 3AD,"215,000.00",Yes
Communities & Local Government,DCLG,09/06/2017,Current (non AEF) Grants to Local Authorities,Local Government & Public Services,LINCOLN CITY COUNCIL,,,,,2100274230,,CMF: Tackling Lincoln s Rogue Landlords,LN1 1DH,"221,108.00",Yes
Communities & Local Government,DCLG,09/06/2017,Current (non AEF) Grants to Local Authorities,Local Government & Public Services,LONDON BOROUGH HACKNEY,,,,225221597,2100274223,,CMF: Integrated Communities,E8 4RU,"431,155.00",Yes
Communities & Local Government,DCLG,09/06/2017,Current (non AEF) Grants to Local Authorities,Local Government & Public Services,LONDON BOROUGH OF HARROW,,,,,2100274222,,CMF: Harrow Migration Fund,HA1 2DU,"197,880.00",Yes
Communities & Local Government,DCLG,09/06/2017,Current (non AEF) Grants to Local Authorities,Local Government & Public Services,LUTON BOROUGH COUNCIL,,Public Bodies,,,2100274231,,CMF: Tackling Rogue Landlords,LU1 2RD,"278,920.00",Yes
Communities & Local Government,DCLG,09/06/2017,Current (non AEF) Grants to Local Authorities,Local Government & Public Services,MIDDLESBROUGH BC,,Public Bodies,,,2100274232,,CMF various: Data/Education/Supporting Communities,TS1 1QP,"734,300.00",Yes
Communities & Local Government,DCLG,09/06/2017,Current (non AEF) Grants to Local Authorities,Local Government & Public Services,NORFOLK COUNTY COUNCIL,,Public Bodies,,232602789,2100274233,,CMF: Voluntary Repatriation Support Programme,NR1 2DH,"85,738.00",Yes
Communities & Local Government,DCLG,09/06/2017,Current (non AEF) Grants to Local Authorities,Local Government & Public Services,NOTTINGHAM CC,,Large,,238949358,2100274219,,CMF: Keeping the Balance,NG2 3NG,"1,187,762.00",Yes
Communities & Local Government,DCLG,09/06/2017,Current (non AEF) Grants to Local Authorities,Local Government & Public Services,STOCKPORT MBC,,,,,2100274234,,CMF: Stockport Stronger Together,SK1 3XE,"36,000.00",Yes
Communities & Local Government,DCLG,09/06/2017,Current (non AEF) Grants to Local Authorities,Local Government & Public Services,SUFFOLK COUNTY COUNCIL,,Large,,236445243,2100274235,,CMF: Integrated Services/ESOL,IP1 2BX,"121,000.00",Yes
Communities & Local Government,DCLG,09/06/2017,Current (non AEF) Grants to Local Authorities,Local Government & Public Services,SWINDON BC,,,,458639697,2100274218,,CMF: Tackling Rogue Landlords,SN1 2JH,"123,300.00",Yes
Communities & Local Government,DCLG,09/06/2017,Current (non AEF) Grants to Local Authorities,Local Government & Public Services,THANET DC,,Public Bodies,,,2100274236,,Rogue Landlord and Community Cohesion Task Force,CT8 1XZ,"282,870.00",Yes
Communities & Local Government,DCLG,09/06/2017,ERDF Work in Progress � Resource,Decentralisation and Local Growth,CHESHIRE WEST AND CHESTER COUNCIL,,Large,,,7700000465,,ERDF grant payment,CH1 2NP,"13,200.15",Yes
Communities & Local Government,DCLG,09/06/2017,ERDF Work in Progress � Resource,Decentralisation and Local Growth,EAST MIDLANDS BUSINESS LTD,,Small,,,7700000464,,ERDF grant payment,LE19 1RJ,"75,025.68",Yes
Communities & Local Government,DCLG,09/06/2017,IT - Software Maintenance,Corporate Services,LEIDOS,,Large,,399909910,5106228897,IT Managed / Outsourced Services,MCIS/TESA Application Support Extension,G3 8EP,"14,250.00",
Communities & Local Government,DCLG,09/06/2017,Physical Storage,Corporate Services,TNT UK LIMITED,,Large,,,5106228983,Warehousing and Storage,Offsite Records Storage FYR 17/18,BL10 9GR,"4,021.68",
Communities & Local Government,DCLG,09/06/2017,Physical Storage,Corporate Services,TNT UK LIMITED,,Large,,,5106228990,Warehousing and Storage,Offsite Records Storage FYR 17/18,BL10 9GR,876.06,
Communities & Local Government,DCLG,09/06/2017,Physical Storage,Corporate Services,TNT UK LIMITED,,Large,,,5106228991,Warehousing and Storage,Offsite Records Storage FYR 17/18,BL10 9GR,"30,103.77",
Communities & Local Government,DCLG,09/06/2017,Physical Storage,Corporate Services,TNT UK LIMITED,,Large,,,5106228992,Warehousing and Storage,Offsite Records Storage FYR 17/18,BL10 9GR,"1,535.70",
Communities & Local Government,DCLG,09/06/2017,Printing,Corporate Services,STATIONERY OFFICE LTD,,Large,,779375633,5106228969,Printing Services,Statutory Instruments,NR3 1PD,295.00,
Communities & Local Government,DCLG,09/06/2017,Printing,Corporate Services,STATIONERY OFFICE LTD,,Large,,779375633,5106228970,Printing Services,Statutory Instruments,NR3 1PD,295.00,
Communities & Local Government,DCLG,09/06/2017,Printing,Local Government & Public Services,WILLIAMS LEA LIMITED,,Large,,393456413,5106229003,Printing Services,"Printing, Design",NR3 1PD,"3,375.57",
Communities & Local Government,DCLG,09/06/2017,Printing,Local Government & Public Services,WILLIAMS LEA LIMITED,,Large,,393456413,5106229004,Printing Services,"Printing, Design",NR3 1PD,"1,094.91",
Communities & Local Government,DCLG,09/06/2017,Steady State Service Provision,Corporate Services,VODAFONE LTD FORMELY CABLE  & WIREL,,Large,,239869688,5106228981,Business Process Outsourcing Services,PSN WAN Services FY17/18,MK3 5JP,"32,677.73",
Communities & Local Government,DCLG,09/06/2017,Training,Corporate Services,CIVIL SERVICE COLLEGE LIMITED,,Small,,217536645,5106228978,Development and Training,Civil Service Training,SW1H 9BU,650.00,
Communities & Local Government,DCLG,09/06/2017,Training,Corporate Services,KORN FERRY HAY GROUP LTD,,Large,,,5106228964,Development and Training,Civil Service Training,SW1Y 6QB,"5,292.00",
Communities & Local Government,DCLG,12/06/2017,Accommodation - actuals,Corporate Services,REDFERN TRAVEL LIMITED,,Small,,213089972,2100274420,Business Travel Accommodation,Consolidated Monthly Travel May Hotels,BD1 3AZ,"1,800.79",
Communities & Local Government,DCLG,12/06/2017,Accommodation - actuals,Corporate Services,REDFERN TRAVEL LIMITED,,Small,,213089972,2100274420,Business Travel Accommodation,Consolidated Monthly Travel May Hotels,BD1 3AZ,509.15,
Communities & Local Government,DCLG,12/06/2017,Accommodation - actuals,Corporate Services,REDFERN TRAVEL LIMITED,,Small,,213089972,2100274420,Business Travel Accommodation,Consolidated Monthly Travel May Hotels,BD1 3AZ,410.00,
Communities & Local Government,DCLG,12/06/2017,Accommodation - actuals,Corporate Services,REDFERN TRAVEL LIMITED,,Small,,213089972,2100274420,Business Travel Accommodation,Consolidated Monthly Travel May Hotels,BD1 3AZ,"2,921.50",
Communities & Local Government,DCLG,12/06/2017,Accommodation - actuals,Decentralisation and Local Growth,REDFERN TRAVEL LIMITED,,Small,,213089972,2100274420,Business Travel Accommodation,Consolidated Monthly Travel May Hotels,BD1 3AZ,"1,807.10",
Communities & Local Government,DCLG,12/06/2017,Accommodation - actuals,Decentralisation and Local Growth,REDFERN TRAVEL LIMITED,,Small,,213089972,2100274420,Business Travel Accommodation,Consolidated Monthly Travel May Hotels,BD1 3AZ,264.86,
Communities & Local Government,DCLG,12/06/2017,Accommodation - actuals,Decentralisation and Local Growth,REDFERN TRAVEL LIMITED,,Small,,213089972,2100274420,Business Travel Accommodation,Consolidated Monthly Travel May Hotels,BD1 3AZ,271.37,
Communities & Local Government,DCLG,12/06/2017,Accommodation - actuals,Decentralisation and Local Growth,REDFERN TRAVEL LIMITED,,Small,,213089972,2100274420,Business Travel Accommodation,Consolidated Monthly Travel May Hotels,BD1 3AZ,412.00,
Communities & Local Government,DCLG,12/06/2017,Accommodation - actuals,Decentralisation and Local Growth,REDFERN TRAVEL LIMITED,,Small,,213089972,2100274420,Business Travel Accommodation,Consolidated Monthly Travel May Hotels,BD1 3AZ,"2,467.52",
Communities & Local Government,DCLG,12/06/2017,Accommodation - actuals,Decentralisation and Local Growth,REDFERN TRAVEL LIMITED,,Small,,213089972,2100274420,Business Travel Accommodation,Consolidated Monthly Travel May Hotels,BD1 3AZ,634.14,
Communities & Local Government,DCLG,12/06/2017,Accommodation - actuals,Decentralisation and Local Growth,REDFERN TRAVEL LIMITED,,Small,,213089972,2100274420,Business Travel Accommodation,Consolidated Monthly Travel May Hotels,BD1 3AZ,"1,127.46",
Communities & Local Government,DCLG,12/06/2017,Accommodation - actuals,Housing & Planning,REDFERN TRAVEL LIMITED,,Small,,213089972,2100274420,Business Travel Accommodation,Consolidated Monthly Travel May Hotels,BD1 3AZ,359.34,
Communities & Local Government,DCLG,12/06/2017,Accommodation - actuals,Housing & Planning,REDFERN TRAVEL LIMITED,,Small,,213089972,2100274420,Business Travel Accommodation,Consolidated Monthly Travel May Hotels,BD1 3AZ,543.21,
Communities & Local Government,DCLG,12/06/2017,Accommodation - actuals,Housing & Planning,REDFERN TRAVEL LIMITED,,Small,,213089972,2100274420,Business Travel Accommodation,Consolidated Monthly Travel May Hotels,BD1 3AZ,402.24,
Communities & Local Government,DCLG,12/06/2017,Accommodation - actuals,Housing & Planning,REDFERN TRAVEL LIMITED,,Small,,213089972,2100274420,Business Travel Accommodation,Consolidated Monthly Travel May Hotels,BD1 3AZ,513.00,
Communities & Local Government,DCLG,12/06/2017,Accommodation - actuals,Housing & Planning,REDFERN TRAVEL LIMITED,,Small,,213089972,2100274420,Business Travel Accommodation,Consolidated Monthly Travel May Hotels,BD1 3AZ,640.68,
Communities & Local Government,DCLG,12/06/2017,Accommodation - actuals,Local Government & Public Services,REDFERN TRAVEL LIMITED,,Small,,213089972,2100274420,Business Travel Accommodation,Consolidated Monthly Travel May Hotels,BD1 3AZ,687.81,
Communities & Local Government,DCLG,12/06/2017,Accommodation - actuals,Local Government & Public Services,REDFERN TRAVEL LIMITED,,Small,,213089972,2100274420,Business Travel Accommodation,Consolidated Monthly Travel May Hotels,BD1 3AZ,358.86,
Communities & Local Government,DCLG,12/06/2017,Accommodation - actuals,Local Government & Public Services,REDFERN TRAVEL LIMITED,,Small,,213089972,2100274420,Business Travel Accommodation,Consolidated Monthly Travel May Hotels,BD1 3AZ,413.51,
Communities & Local Government,DCLG,12/06/2017,Accommodation - actuals,Local Government & Public Services,REDFERN TRAVEL LIMITED,,Small,,213089972,2100274420,Business Travel Accommodation,Consolidated Monthly Travel May Hotels,BD1 3AZ,534.00,
Communities & Local Government,DCLG,12/06/2017,Accommodation - actuals,Local Government & Public Services,REDFERN TRAVEL LIMITED,,Small,,213089972,2100274420,Business Travel Accommodation,Consolidated Monthly Travel May Hotels,BD1 3AZ,370.66,
Communities & Local Government,DCLG,12/06/2017,Agency Staff,Corporate Services,CAPITA BUS. SERV. LTD (CON LAB),,Large,,,5106229006,Contingent Labour,Interim Manager,DL1 9WQ,"9,900.00",
Communities & Local Government,DCLG,12/06/2017,Agency Staff,Corporate Services,CAPITA BUS. SERV. LTD (CON LAB),,Large,,,5106229007,Contingent Labour,Interim Manager,DL1 9WQ,"2,355.36",
Communities & Local Government,DCLG,12/06/2017,Agency Staff,Corporate Services,CAPITA BUS. SERV. LTD (CON LAB),,Large,,,5106229009,Contingent Labour,Interim Manager,DL1 9WQ,"8,391.43",
Communities & Local Government,DCLG,12/06/2017,Agency Staff,Decentralisation and Local Growth,CAPITA BUS. SERV. LTD (CON LAB),,Large,,,5106229010,Contingent Labour,Interim Manager,DL1 9WQ,"1,227.40",
Communities & Local Government,DCLG,12/06/2017,Agency Staff,Local Government & Public Services,CAPITA BUS. SERV. LTD (CON LAB),,Large,,,5106229008,Contingent Labour,Interim Manager,DL1 9WQ,"3,327.91",
Communities & Local Government,DCLG,12/06/2017,Air Travel,Decentralisation and Local Growth,REDFERN TRAVEL LIMITED,,Small,,213089972,2100274420,Air,Consolidated Monthly Travel May Air Tickets,BD1 3AZ,"1,323.17",
Communities & Local Government,DCLG,12/06/2017,Air Travel,Decentralisation and Local Growth,REDFERN TRAVEL LIMITED,,Small,,213089972,2100274420,Air,Consolidated Monthly Travel May Air Tickets,BD1 3AZ,"1,152.03",
Communities & Local Government,DCLG,12/06/2017,Air Travel,Housing & Planning,REDFERN TRAVEL LIMITED,,Small,,213089972,2100274420,Air,Consolidated Monthly Travel May Air Tickets,BD1 3AZ,260.10,
Communities & Local Government,DCLG,12/06/2017,Air Travel,Housing & Planning,REDFERN TRAVEL LIMITED,,Small,,213089972,2100274420,Air,Consolidated Monthly Travel May Air Tickets,BD1 3AZ,302.00,
Communities & Local Government,DCLG,12/06/2017,Air Travel,Local Government & Public Services,REDFERN TRAVEL LIMITED,,Small,,213089972,2100274420,Air,Consolidated Monthly Travel May Air Tickets,BD1 3AZ,252.37,
Communities & Local Government,DCLG,12/06/2017,Catering,Housing & Planning,LIVERPOOL FOOTBALL CLUB,,Large,,,5106229020,Business Support,Community Workshop,L3 9AG,249.98,
Communities & Local Government,DCLG,12/06/2017,Grant in Aid to NDPBs (non budget),Housing & Planning,HOMES & COMMUNITIES AGENCY,,Public Bodies,,215576860,2100274425,,HCA June 17 Grant in Aid payment,NE11 0NA,"371,483,171.00",Yes
Communities & Local Government,DCLG,12/06/2017,Professional services,Local Government & Public Services,STUDIO LIBESKIND,,Small,,,5106229024,Financial,UKHMF Honorarium,10038,"15,000.00",
Communities & Local Government,DCLG,12/06/2017,Publications,Corporate Services,JONES YARRELL LEADENHALL LTD,,Large,,505670265,5106229023,Learning and Development Materials,Publications,E3 3JH,427.33,
Communities & Local Government,DCLG,12/06/2017,"Rail, Underground and Eurostar",Casey Review,REDFERN TRAVEL LIMITED,,Small,,213089972,2100274420,Rail,Consolidated Monthly Travel May Rail,BD1 3AZ,341.00,
Communities & Local Government,DCLG,12/06/2017,"Rail, Underground and Eurostar",Corporate Services,REDFERN TRAVEL LIMITED,,Small,,213089972,2100274420,Rail,Consolidated Monthly Travel May Rail,BD1 3AZ,"9,114.06",
Communities & Local Government,DCLG,12/06/2017,"Rail, Underground and Eurostar",Corporate Services,REDFERN TRAVEL LIMITED,,Small,,213089972,2100274420,Rail,Consolidated Monthly Travel May Rail,BD1 3AZ,"1,856.45",
Communities & Local Government,DCLG,12/06/2017,"Rail, Underground and Eurostar",Corporate Services,REDFERN TRAVEL LIMITED,,Small,,213089972,2100274420,Rail,Consolidated Monthly Travel May Rail,BD1 3AZ,505.72,
Communities & Local Government,DCLG,12/06/2017,"Rail, Underground and Eurostar",Corporate Services,REDFERN TRAVEL LIMITED,,Small,,213089972,2100274420,Rail,Consolidated Monthly Travel May Rail,BD1 3AZ,"1,515.60",
Communities & Local Government,DCLG,12/06/2017,"Rail, Underground and Eurostar",Corporate Services,REDFERN TRAVEL LIMITED,,Small,,213089972,2100274420,Rail,Consolidated Monthly Travel May Rail,BD1 3AZ,"1,331.90",
Communities & Local Government,DCLG,12/06/2017,"Rail, Underground and Eurostar",Corporate Services,REDFERN TRAVEL LIMITED,,Small,,213089972,2100274420,Rail,Consolidated Monthly Travel May Rail,BD1 3AZ,271.20,
Communities & Local Government,DCLG,12/06/2017,"Rail, Underground and Eurostar",Corporate Services,REDFERN TRAVEL LIMITED,,Small,,213089972,2100274420,Rail,Consolidated Monthly Travel May Rail,BD1 3AZ,607.00,
Communities & Local Government,DCLG,12/06/2017,"Rail, Underground and Eurostar",Corporate Services,REDFERN TRAVEL LIMITED,,Small,,213089972,2100274420,Rail,Consolidated Monthly Travel May Rail,BD1 3AZ,300.15,
Communities & Local Government,DCLG,12/06/2017,"Rail, Underground and Eurostar",Corporate Services,REDFERN TRAVEL LIMITED,,Small,,213089972,2100274420,Rail,Consolidated Monthly Travel May Rail,BD1 3AZ,"1,646.10",
Communities & Local Government,DCLG,12/06/2017,"Rail, Underground and Eurostar",Decentralisation and Local Growth,REDFERN TRAVEL LIMITED,,Small,,213089972,2100274420,Rail,Consolidated Monthly Travel May Rail,BD1 3AZ,469.50,
Communities & Local Government,DCLG,12/06/2017,"Rail, Underground and Eurostar",Decentralisation and Local Growth,REDFERN TRAVEL LIMITED,,Small,,213089972,2100274420,Rail,Consolidated Monthly Travel May Rail,BD1 3AZ,"1,240.45",
Communities & Local Government,DCLG,12/06/2017,"Rail, Underground and Eurostar",Decentralisation and Local Growth,REDFERN TRAVEL LIMITED,,Small,,213089972,2100274420,Rail,Consolidated Monthly Travel May Rail,BD1 3AZ,"1,646.10",
Communities & Local Government,DCLG,12/06/2017,"Rail, Underground and Eurostar",Decentralisation and Local Growth,REDFERN TRAVEL LIMITED,,Small,,213089972,2100274420,Rail,Consolidated Monthly Travel May Rail,BD1 3AZ,"2,272.00",
Communities & Local Government,DCLG,12/06/2017,"Rail, Underground and Eurostar",Decentralisation and Local Growth,REDFERN TRAVEL LIMITED,,Small,,213089972,2100274420,Rail,Consolidated Monthly Travel May Rail,BD1 3AZ,"4,704.00",
Communities & Local Government,DCLG,12/06/2017,"Rail, Underground and Eurostar",Decentralisation and Local Growth,REDFERN TRAVEL LIMITED,,Small,,213089972,2100274420,Rail,Consolidated Monthly Travel May Rail,BD1 3AZ,"2,077.10",
Communities & Local Government,DCLG,12/06/2017,"Rail, Underground and Eurostar",Decentralisation and Local Growth,REDFERN TRAVEL LIMITED,,Small,,213089972,2100274420,Rail,Consolidated Monthly Travel May Rail,BD1 3AZ,"1,946.35",
Communities & Local Government,DCLG,12/06/2017,"Rail, Underground and Eurostar",Decentralisation and Local Growth,REDFERN TRAVEL LIMITED,,Small,,213089972,2100274420,Rail,Consolidated Monthly Travel May Rail,BD1 3AZ,"2,221.60",
Communities & Local Government,DCLG,12/06/2017,"Rail, Underground and Eurostar",Decentralisation and Local Growth,REDFERN TRAVEL LIMITED,,Small,,213089972,2100274420,Rail,Consolidated Monthly Travel May Rail,BD1 3AZ,"1,324.70",
Communities & Local Government,DCLG,12/06/2017,"Rail, Underground and Eurostar",Decentralisation and Local Growth,REDFERN TRAVEL LIMITED,,Small,,213089972,2100274420,Rail,Consolidated Monthly Travel May Rail,BD1 3AZ,"2,504.96",
Communities & Local Government,DCLG,12/06/2017,"Rail, Underground and Eurostar",Decentralisation and Local Growth,REDFERN TRAVEL LIMITED,,Small,,213089972,2100274420,Rail,Consolidated Monthly Travel May Rail,BD1 3AZ,"2,701.25",
Communities & Local Government,DCLG,12/06/2017,"Rail, Underground and Eurostar",Decentralisation and Local Growth,REDFERN TRAVEL LIMITED,,Small,,213089972,2100274420,Rail,Consolidated Monthly Travel May Rail,BD1 3AZ,920.60,
Communities & Local Government,DCLG,12/06/2017,"Rail, Underground and Eurostar",Decentralisation and Local Growth,REDFERN TRAVEL LIMITED,,Small,,213089972,2100274420,Rail,Consolidated Monthly Travel May Rail,BD1 3AZ,"1,194.00",
Communities & Local Government,DCLG,12/06/2017,"Rail, Underground and Eurostar",Decentralisation and Local Growth,REDFERN TRAVEL LIMITED,,Small,,213089972,2100274420,Rail,Consolidated Monthly Travel May Rail,BD1 3AZ,915.60,
Communities & Local Government,DCLG,12/06/2017,"Rail, Underground and Eurostar",Decentralisation and Local Growth,REDFERN TRAVEL LIMITED,,Small,,213089972,2100274420,Rail,Consolidated Monthly Travel May Rail,BD1 3AZ,"1,261.20",
Communities & Local Government,DCLG,12/06/2017,"Rail, Underground and Eurostar",Decentralisation and Local Growth,REDFERN TRAVEL LIMITED,,Small,,213089972,2100274420,Rail,Consolidated Monthly Travel May Rail,BD1 3AZ,"4,494.75",
Communities & Local Government,DCLG,12/06/2017,"Rail, Underground and Eurostar",Decentralisation and Local Growth,REDFERN TRAVEL LIMITED,,Small,,213089972,2100274420,Rail,Consolidated Monthly Travel May Rail,BD1 3AZ,753.50,
Communities & Local Government,DCLG,12/06/2017,"Rail, Underground and Eurostar",Decentralisation and Local Growth,REDFERN TRAVEL LIMITED,,Small,,213089972,2100274420,Rail,Consolidated Monthly Travel May Rail,BD1 3AZ,705.80,
Communities & Local Government,DCLG,12/06/2017,"Rail, Underground and Eurostar",Decentralisation and Local Growth,REDFERN TRAVEL LIMITED,,Small,,213089972,2100274420,Rail,Consolidated Monthly Travel May Rail,BD1 3AZ,"4,471.45",
Communities & Local Government,DCLG,12/06/2017,"Rail, Underground and Eurostar",Decentralisation and Local Growth,REDFERN TRAVEL LIMITED,,Small,,213089972,2100274420,Rail,Consolidated Monthly Travel May Rail,BD1 3AZ,363.90,
Communities & Local Government,DCLG,12/06/2017,"Rail, Underground and Eurostar",Decentralisation and Local Growth,REDFERN TRAVEL LIMITED,,Small,,213089972,2100274420,Rail,Consolidated Monthly Travel May Rail,BD1 3AZ,720.10,
Communities & Local Government,DCLG,12/06/2017,"Rail, Underground and Eurostar",Housing & Planning,REDFERN TRAVEL LIMITED,,Small,,213089972,2100274420,Rail,Consolidated Monthly Travel May Rail,BD1 3AZ,306.40,
Communities & Local Government,DCLG,12/06/2017,"Rail, Underground and Eurostar",Housing & Planning,REDFERN TRAVEL LIMITED,,Small,,213089972,2100274420,Rail,Consolidated Monthly Travel May Rail,BD1 3AZ,428.46,
Communities & Local Government,DCLG,12/06/2017,"Rail, Underground and Eurostar",Housing & Planning,REDFERN TRAVEL LIMITED,,Small,,213089972,2100274420,Rail,Consolidated Monthly Travel May Rail,BD1 3AZ,"2,347.10",
Communities & Local Government,DCLG,12/06/2017,"Rail, Underground and Eurostar",Housing & Planning,REDFERN TRAVEL LIMITED,,Small,,213089972,2100274420,Rail,Consolidated Monthly Travel May Rail,BD1 3AZ,"1,073.00",
Communities & Local Government,DCLG,12/06/2017,"Rail, Underground and Eurostar",Housing & Planning,REDFERN TRAVEL LIMITED,,Small,,213089972,2100274420,Rail,Consolidated Monthly Travel May Rail,BD1 3AZ,"3,538.25",
Communities & Local Government,DCLG,12/06/2017,"Rail, Underground and Eurostar",Housing & Planning,REDFERN TRAVEL LIMITED,,Small,,213089972,2100274420,Rail,Consolidated Monthly Travel May Rail,BD1 3AZ,901.50,
Communities & Local Government,DCLG,12/06/2017,"Rail, Underground and Eurostar",Housing & Planning,REDFERN TRAVEL LIMITED,,Small,,213089972,2100274420,Rail,Consolidated Monthly Travel May Rail,BD1 3AZ,"2,596.70",
Communities & Local Government,DCLG,12/06/2017,"Rail, Underground and Eurostar",Housing & Planning,REDFERN TRAVEL LIMITED,,Small,,213089972,2100274420,Rail,Consolidated Monthly Travel May Rail,BD1 3AZ,600.00,
Communities & Local Government,DCLG,12/06/2017,"Rail, Underground and Eurostar",Housing & Planning,REDFERN TRAVEL LIMITED,,Small,,213089972,2100274420,Rail,Consolidated Monthly Travel May Rail,BD1 3AZ,884.20,
Communities & Local Government,DCLG,12/06/2017,"Rail, Underground and Eurostar",Housing & Planning,REDFERN TRAVEL LIMITED,,Small,,213089972,2100274420,Rail,Consolidated Monthly Travel May Rail,BD1 3AZ,581.70,
Communities & Local Government,DCLG,12/06/2017,"Rail, Underground and Eurostar",Housing & Planning,REDFERN TRAVEL LIMITED,,Small,,213089972,2100274420,Rail,Consolidated Monthly Travel May Rail,BD1 3AZ,679.65,
Communities & Local Government,DCLG,12/06/2017,"Rail, Underground and Eurostar",Local Government & Public Services,REDFERN TRAVEL LIMITED,,Small,,213089972,2100274420,Rail,Consolidated Monthly Travel May Rail,BD1 3AZ,"1,479.65",
Communities & Local Government,DCLG,12/06/2017,"Rail, Underground and Eurostar",Local Government & Public Services,REDFERN TRAVEL LIMITED,,Small,,213089972,2100274420,Rail,Consolidated Monthly Travel May Rail,BD1 3AZ,"1,266.18",
Communities & Local Government,DCLG,12/06/2017,"Rail, Underground and Eurostar",Local Government & Public Services,REDFERN TRAVEL LIMITED,,Small,,213089972,2100274420,Rail,Consolidated Monthly Travel May Rail,BD1 3AZ,"2,427.96",
Communities & Local Government,DCLG,12/06/2017,"Rail, Underground and Eurostar",Local Government & Public Services,REDFERN TRAVEL LIMITED,,Small,,213089972,2100274420,Rail,Consolidated Monthly Travel May Rail,BD1 3AZ,557.80,
Communities & Local Government,DCLG,12/06/2017,"Rail, Underground and Eurostar",Local Government & Public Services,REDFERN TRAVEL LIMITED,,Small,,213089972,2100274420,Rail,Consolidated Monthly Travel May Rail,BD1 3AZ,510.75,
Communities & Local Government,DCLG,12/06/2017,"Rail, Underground and Eurostar",Local Government & Public Services,REDFERN TRAVEL LIMITED,,Small,,213089972,2100274420,Rail,Consolidated Monthly Travel May Rail,BD1 3AZ,894.50,
Communities & Local Government,DCLG,12/06/2017,"Rail, Underground and Eurostar",Local Government & Public Services,REDFERN TRAVEL LIMITED,,Small,,213089972,2100274420,Rail,Consolidated Monthly Travel May Rail,BD1 3AZ,494.55,
Communities & Local Government,DCLG,12/06/2017,"Rail, Underground and Eurostar",Local Government & Public Services,REDFERN TRAVEL LIMITED,,Small,,213089972,2100274420,Rail,Consolidated Monthly Travel May Rail,BD1 3AZ,361.56,
Communities & Local Government,DCLG,12/06/2017,"Rail, Underground and Eurostar",Local Government & Public Services,REDFERN TRAVEL LIMITED,,Small,,213089972,2100274420,Rail,Consolidated Monthly Travel May Rail,BD1 3AZ,"1,166.65",
Communities & Local Government,DCLG,12/06/2017,"Rail, Underground and Eurostar",Local Government & Public Services,REDFERN TRAVEL LIMITED,,Small,,213089972,2100274420,Rail,Consolidated Monthly Travel May Rail,BD1 3AZ,"4,328.20",
Communities & Local Government,DCLG,12/06/2017,"Rail, Underground and Eurostar",Local Government & Public Services,REDFERN TRAVEL LIMITED,,Small,,213089972,2100274420,Rail,Consolidated Monthly Travel May Rail,BD1 3AZ,"1,932.50",
Communities & Local Government,DCLG,12/06/2017,"Rail, Underground and Eurostar",Local Government & Public Services,REDFERN TRAVEL LIMITED,,Small,,213089972,2100274420,Rail,Consolidated Monthly Travel May Rail,BD1 3AZ,"2,980.80",
Communities & Local Government,DCLG,12/06/2017,"Rail, Underground and Eurostar",Local Government & Public Services,REDFERN TRAVEL LIMITED,,Small,,213089972,2100274420,Rail,Consolidated Monthly Travel May Rail,BD1 3AZ,"1,595.50",
Communities & Local Government,DCLG,12/06/2017,"Rail, Underground and Eurostar",Local Government & Public Services,REDFERN TRAVEL LIMITED,,Small,,213089972,2100274420,Rail,Consolidated Monthly Travel May Rail,BD1 3AZ,716.26,
Communities & Local Government,DCLG,12/06/2017,"Rail, Underground and Eurostar",Local Government & Public Services,REDFERN TRAVEL LIMITED,,Small,,213089972,2100274420,Rail,Consolidated Monthly Travel May Rail,BD1 3AZ,284.50,
Communities & Local Government,DCLG,12/06/2017,Steady State Service Provision,Corporate Services,ALLPAY LIMITED,,Medium,,738359918,5106229013,Business Process Outsourcing Services,BACS Processing Services,HR1 3SE,771.88,
Communities & Local Government,DCLG,12/06/2017,Travel and Subsistence Account,Decentralisation and Local Growth,REDFERN TRAVEL LIMITED,,Small,,213089972,2100274420,Business Travel,Consolidated Monthly Travel May Misc T&S,BD1 3AZ,"1,161.28",
Communities & Local Government,DCLG,13/06/2017,Agency Staff,Corporate Services,BROOK STREET UK LTD,,Large,,364940028,5106229050,Contingent Labour,Temporary Admin Support,AL1 4JB,407.88,
Communities & Local Government,DCLG,13/06/2017,Agency Staff,Corporate Services,BROOK STREET UK LTD,,Large,,364940028,5106229057,Contingent Labour,Temporary worker (PC&C DIary Manager),AL1 4JB,444.96,
Communities & Local Government,DCLG,13/06/2017,Current Grants to Non Profit Bodies,Housing & Planning,IMPROVEMENT & DEVELOPMENT AGENCY,Yes,Public Bodies,,236810359,2100274344,,Grant to cover cost of administering PAS,EC1M 5LG,"350,627.58",Yes
Communities & Local Government,DCLG,13/06/2017,ERDF Work in Progress � Capital,Decentralisation and Local Growth,SPEKE BUSINESS PARK LTD,,,,,2300002524,,ERDF grant repayment,BB9 5SP,"-72,941.37",Yes
Communities & Local Government,DCLG,13/06/2017,ERDF Work in Progress � Capital,Decentralisation and Local Growth,SWMAS LTD,,Small,,,7700000474,,ERDF grant payment,TA6 4FJ,"34,499.50",Yes
Communities & Local Government,DCLG,13/06/2017,ERDF Work in Progress � Resource,Decentralisation and Local Growth,KNOWLEDGE TRANSFER NETWORK LIMITED,,,,,7700000471,,ERDF grant payment,N1 0QH,"27,589.95",Yes
Communities & Local Government,DCLG,13/06/2017,ERDF Work in Progress � Resource,Decentralisation and Local Growth,MEDILINK EAST MIDLANDS,,Small,,,7700000470,,ERDF grant payment,NG1 1GF,"23,679.81",Yes
Communities & Local Government,DCLG,13/06/2017,ERDF Work in Progress � Resource,Decentralisation and Local Growth,SUFFOLK COUNTY COUNCIL,,Large,,,7700000473,,ERDF grant payment,IP1 2BX,"62,570.88",Yes
Communities & Local Government,DCLG,13/06/2017,ERDF Work in Progress � Resource,Decentralisation and Local Growth,SWMAS LTD,,Small,,,7700000474,,ERDF grant payment,TA6 4FJ,"73,814.71",Yes
Communities & Local Government,DCLG,13/06/2017,ERDF Work in Progress � Resource,Decentralisation and Local Growth,UNIVERSITY OF CENTRAL LANCASHIRE,,Large,,,7700000466,,ERDF grant payment,PR7 7DL,"20,908.50",Yes
Communities & Local Government,DCLG,13/06/2017,ERDF Work in Progress � Resource,Decentralisation and Local Growth,UNIVERSITY OF CENTRAL LANCASHIRE,,Large,,,7700000467,,ERDF grant payment,PR7 7DL,"13,814.06",Yes
Communities & Local Government,DCLG,13/06/2017,ERDF Work in Progress � Resource,Decentralisation and Local Growth,UNIVERSITY OF CENTRAL LANCASHIRE,,Large,,,7700000468,,ERDF grant payment,PR7 7DL,"56,083.66",Yes
Communities & Local Government,DCLG,13/06/2017,ERDF Work in Progress � Resource,Decentralisation and Local Growth,UNIVERSITY OF CENTRAL LANCASHIRE,,Large,,,7700000469,,ERDF grant payment,PR7 7DL,"77,832.88",Yes
Communities & Local Government,DCLG,13/06/2017,ERDF Work in Progress � Resource,Decentralisation and Local Growth,UNIVERSITY OF WOLVERHAMPTON,,,,,7700000472,,ERDF grant payment,WV1 1LY,"30,749.48",Yes
Communities & Local Government,DCLG,13/06/2017,IT - Service Contracts,Corporate Services,DAISY CORPORATE SERVICES LTD,,Large,,221481042,5106229078,IT Managed / Outsourced Services,FY16/17 Transition Costs Capital,BB9 5SR,"5,989.10",
Communities & Local Government,DCLG,13/06/2017,IT - Service Contracts,Corporate Services,DAISY CORPORATE SERVICES LTD,,Large,,221481042,5106229078,IT Managed / Outsourced Services,FY16/17 Transition Costs Resource,BB9 5SR,"3,368.88",
Communities & Local Government,DCLG,13/06/2017,IT - Service Contracts,Corporate Services,GROUNDWORK UK,Yes,,,739193758,5106229055,IT Managed / Outsourced Services,Lot 2 Grant Administration  - Amend 3,B1 2RR,"11,900.92",
Communities & Local Government,DCLG,13/06/2017,IT - Service Contracts,Corporate Services,GROUNDWORK UK,Yes,,,739193758,5106229058,IT Managed / Outsourced Services,Lot 2 Grant Administration  - Amend 3,B1 2RR,"11,900.92",
Communities & Local Government,DCLG,13/06/2017,IT - Service Contracts,Corporate Services,ICASEWORK LTD,,Large,,,5106229077,IT Managed / Outsourced Services,DispatchBox Year 2 Service Charges,NW6 7SG,"5,060.00",
Communities & Local Government,DCLG,13/06/2017,Recruitment,Corporate Services,HM REVENUE & CUSTOMS,,Public Bodies,,365117972,5106229048,Business Process Outsourcing Services,CS E-Recruitment (until 2018.19),BN12 4XH,"5,895.84",
Communities & Local Government,DCLG,13/06/2017,Research,Corporate Services,TNS UK LTD,Yes,Large,,230399040,5106228602,Research,Mayoral Elections 2017,W5 1UA,"24,843.50",
Communities & Local Government,DCLG,13/06/2017,Training,Corporate Services,CAPITA BUS. SERV. LTD (CSL),,Large,,215580993,5106229051,Development and Training,Civil Service Training,DL1 9HB,681.82,
Communities & Local Government,DCLG,13/06/2017,Training,Corporate Services,KPMG LLP (CSL),,Large,,,5106229029,Development and Training,Civil Service Training,E14 5GL,249.00,
Communities & Local Government,DCLG,13/06/2017,Training,Corporate Services,KPMG LLP (CSL),,Large,,,5106229047,Development and Training,Civil Service Training,E14 5GL,"5,340.00",
Communities & Local Government,DCLG,13/06/2017,Training,Corporate Services,KPMG LLP (CSL),,Large,,,5106229049,Development and Training,Civil Service Training,E14 5GL,"2,500.00",
Communities & Local Government,DCLG,13/06/2017,Training,Corporate Services,KPMG LLP (CSL),,Large,,,5106229073,Development and Training,Civil Service Training,E14 5GL,229.00,
Communities & Local Government,DCLG,13/06/2017,Training,Local Government & Public Services,CAPITA BUS. SERV. LTD (CSL),,Large,,215580993,5106229030,Development and Training,Civil Service Training,DL1 9HB,350.00,
Communities & Local Government,DCLG,14/06/2017,Advertising,Corporate Services,CARAT LTD,,Large,,211589882,5106229100,Advertising,Digital online Display Advert,NW1 3BF,489.46,
Communities & Local Government,DCLG,14/06/2017,Agency Staff,Corporate Services,BROOK STREET UK LTD,,Large,,364940028,5106229102,Contingent Labour,Temporary Admin Support,AL1 4JB,496.87,
Communities & Local Government,DCLG,14/06/2017,Agency Staff,Corporate Services,BROOK STREET UK LTD,,Large,,364940028,5106229103,Contingent Labour,Temporary worker (PC&C DIary Manager),AL1 4JB,598.76,
Communities & Local Government,DCLG,14/06/2017,Current (non AEF) Grants to Local Authorities,Housing & Planning,SOUTH YORKS PENSIONS AUTHORITY,,,,232568295,2100274426,,Rent Officer Pensions refund 17/18,S70 2HG,359.23,Yes
Communities & Local Government,DCLG,14/06/2017,ERDF Work in Progress � Capital,Decentralisation and Local Growth,EAST MIDLANDS BUSINESS LTD,,Small,,,7700000482,,ERDF grant payment,LE19 1RJ,"95,295.45",Yes
Communities & Local Government,DCLG,14/06/2017,ERDF Work in Progress � Capital,Decentralisation and Local Growth,UNIVERSITY OF NOTTINGHAM,,,,,7700000477,,ERDF grant payment,NG7 2TU,"32,604.88",Yes
Communities & Local Government,DCLG,14/06/2017,ERDF Work in Progress � Resource,Decentralisation and Local Growth,BUSINESS LINK NORTH WEST,,Medium,,,2300002679,,ERDF grant repayment,M3 3HF,"-6,621.76",Yes
Communities & Local Government,DCLG,14/06/2017,ERDF Work in Progress � Resource,Decentralisation and Local Growth,CORNWALL MARINE NETWORK LTD,,Small,,,7700000481,,ERDF grant payment,TR11 4SZ,"10,547.50",Yes
Communities & Local Government,DCLG,14/06/2017,ERDF Work in Progress � Resource,Decentralisation and Local Growth,DEPT FOR BUSINESS INNOVATION & SKIL,,,,,2300002566,,ERDF grant repayment,SW1H 0ET,"-1,737.45",Yes
Communities & Local Government,DCLG,14/06/2017,ERDF Work in Progress � Resource,Decentralisation and Local Growth,DEPT FOR BUSINESS INNOVATION & SKIL,,,,,2300002680,,ERDF grant repayment,SW1H 0ET,-275.06,Yes
Communities & Local Government,DCLG,14/06/2017,ERDF Work in Progress � Resource,Decentralisation and Local Growth,DEPT FOR BUSINESS INNOVATION & SKIL,,,,,2300002780,,ERDF grant write-off,SW1H 0ET,"-527,302.64",Yes
Communities & Local Government,DCLG,14/06/2017,ERDF Work in Progress � Resource,Decentralisation and Local Growth,DEPT FOR BUSINESS INNOVATION & SKIL,,,,,2300002805,,ERDF grant misposting,SW1H 0ET,"-1,753.16",Yes
Communities & Local Government,DCLG,14/06/2017,ERDF Work in Progress � Resource,Decentralisation and Local Growth,EAST MIDLANDS BUSINESS LTD,,Small,,,7700000482,,ERDF grant payment,LE19 1RJ,"76,003.32",Yes
Communities & Local Government,DCLG,14/06/2017,ERDF Work in Progress � Resource,Decentralisation and Local Growth,EAST MIDLANDS BUSINESS LTD,,Small,,,7700000483,,ERDF grant payment,LE19 1RJ,"83,131.62",Yes
Communities & Local Government,DCLG,14/06/2017,ERDF Work in Progress � Resource,Decentralisation and Local Growth,HEREFORDSHIRE COUNCIL,,,,,7700000484,,ERDF grant payment,HR1 0LE,"8,423.76",Yes
Communities & Local Government,DCLG,14/06/2017,ERDF Work in Progress � Resource,Decentralisation and Local Growth,NEPIC,,Small,,,7700000476,,ERDF grant payment,TS10 4RF,"42,167.77",Yes
Communities & Local Government,DCLG,14/06/2017,ERDF Work in Progress � Resource,Decentralisation and Local Growth,NORTH TYNESIDE COUNCIL,,Large,,,7700000479,,ERDF grant payment,NE27 0BY,"68,751.82",Yes
Communities & Local Government,DCLG,14/06/2017,ERDF Work in Progress � Resource,Decentralisation and Local Growth,NORTH TYNESIDE COUNCIL,,Large,,,7700000480,,ERDF grant payment,NE27 0BY,"182,188.56",Yes
Communities & Local Government,DCLG,14/06/2017,ERDF Work in Progress � Resource,Decentralisation and Local Growth,UNI OF NORTHUMBRIA NEWCASTLE,,Large,,,7700000478,,ERDF grant payment,NE 8ST,"55,670.61",Yes
Communities & Local Government,DCLG,14/06/2017,ERDF Work in Progress � Resource,Decentralisation and Local Growth,UNIVERSITY OF NOTTINGHAM,,,,,7700000477,,ERDF grant payment,NG7 2TU,"48,677.53",Yes
Communities & Local Government,DCLG,14/06/2017,ERDF Work in Progress � Resource,Decentralisation and Local Growth,WALSALL MBC,,Large,,,7700000475,,ERDF grant payment,WS1 1TP,"10,965.07",Yes
Communities & Local Government,DCLG,14/06/2017,ERDF Work in Progress � Resource,Decentralisation and Local Growth,YTKO LIMITED,,Small,,,7700000485,,ERDF grant payment,CB4 2QH,"251,124.84",Yes
Communities & Local Government,DCLG,14/06/2017,EXP � PURCHASE OF GOODS /SERVICES R & D,Housing & Planning,BUILDING RESEARCH ESTABLISHMENT,,Large,,896495033,5106229096,Research,Part 1: Fire Incident Investigations,WD25 9XX,"17,710.00",
Communities & Local Government,DCLG,14/06/2017,EXP � PURCHASE OF GOODS /SERVICES R & D,Housing & Planning,BUILDING RESEARCH ESTABLISHMENT,,Large,,896495033,5106229097,Research,Part 1: Fire Incident Investigations,WD25 9XX,"2,406.00",
Communities & Local Government,DCLG,14/06/2017,IT - Service Contracts,Corporate Services,FUJITSU SERVICES LTD,,Large,,423375062,5106229112,IT Managed / Outsourced Services,New Requirements  17-18,WA3 6GD,502.92,
Communities & Local Government,DCLG,14/06/2017,IT - Service Contracts,Corporate Services,GROUNDWORK UK,Yes,,,739193758,5106229099,IT Managed / Outsourced Services,Lot 2 Grant Administration  - Amend 3,B1 2RR,"11,900.92",
Communities & Local Government,DCLG,14/06/2017,IT - Service Contracts,Corporate Services,INFO-ASSURE LTD,,Small,,,5106229110,IT Managed / Outsourced Services,IA12551 Call Off 50 Days,GU14 0LX,625.50,
Communities & Local Government,DCLG,14/06/2017,IT - Service Contracts,Corporate Services,MARKLOGIC CORPORATION,,Large,,,5106229046,IT Managed / Outsourced Services,EClaims App Support,CA 94070,"8,700.00",
Communities & Local Government,DCLG,14/06/2017,IT - Service Contracts,Corporate Services,MERCATOR IT SOLUTIONS LTD,,Medium,,,5106229045,IT Managed / Outsourced Services,G Gloud Architect F/Y 17-18,TN6 2TT,"5,400.00",
Communities & Local Government,DCLG,14/06/2017,IT - Software Maintenance,Corporate Services,BLAZIE LTD,,Small,,,5106229104,IT Managed / Outsourced Services,JAWS consultancy half day,HA4 9NA,480.00,
Communities & Local Government,DCLG,14/06/2017,IT - Software Maintenance,Corporate Services,BLAZIE LTD,,Small,,,5106229104,IT Managed / Outsourced Services,JAWS script module outlook calendars,HA4 9NA,600.00,
Communities & Local Government,DCLG,14/06/2017,IT - Software Maintenance,Corporate Services,MARKLOGIC CORPORATION,,Large,,,5106229044,IT Managed / Outsourced Services,Additional Call Off Days,CA 94070,"6,450.00",
Communities & Local Government,DCLG,14/06/2017,IT - Software Maintenance,Corporate Services,MARKLOGIC CORPORATION,,Large,,,5106229111,IT Managed / Outsourced Services,BI Reporting Module,CA 94070,300.00,
Communities & Local Government,DCLG,14/06/2017,Legal Fees,Corporate Services,GOVERNMENT LEGAL DEPARTMENT,,Public Bodies,,215580680,5106229098,Legal,Legal Advice,WC2B 4TS,455.00,
Communities & Local Government,DCLG,14/06/2017,Legal Fees,Corporate Services,GOVERNMENT LEGAL DEPARTMENT,,Public Bodies,,215580680,5106229098,Legal,Legal Advice,WC2B 4TS,"121,284.32",
Communities & Local Government,DCLG,14/06/2017,Printing,Local Government & Public Services,WILLIAMS LEA LIMITED,,Large,,393456413,5106229090,Printing Services,"Printing, Design",NR3 1PD,"1,393.80",
Communities & Local Government,DCLG,14/06/2017,Professional services,Local Government & Public Services,ALLIED WORKS ARCHITECTURE,,Small,,,5106229116,Financial,UKHMF Honorarium,97205,"15,000.00",
Communities & Local Government,DCLG,14/06/2017,Professional services,Local Government & Public Services,CARUSO ST JOHN ARCHITECTS LLP,,Small,,,5106229087,Financial,UKHMF Honorarium,E2 9AG,"18,000.00",
Communities & Local Government,DCLG,14/06/2017,Publicity,Corporate Services,PRESS ASSOCIATION,,Large,,217191704,5106229041,Advertising,Press Association - 14-17,DN14 7YH,"1,369.00",
Communities & Local Government,DCLG,14/06/2017,Repayments of Private Sect Grant (Cap),Decentralisation and Local Growth,CLOSE BROTHERS LTD,,,,,2300002440,,RGF grant repayment,EC2A 4FT,"-181,706.85",
Communities & Local Government,DCLG,14/06/2017,Repayments of Private Sect Grant (Cap),Decentralisation and Local Growth,CLOSE BROTHERS LTD,,,,,2300002806,,RGF grant repayment,EC2A 4FT,"-4,317.15",
Communities & Local Government,DCLG,14/06/2017,Software Licences,Corporate Services,BLAZIE LTD,,Small,,,5106229104,Software,OpenBook v9 scanning software plus deliv,HA4 9NA,704.40,
Communities & Local Government,DCLG,14/06/2017,Training,Corporate Services,CATALYST CONSULTING LTD,,Small,,491240297,5106229043,Development and Training,Civil Service Training,AL1 1DU,"4,950.00",
Communities & Local Government,DCLG,14/06/2017,Training,Housing & Planning,ROYAL TOWN PLANNING INSTITUTE,,,,227231818,5106229085,Development and Training,Civil Service Training,EC3R 8DL,735.00,
Communities & Local Government,DCLG,15/06/2017,Advertising,Housing & Planning,HAYMARKET PUBLISHING SERVS LTD,,Large,,516858800,5106229161,Advertising,Recruitment of Planners,TW1 3SP,"1,460.00",
Communities & Local Government,DCLG,15/06/2017,Current (non AEF) Grants to Local Authorities,Local Government & Public Services,BARKING & DAGENHAM LB (HSG),,,,217142293,5000374336,,Additional Better Care Fund element,RM10 7BY,"365,411.00",Yes
Communities & Local Government,DCLG,15/06/2017,Current (non AEF) Grants to Local Authorities,Local Government & Public Services,BARKING & DAGENHAM LB (HSG),,,,217142293,5000374337,,Adult Social Care Support Grant,RM10 7BY,"76,425.00",Yes
Communities & Local Government,DCLG,15/06/2017,Current (non AEF) Grants to Local Authorities,Local Government & Public Services,BARKING & DAGENHAM LB (HSG),,,,217142293,5000374338,,Improved Better Care Fund,RM10 7BY,"87,026.00",Yes
Communities & Local Government,DCLG,15/06/2017,Current (non AEF) Grants to Local Authorities,Local Government & Public Services,BARKING & DAGENHAM LB (HSG),,,,217142293,5000374736,,Lead Local Flood Authority Grant,RM10 7BY,"10,548.00",Yes
Communities & Local Government,DCLG,15/06/2017,Current (non AEF) Grants to Local Authorities,Local Government & Public Services,BARNSLEY MBC,,,,211178595,5000374400,,Additional Better Care Fund element,S70 2AQ,"479,604.00",Yes
Communities & Local Government,DCLG,15/06/2017,Current (non AEF) Grants to Local Authorities,Local Government & Public Services,BARNSLEY MBC,,,,211178595,5000374401,,Adult Social Care Support Grant,S70 2AQ,"103,657.00",Yes
Communities & Local Government,DCLG,15/06/2017,Current (non AEF) Grants to Local Authorities,Local Government & Public Services,BARNSLEY MBC,,,,211178595,5000374402,,Improved Better Care Fund,S70 2AQ,"87,292.00",Yes
Communities & Local Government,DCLG,15/06/2017,Current (non AEF) Grants to Local Authorities,Local Government & Public Services,BARNSLEY MBC,,,,211178595,5000374761,,Lead Local Flood Authority Grant,S70 2AQ,"7,072.00",Yes
Communities & Local Government,DCLG,15/06/2017,Current (non AEF) Grants to Local Authorities,Local Government & Public Services,BATH & NE SOMERSET DC (HSG),,,,214502499,5000374339,,Additional Better Care Fund element,BA1 5AW,"224,825.00",Yes
Communities & Local Government,DCLG,15/06/2017,Current (non AEF) Grants to Local Authorities,Local Government & Public Services,BATH & NE SOMERSET DC (HSG),,,,214502499,5000374340,,Adult Social Care Support Grant,BA1 5AW,"61,082.00",Yes
Communities & Local Government,DCLG,15/06/2017,Current (non AEF) Grants to Local Authorities,Local Government & Public Services,BATH & NE SOMERSET DC (HSG),,,,214502499,5000374737,,Lead Local Flood Authority Grant,BA1 5AW,"14,378.00",Yes
Communities & Local Government,DCLG,15/06/2017,Current (non AEF) Grants to Local Authorities,Local Government & Public Services,BEDFORD UNITARY AUTHORITY,,,,225682160,5000374725,,Additional Better Care Fund element,MK40 1SJ,"166,080.00",Yes
Communities & Local Government,DCLG,15/06/2017,Current (non AEF) Grants to Local Authorities,Local Government & Public Services,BEDFORD UNITARY AUTHORITY,,,,225682160,5000374726,,Adult Social Care Support Grant,MK40 1SJ,"51,963.00",Yes
Communities & Local Government,DCLG,15/06/2017,Current (non AEF) Grants to Local Authorities,Local Government & Public Services,BEDFORD UNITARY AUTHORITY,,,,225682160,5000374884,,Lead Local Flood Authority Grant,MK40 1SJ,"13,647.00",Yes
Communities & Local Government,DCLG,15/06/2017,Current (non AEF) Grants to Local Authorities,Local Government & Public Services,BEXLEY LB (HSG),,,,,5000374341,,Additional Better Care Fund element,DA8 1TL,"303,281.00",Yes
Communities & Local Government,DCLG,15/06/2017,Current (non AEF) Grants to Local Authorities,Local Government & Public Services,BEXLEY LB (HSG),,,,,5000374342,,Adult Social Care Support Grant,DA8 1TL,"77,707.00",Yes
Communities & Local Government,DCLG,15/06/2017,Current (non AEF) Grants to Local Authorities,Local Government & Public Services,BEXLEY LB (HSG),,,,,5000374738,,Lead Local Flood Authority Grant,DA8 1TL,"18,204.00",Yes
Communities & Local Government,DCLG,15/06/2017,Current (non AEF) Grants to Local Authorities,Local Government & Public Services,BIRMINGHAM CITY CNCL,,,,213780559,5000374403,,Additional Better Care Fund element,B2 2AJ,"2,255,258.00",Yes
Communities & Local Government,DCLG,15/06/2017,Current (non AEF) Grants to Local Authorities,Local Government & Public Services,BIRMINGHAM CITY CNCL,,,,213780559,5000374404,,Adult Social Care Support Grant,B2 2AJ,"468,757.00",Yes
Communities & Local Government,DCLG,15/06/2017,Current (non AEF) Grants to Local Authorities,Local Government & Public Services,BIRMINGHAM CITY CNCL,,,,213780559,5000374405,,Improved Better Care Fund,B2 2AJ,"560,648.00",Yes
Communities & Local Government,DCLG,15/06/2017,Current (non AEF) Grants to Local Authorities,Local Government & Public Services,BIRMINGHAM CITY CNCL,,,,213780559,5000374762,,Lead Local Flood Authority Grant,B2 2AJ,"41,061.00",Yes
Communities & Local Government,DCLG,15/06/2017,Current (non AEF) Grants to Local Authorities,Local Government & Public Services,BLACKBURN WITH DARWEN BC,,,,,5000374406,,Additional Better Care Fund element,BB1 7DY,"299,109.00",Yes
Communities & Local Government,DCLG,15/06/2017,Current (non AEF) Grants to Local Authorities,Local Government & Public Services,BLACKBURN WITH DARWEN BC,,,,,5000374407,,Adult Social Care Support Grant,BB1 7DY,"63,983.00",Yes
Communities & Local Government,DCLG,15/06/2017,Current (non AEF) Grants to Local Authorities,Local Government & Public Services,BLACKBURN WITH DARWEN BC,,,,,5000374408,,Improved Better Care Fund,BB1 7DY,"59,773.00",Yes
Communities & Local Government,DCLG,15/06/2017,Current (non AEF) Grants to Local Authorities,Local Government & Public Services,BLACKBURN WITH DARWEN BC,,,,,5000374763,,Lead Local Flood Authority Grant,BB1 7DY,"8,148.00",Yes
Communities & Local Government,DCLG,15/06/2017,Current (non AEF) Grants to Local Authorities,Local Government & Public Services,BLACKPOOL BC,,,,,5000374409,,Additional Better Care Fund element,FY1 1NA,"362,317.00",Yes
Communities & Local Government,DCLG,15/06/2017,Current (non AEF) Grants to Local Authorities,Local Government & Public Services,BLACKPOOL BC,,,,,5000374410,,Adult Social Care Support Grant,FY1 1NA,"75,641.00",Yes
Communities & Local Government,DCLG,15/06/2017,Current (non AEF) Grants to Local Authorities,Local Government & Public Services,BLACKPOOL BC,,,,,5000374411,,Improved Better Care Fund,FY1 1NA,"87,396.00",Yes
Communities & Local Government,DCLG,15/06/2017,Current (non AEF) Grants to Local Authorities,Local Government & Public Services,BLACKPOOL BC,,,,,5000374764,,Lead Local Flood Authority Grant,FY1 1NA,"6,163.00",Yes
Communities & Local Government,DCLG,15/06/2017,Current (non AEF) Grants to Local Authorities,Local Government & Public Services,BOLTON MBC,,,,,5000374412,,Additional Better Care Fund element,BL1 1RU,"533,775.00",Yes
Communities & Local Government,DCLG,15/06/2017,Current (non AEF) Grants to Local Authorities,Local Government & Public Services,BOLTON MBC,,,,,5000374413,,Adult Social Care Support Grant,BL1 1RU,"116,355.00",Yes
Communities & Local Government,DCLG,15/06/2017,Current (non AEF) Grants to Local Authorities,Local Government & Public Services,BOLTON MBC,,,,,5000374414,,Improved Better Care Fund,BL1 1RU,"89,189.00",Yes
Communities & Local Government,DCLG,15/06/2017,Current (non AEF) Grants to Local Authorities,Local Government & Public Services,BOLTON MBC,,,,,5000374765,,Lead Local Flood Authority Grant,BL1 1RU,"8,921.00",Yes
Communities & Local Government,DCLG,15/06/2017,Current (non AEF) Grants to Local Authorities,Local Government & Public Services,BOURNEMOUTH DC,,,,,5000374415,,Additional Better Care Fund element,BH2 6EB,"316,453.00",Yes
Communities & Local Government,DCLG,15/06/2017,Current (non AEF) Grants to Local Authorities,Local Government & Public Services,BOURNEMOUTH DC,,,,,5000374416,,Adult Social Care Support Grant,BH2 6EB,"73,986.00",Yes
Communities & Local Government,DCLG,15/06/2017,Current (non AEF) Grants to Local Authorities,Local Government & Public Services,BOURNEMOUTH DC,,,,,5000374417,,Improved Better Care Fund,BH2 6EB,"12,630.00",Yes
Communities & Local Government,DCLG,15/06/2017,Current (non AEF) Grants to Local Authorities,Local Government & Public Services,BOURNEMOUTH DC,,,,,5000374766,,Lead Local Flood Authority Grant,BH2 6EB,"5,952.00",Yes
Communities & Local Government,DCLG,15/06/2017,Current (non AEF) Grants to Local Authorities,Local Government & Public Services,BRACKNELL FOREST DC,,,,236184867,5000374418,,Additional Better Care Fund element,RG12 1AQ,"77,420.00",Yes
Communities & Local Government,DCLG,15/06/2017,Current (non AEF) Grants to Local Authorities,Local Government & Public Services,BRACKNELL FOREST DC,,,,236184867,5000374419,,Adult Social Care Support Grant,RG12 1AQ,"30,287.00",Yes
Communities & Local Government,DCLG,15/06/2017,Current (non AEF) Grants to Local Authorities,Local Government & Public Services,BRACKNELL FOREST DC,,,,236184867,5000374767,,Lead Local Flood Authority Grant,RG12 1AQ,"8,627.00",Yes
Communities & Local Government,DCLG,15/06/2017,Current (non AEF) Grants to Local Authorities,Local Government & Public Services,BRADFORD MBC,,,,,5000374420,,Additional Better Care Fund element,BD1 1HX,"873,288.00",Yes
Communities & Local Government,DCLG,15/06/2017,Current (non AEF) Grants to Local Authorities,Local Government & Public Services,BRADFORD MBC,,,,,5000374421,,Adult Social Care Support Grant,BD1 1HX,"192,281.00",Yes
Communities & Local Government,DCLG,15/06/2017,Current (non AEF) Grants to Local Authorities,Local Government & Public Services,BRADFORD MBC,,,,,5000374422,,Improved Better Care Fund,BD1 1HX,"130,490.00",Yes
Communities & Local Government,DCLG,15/06/2017,Current (non AEF) Grants to Local Authorities,Local Government & Public Services,BRADFORD MBC,,,,,5000374768,,Lead Local Flood Authority Grant,BD1 1HX,"19,716.00",Yes
Communities & Local Government,DCLG,15/06/2017,Current (non AEF) Grants to Local Authorities,Local Government & Public Services,BRENT LB (HSG),,,,,5000374343,,Additional Better Care Fund element,HA9 9HD,"508,576.00",Yes
Communities & Local Government,DCLG,15/06/2017,Current (non AEF) Grants to Local Authorities,Local Government & Public Services,BRENT LB (HSG),,,,,5000374344,,Adult Social Care Support Grant,HA9 9HD,"112,415.00",Yes
Communities & Local Government,DCLG,15/06/2017,Current (non AEF) Grants to Local Authorities,Local Government & Public Services,BRENT LB (HSG),,,,,5000374345,,Improved Better Care Fund,HA9 9HD,"72,483.00",Yes
Communities & Local Government,DCLG,15/06/2017,Current (non AEF) Grants to Local Authorities,Local Government & Public Services,BRENT LB (HSG),,,,,5000374739,,Lead Local Flood Authority Grant,HA9 9HD,"20,595.00",Yes
Communities & Local Government,DCLG,15/06/2017,Current (non AEF) Grants to Local Authorities,Local Government & Public Services,BRIGHTON & HOVE CITY COUNCIL,,Large,,228455218,5000374423,,Additional Better Care Fund element,BN3 2LS,"424,439.00",Yes
Communities & Local Government,DCLG,15/06/2017,Current (non AEF) Grants to Local Authorities,Local Government & Public Services,BRIGHTON & HOVE CITY COUNCIL,,Large,,228455218,5000374424,,Adult Social Care Support Grant,BN3 2LS,"102,842.00",Yes
Communities & Local Government,DCLG,15/06/2017,Current (non AEF) Grants to Local Authorities,Local Government & Public Services,BRIGHTON & HOVE CITY COUNCIL,,Large,,228455218,5000374769,,Lead Local Flood Authority Grant,BN3 2LS,"26,766.00",Yes
Communities & Local Government,DCLG,15/06/2017,Current (non AEF) Grants to Local Authorities,Local Government & Public Services,BRISTOL CITY COUNCIL (HSG),,,,211103882,5000374346,,Additional Better Care Fund element,BS3 9FS,"725,996.00",Yes
Communities & Local Government,DCLG,15/06/2017,Current (non AEF) Grants to Local Authorities,Local Government & Public Services,BRISTOL CITY COUNCIL (HSG),,,,211103882,5000374347,,Adult Social Care Support Grant,BS3 9FS,"169,779.00",Yes
Communities & Local Government,DCLG,15/06/2017,Current (non AEF) Grants to Local Authorities,Local Government & Public Services,BRISTOL CITY COUNCIL (HSG),,,,211103882,5000374348,,Improved Better Care Fund,BS3 9FS,"28,631.00",Yes
Communities & Local Government,DCLG,15/06/2017,Current (non AEF) Grants to Local Authorities,Local Government & Public Services,BRISTOL CITY COUNCIL (HSG),,,,211103882,5000374740,,Lead Local Flood Authority Grant,BS3 9FS,"23,557.00",Yes
Communities & Local Government,DCLG,15/06/2017,Current (non AEF) Grants to Local Authorities,Local Government & Public Services,BROMLEY LB,,,,211331954,5000374425,,Additional Better Care Fund element,BR1 3UH,"348,661.00",Yes
Communities & Local Government,DCLG,15/06/2017,Current (non AEF) Grants to Local Authorities,Local Government & Public Services,BROMLEY LB,,,,211331954,5000374426,,Adult Social Care Support Grant,BR1 3UH,"99,644.00",Yes
Communities & Local Government,DCLG,15/06/2017,Current (non AEF) Grants to Local Authorities,Local Government & Public Services,BROMLEY LB,,,,211331954,5000374770,,Lead Local Flood Authority Grant,BR1 3UH,"27,762.00",Yes
Communities & Local Government,DCLG,15/06/2017,Current (non AEF) Grants to Local Authorities,Local Government & Public Services,BUCKINGHAMSHIRE CC,,,,293750923,5000374427,,Additional Better Care Fund element,HP20 1UD,"290,753.00",Yes
Communities & Local Government,DCLG,15/06/2017,Current (non AEF) Grants to Local Authorities,Local Government & Public Services,BUCKINGHAMSHIRE CC,,,,293750923,5000374428,,Adult Social Care Support Grant,HP20 1UD,"139,894.00",Yes
Communities & Local Government,DCLG,15/06/2017,Current (non AEF) Grants to Local Authorities,Local Government & Public Services,BUCKINGHAMSHIRE CC,,,,293750923,5000374771,,Lead Local Flood Authority Grant,HP20 1UD,"44,867.00",Yes
Communities & Local Government,DCLG,15/06/2017,Current (non AEF) Grants to Local Authorities,Local Government & Public Services,BURY MBC,,,,,5000374429,,Additional Better Care Fund element,BL9 0SW,"298,035.00",Yes
Communities & Local Government,DCLG,15/06/2017,Current (non AEF) Grants to Local Authorities,Local Government & Public Services,BURY MBC,,,,,5000374430,,Adult Social Care Support Grant,BL9 0SW,"68,361.00",Yes
Communities & Local Government,DCLG,15/06/2017,Current (non AEF) Grants to Local Authorities,Local Government & Public Services,BURY MBC,,,,,5000374431,,Improved Better Care Fund,BL9 0SW,"22,505.00",Yes
Communities & Local Government,DCLG,15/06/2017,Current (non AEF) Grants to Local Authorities,Local Government & Public Services,BURY MBC,,,,,5000374772,,Lead Local Flood Authority Grant,BL9 0SW,"10,358.00",Yes
Communities & Local Government,DCLG,15/06/2017,Current (non AEF) Grants to Local Authorities,Local Government & Public Services,CALDERDALE MBC,,,,,5000374432,,Additional Better Care Fund element,HX1 1YP,"336,266.00",Yes
Communities & Local Government,DCLG,15/06/2017,Current (non AEF) Grants to Local Authorities,Local Government & Public Services,CALDERDALE MBC,,,,,5000374433,,Adult Social Care Support Grant,HX1 1YP,"77,057.00",Yes
Communities & Local Government,DCLG,15/06/2017,Current (non AEF) Grants to Local Authorities,Local Government & Public Services,CALDERDALE MBC,,,,,5000374434,,Improved Better Care Fund,HX1 1YP,"25,972.00",Yes
Communities & Local Government,DCLG,15/06/2017,Current (non AEF) Grants to Local Authorities,Local Government & Public Services,CALDERDALE MBC,,,,,5000374773,,Lead Local Flood Authority Grant,HX1 1YP,"23,309.00",Yes
Communities & Local Government,DCLG,15/06/2017,Current (non AEF) Grants to Local Authorities,Local Government & Public Services,CAMBRIDGESHIRE COUNTY CNCL,,,,219047347,5000374435,,Additional Better Care Fund element,CB3 0AP,"694,914.00",Yes
Communities & Local Government,DCLG,15/06/2017,Current (non AEF) Grants to Local Authorities,Local Government & Public Services,CAMBRIDGESHIRE COUNTY CNCL,,,,219047347,5000374436,,Adult Social Care Support Grant,CB3 0AP,"194,529.00",Yes
Communities & Local Government,DCLG,15/06/2017,Current (non AEF) Grants to Local Authorities,Local Government & Public Services,CAMBRIDGESHIRE COUNTY CNCL,,,,219047347,5000374774,,Lead Local Flood Authority Grant,CB3 0AP,"45,860.00",Yes
Communities & Local Government,DCLG,15/06/2017,Current (non AEF) Grants to Local Authorities,Local Government & Public Services,CAMDEN LB,,,,211651836,5000374437,,Additional Better Care Fund element,WC1H 8NG,"484,527.00",Yes
Communities & Local Government,DCLG,15/06/2017,Current (non AEF) Grants to Local Authorities,Local Government & Public Services,CAMDEN LB,,,,211651836,5000374438,,Adult Social Care Support Grant,WC1H 8NG,"107,621.00",Yes
Communities & Local Government,DCLG,15/06/2017,Current (non AEF) Grants to Local Authorities,Local Government & Public Services,CAMDEN LB,,,,211651836,5000374439,,Improved Better Care Fund,WC1H 8NG,"64,861.00",Yes
Communities & Local Government,DCLG,15/06/2017,Current (non AEF) Grants to Local Authorities,Local Government & Public Services,CAMDEN LB,,,,211651836,5000374775,,Lead Local Flood Authority Grant,WC1H 8NG,"21,611.00",Yes
Communities & Local Government,DCLG,15/06/2017,Current (non AEF) Grants to Local Authorities,Local Government & Public Services,CENTRAL BEDFORDSHIRE COUNCIL,,,,232624882,5000374719,,Additional Better Care Fund element,SG17 5TQ,"150,861.00",Yes
Communities & Local Government,DCLG,15/06/2017,Current (non AEF) Grants to Local Authorities,Local Government & Public Services,CENTRAL BEDFORDSHIRE COUNCIL,,,,232624882,5000374720,,Adult Social Care Support Grant,SG17 5TQ,"72,484.00",Yes
Communities & Local Government,DCLG,15/06/2017,Current (non AEF) Grants to Local Authorities,Local Government & Public Services,CENTRAL BEDFORDSHIRE COUNCIL,,,,232624882,5000374881,,Lead Local Flood Authority Grant,SG17 5TQ,"16,514.00",Yes
Communities & Local Government,DCLG,15/06/2017,Current (non AEF) Grants to Local Authorities,Local Government & Public Services,CHESHIRE EAST COUNCIL,,Large,,,5000374721,,Additional Better Care Fund element,CW11 1HZ,"391,079.00",Yes
Communities & Local Government,DCLG,15/06/2017,Current (non AEF) Grants to Local Authorities,Local Government & Public Services,CHESHIRE EAST COUNCIL,,Large,,,5000374722,,Adult Social Care Support Grant,CW11 1HZ,"121,421.00",Yes
Communities & Local Government,DCLG,15/06/2017,Current (non AEF) Grants to Local Authorities,Local Government & Public Services,CHESHIRE EAST COUNCIL,,Large,,,5000374882,,Lead Local Flood Authority Grant,CW11 1HZ,"13,558.00",Yes
Communities & Local Government,DCLG,15/06/2017,Current (non AEF) Grants to Local Authorities,Local Government & Public Services,CHESHIRE WEST & CHESTER UA,,Large,,215584383,5000374723,,Additional Better Care Fund element,CH1 2NP,"480,080.00",Yes
Communities & Local Government,DCLG,15/06/2017,Current (non AEF) Grants to Local Authorities,Local Government & Public Services,CHESHIRE WEST & CHESTER UA,,Large,,215584383,5000374724,,Adult Social Care Support Grant,CH1 2NP,"122,810.00",Yes
Communities & Local Government,DCLG,15/06/2017,Current (non AEF) Grants to Local Authorities,Local Government & Public Services,CHESHIRE WEST & CHESTER UA,,Large,,215584383,5000374883,,Lead Local Flood Authority Grant,CH1 2NP,"16,540.00",Yes
Communities & Local Government,DCLG,15/06/2017,Current (non AEF) Grants to Local Authorities,Local Government & Public Services,CITY OF LONDON (HSG),,,,217471460,5000374349,,Adult Social Care Support Grant,EC2P 2EJ,"4,084.00",Yes
Communities & Local Government,DCLG,15/06/2017,Current (non AEF) Grants to Local Authorities,Local Government & Public Services,CITY OF LONDON (HSG),,,,217471460,5000374350,,Additional Better Care Fund element,EC2P 2EJ,"14,894.00",Yes
Communities & Local Government,DCLG,15/06/2017,Current (non AEF) Grants to Local Authorities,Local Government & Public Services,CITY OF LONDON (HSG),,,,217471460,5000374741,,Lead Local Flood Authority Grant,EC2P 2EJ,"4,237.00",Yes
Communities & Local Government,DCLG,15/06/2017,Current (non AEF) Grants to Local Authorities,Local Government & Public Services,CITY OF SUNDERLAND (HSG),,,,215599312,5000374351,,Additional Better Care Fund element,SR2 7DN,"627,829.00",Yes
Communities & Local Government,DCLG,15/06/2017,Current (non AEF) Grants to Local Authorities,Local Government & Public Services,CITY OF SUNDERLAND (HSG),,,,215599312,5000374352,,Adult Social Care Support Grant,SR2 7DN,"131,227.00",Yes
Communities & Local Government,DCLG,15/06/2017,Current (non AEF) Grants to Local Authorities,Local Government & Public Services,CITY OF SUNDERLAND (HSG),,,,215599312,5000374353,,Improved Better Care Fund,SR2 7DN,"150,192.00",Yes
Communities & Local Government,DCLG,15/06/2017,Current (non AEF) Grants to Local Authorities,Local Government & Public Services,CITY OF SUNDERLAND (HSG),,,,215599312,5000374742,,Lead Local Flood Authority Grant,SR2 7DN,"9,554.00",Yes
Communities & Local Government,DCLG,15/06/2017,Current (non AEF) Grants to Local Authorities,Local Government & Public Services,CITY OF WAKEFIELD MDC,,,,,5000374676,,Additional Better Care Fund element,WF1 2QW,"631,589.00",Yes
Communities & Local Government,DCLG,15/06/2017,Current (non AEF) Grants to Local Authorities,Local Government & Public Services,CITY OF WAKEFIELD MDC,,,,,5000374677,,Adult Social Care Support Grant,WF1 2QW,"138,015.00",Yes
Communities & Local Government,DCLG,15/06/2017,Current (non AEF) Grants to Local Authorities,Local Government & Public Services,CITY OF WAKEFIELD MDC,,,,,5000374678,,Improved Better Care Fund,WF1 2QW,"102,815.00",Yes
Communities & Local Government,DCLG,15/06/2017,Current (non AEF) Grants to Local Authorities,Local Government & Public Services,CITY OF WAKEFIELD MDC,,,,,5000374864,,Lead Local Flood Authority Grant,WF1 2QW,"16,296.00",Yes
Communities & Local Government,DCLG,15/06/2017,Current (non AEF) Grants to Local Authorities,Local Government & Public Services,CORNWALL UNITARY AUTHORITY,,,,211334404,5000374730,,Additional Better Care Fund element,TR1 3AY,"1,005,654.00",Yes
Communities & Local Government,DCLG,15/06/2017,Current (non AEF) Grants to Local Authorities,Local Government & Public Services,CORNWALL UNITARY AUTHORITY,,,,211334404,5000374731,,Adult Social Care Support Grant,TR1 3AY,"233,812.00",Yes
Communities & Local Government,DCLG,15/06/2017,Current (non AEF) Grants to Local Authorities,Local Government & Public Services,CORNWALL UNITARY AUTHORITY,,,,211334404,5000374732,,Improved Better Care Fund,TR1 3AY,"50,646.00",Yes
Communities & Local Government,DCLG,15/06/2017,Current (non AEF) Grants to Local Authorities,Local Government & Public Services,CORNWALL UNITARY AUTHORITY,,,,211334404,5000374886,,Lead Local Flood Authority Grant,TR1 3AY,"40,062.00",Yes
Communities & Local Government,DCLG,15/06/2017,Current (non AEF) Grants to Local Authorities,Local Government & Public Services,COVENTRY CITY CNCL,,,,210384802,5000374440,,Additional Better Care Fund element,CV1 2QL,"589,107.00",Yes
Communities & Local Government,DCLG,15/06/2017,Current (non AEF) Grants to Local Authorities,Local Government & Public Services,COVENTRY CITY CNCL,,,,210384802,5000374441,,Adult Social Care Support Grant,CV1 2QL,"129,828.00",Yes
Communities & Local Government,DCLG,15/06/2017,Current (non AEF) Grants to Local Authorities,Local Government & Public Services,COVENTRY CITY CNCL,,,,210384802,5000374442,,Improved Better Care Fund,CV1 2QL,"87,085.00",Yes
Communities & Local Government,DCLG,15/06/2017,Current (non AEF) Grants to Local Authorities,Local Government & Public Services,COVENTRY CITY CNCL,,,,210384802,5000374776,,Lead Local Flood Authority Grant,CV1 2QL,"15,422.00",Yes
Communities & Local Government,DCLG,15/06/2017,Current (non AEF) Grants to Local Authorities,Local Government & Public Services,CROYDON LB,,,,212419973,5000374443,,Additional Better Care Fund element,CR9 3JS,"459,143.00",Yes
Communities & Local Government,DCLG,15/06/2017,Current (non AEF) Grants to Local Authorities,Local Government & Public Services,CROYDON LB,,,,212419973,5000374444,,Adult Social Care Support Grant,CR9 3JS,"117,295.00",Yes
Communities & Local Government,DCLG,15/06/2017,Current (non AEF) Grants to Local Authorities,Local Government & Public Services,CROYDON LB,,,,212419973,5000374777,,Lead Local Flood Authority Grant,CR9 3JS,"27,684.00",Yes
Communities & Local Government,DCLG,15/06/2017,Current (non AEF) Grants to Local Authorities,Local Government & Public Services,CUMBRIA COUNTY CNCL,,,,211316542,5000374445,,Additional Better Care Fund element,CA3 8NA,"925,850.00",Yes
Communities & Local Government,DCLG,15/06/2017,Current (non AEF) Grants to Local Authorities,Local Government & Public Services,CUMBRIA COUNTY CNCL,,,,211316542,5000374446,,Adult Social Care Support Grant,CA3 8NA,"209,860.00",Yes
Communities & Local Government,DCLG,15/06/2017,Current (non AEF) Grants to Local Authorities,Local Government & Public Services,CUMBRIA COUNTY CNCL,,,,211316542,5000374447,,Improved Better Care Fund,CA3 8NA,"90,044.00",Yes
Communities & Local Government,DCLG,15/06/2017,Current (non AEF) Grants to Local Authorities,Local Government & Public Services,CUMBRIA COUNTY CNCL,,,,211316542,5000374778,,Lead Local Flood Authority Grant,CA3 8NA,"44,310.00",Yes
Communities & Local Government,DCLG,15/06/2017,Current (non AEF) Grants to Local Authorities,Local Government & Public Services,DARLINGTON BC,,,,,5000374448,,Additional Better Care Fund element,TS19 1JA,"182,669.00",Yes
Communities & Local Government,DCLG,15/06/2017,Current (non AEF) Grants to Local Authorities,Local Government & Public Services,DARLINGTON BC,,,,,5000374449,,Adult Social Care Support Grant,TS19 1JA,"41,950.00",Yes
Communities & Local Government,DCLG,15/06/2017,Current (non AEF) Grants to Local Authorities,Local Government & Public Services,DARLINGTON BC,,,,,5000374450,,Improved Better Care Fund,TS19 1JA,"13,390.00",Yes
Communities & Local Government,DCLG,15/06/2017,Current (non AEF) Grants to Local Authorities,Local Government & Public Services,DARLINGTON BC,,,,,5000374779,,Lead Local Flood Authority Grant,TS19 1JA,"3,828.00",Yes
Communities & Local Government,DCLG,15/06/2017,Current (non AEF) Grants to Local Authorities,Local Government & Public Services,DERBY CITY CNCL,,,,229641378,5000374451,,Additional Better Care Fund element,DE1 2FS,"438,753.00",Yes
Communities & Local Government,DCLG,15/06/2017,Current (non AEF) Grants to Local Authorities,Local Government & Public Services,DERBY CITY CNCL,,,,229641378,5000374452,,Adult Social Care Support Grant,DE1 2FS,"96,138.00",Yes
Communities & Local Government,DCLG,15/06/2017,Current (non AEF) Grants to Local Authorities,Local Government & Public Services,DERBY CITY CNCL,,,,229641378,5000374453,,Improved Better Care Fund,DE1 2FS,"69,319.00",Yes
Communities & Local Government,DCLG,15/06/2017,Current (non AEF) Grants to Local Authorities,Local Government & Public Services,DERBY CITY CNCL,,,,229641378,5000374780,,Lead Local Flood Authority Grant,DE1 2FS,"12,952.00",Yes
Communities & Local Government,DCLG,15/06/2017,Current (non AEF) Grants to Local Authorities,Local Government & Public Services,DERBYSHIRE COUNTYCOUNCIL,,,,232152967,5000374454,,Additional Better Care Fund element,DE4 3AG,"1,356,050.00",Yes
Communities & Local Government,DCLG,15/06/2017,Current (non AEF) Grants to Local Authorities,Local Government & Public Services,DERBYSHIRE COUNTYCOUNCIL,,,,232152967,5000374455,,Adult Social Care Support Grant,DE4 3AG,"303,614.00",Yes
Communities & Local Government,DCLG,15/06/2017,Current (non AEF) Grants to Local Authorities,Local Government & Public Services,DERBYSHIRE COUNTYCOUNCIL,,,,232152967,5000374456,,Improved Better Care Fund,DE4 3AG,"162,114.00",Yes
Communities & Local Government,DCLG,15/06/2017,Current (non AEF) Grants to Local Authorities,Local Government & Public Services,DERBYSHIRE COUNTYCOUNCIL,,,,232152967,5000374781,,Lead Local Flood Authority Grant,DE4 3AG,"51,482.00",Yes
Communities & Local Government,DCLG,15/06/2017,Current (non AEF) Grants to Local Authorities,Local Government & Public Services,DEVON COUNTY CNCL,,,,213754018,5000374457,,Additional Better Care Fund element,EX2 4QJ,"1,262,614.00",Yes
Communities & Local Government,DCLG,15/06/2017,Current (non AEF) Grants to Local Authorities,Local Government & Public Services,DEVON COUNTY CNCL,,,,213754018,5000374458,,Adult Social Care Support Grant,EX2 4QJ,"299,280.00",Yes
Communities & Local Government,DCLG,15/06/2017,Current (non AEF) Grants to Local Authorities,Local Government & Public Services,DEVON COUNTY CNCL,,,,213754018,5000374459,,Improved Better Care Fund,EX2 4QJ,"17,543.00",Yes
Communities & Local Government,DCLG,15/06/2017,Current (non AEF) Grants to Local Authorities,Local Government & Public Services,DEVON COUNTY CNCL,,,,213754018,5000374782,,Lead Local Flood Authority Grant,EX2 4QJ,"83,961.00",Yes
Communities & Local Government,DCLG,15/06/2017,Current (non AEF) Grants to Local Authorities,Local Government & Public Services,DONCASTER MBC,,,,,5000374460,,Additional Better Care Fund element,DN1 3QA,"587,180.00",Yes
Communities & Local Government,DCLG,15/06/2017,Current (non AEF) Grants to Local Authorities,Local Government & Public Services,DONCASTER MBC,,,,,5000374461,,Adult Social Care Support Grant,DN1 3QA,"126,380.00",Yes
Communities & Local Government,DCLG,15/06/2017,Current (non AEF) Grants to Local Authorities,Local Government & Public Services,DONCASTER MBC,,,,,5000374462,,Improved Better Care Fund,DN1 3QA,"111,110.00",Yes
Communities & Local Government,DCLG,15/06/2017,Current (non AEF) Grants to Local Authorities,Local Government & Public Services,DONCASTER MBC,,,,,5000374783,,Lead Local Flood Authority Grant,DN1 3QA,"26,680.00",Yes
Communities & Local Government,DCLG,15/06/2017,Current (non AEF) Grants to Local Authorities,Local Government & Public Services,DORSET COUNTY CNCL,,,,225431279,5000374463,,Additional Better Care Fund element,DT1 1XJ,"619,278.00",Yes
Communities & Local Government,DCLG,15/06/2017,Current (non AEF) Grants to Local Authorities,Local Government & Public Services,DORSET COUNTY CNCL,,,,225431279,5000374464,,Adult Social Care Support Grant,DT1 1XJ,"161,979.00",Yes
Communities & Local Government,DCLG,15/06/2017,Current (non AEF) Grants to Local Authorities,Local Government & Public Services,DORSET COUNTY CNCL,,,,225431279,5000374784,,Lead Local Flood Authority Grant,DT1 1XJ,"38,200.00",Yes
Communities & Local Government,DCLG,15/06/2017,Current (non AEF) Grants to Local Authorities,Local Government & Public Services,DUDLEY MBC,,,,,5000374465,,Additional Better Care Fund element,DY1 1HF,"601,494.00",Yes
Communities & Local Government,DCLG,15/06/2017,Current (non AEF) Grants to Local Authorities,Local Government & Public Services,DUDLEY MBC,,,,,5000374466,,Adult Social Care Support Grant,DY1 1HF,"130,711.00",Yes
Communities & Local Government,DCLG,15/06/2017,Current (non AEF) Grants to Local Authorities,Local Government & Public Services,DUDLEY MBC,,,,,5000374467,,Improved Better Care Fund,DY1 1HF,"103,765.00",Yes
Communities & Local Government,DCLG,15/06/2017,Current (non AEF) Grants to Local Authorities,Local Government & Public Services,DUDLEY MBC,,,,,5000374785,,Lead Local Flood Authority Grant,DY1 1HF,"11,883.00",Yes
Communities & Local Government,DCLG,15/06/2017,Current (non AEF) Grants to Local Authorities,Local Government & Public Services,DURHAM COUNTY COUNCIL,,,,224004882,5000374733,,Additional Better Care Fund element,DH1 5UE,"1,092,638.00",Yes
Communities & Local Government,DCLG,15/06/2017,Current (non AEF) Grants to Local Authorities,Local Government & Public Services,DURHAM COUNTY COUNCIL,,,,224004882,5000374734,,Improved Better Care Fund,DH1 5UE,"198,166.00",Yes
Communities & Local Government,DCLG,15/06/2017,Current (non AEF) Grants to Local Authorities,Local Government & Public Services,DURHAM COUNTY COUNCIL,,,,224004882,5000374735,,Adult Social Care Support Grant,DH1 5UE,"236,239.00",Yes
Communities & Local Government,DCLG,15/06/2017,Current (non AEF) Grants to Local Authorities,Local Government & Public Services,DURHAM COUNTY COUNCIL,,,,224004882,5000374887,,Lead Local Flood Authority Grant,DH1 5UE,"18,115.00",Yes
Communities & Local Government,DCLG,15/06/2017,Current (non AEF) Grants to Local Authorities,Local Government & Public Services,EALING LB,,,,,5000374468,,Additional Better Care Fund element,W5 2HL,"516,752.00",Yes
Communities & Local Government,DCLG,15/06/2017,Current (non AEF) Grants to Local Authorities,Local Government & Public Services,EALING LB,,,,,5000374469,,Adult Social Care Support Grant,W5 2HL,"118,654.00",Yes
Communities & Local Government,DCLG,15/06/2017,Current (non AEF) Grants to Local Authorities,Local Government & Public Services,EALING LB,,,,,5000374470,,Improved Better Care Fund,W5 2HL,"38,010.00",Yes
Communities & Local Government,DCLG,15/06/2017,Current (non AEF) Grants to Local Authorities,Local Government & Public Services,EALING LB,,,,,5000374786,,Lead Local Flood Authority Grant,W5 2HL,"14,643.00",Yes
Communities & Local Government,DCLG,15/06/2017,Current (non AEF) Grants to Local Authorities,Local Government & Public Services,EAST RIDING OF YORKS (HSG),,,,423159987,5000374354,,Additional Better Care Fund element,HU17 9BA,"506,998.00",Yes
Communities & Local Government,DCLG,15/06/2017,Current (non AEF) Grants to Local Authorities,Local Government & Public Services,EAST RIDING OF YORKS (HSG),,,,423159987,5000374355,,Adult Social Care Support Grant,HU17 9BA,"121,031.00",Yes
Communities & Local Government,DCLG,15/06/2017,Current (non AEF) Grants to Local Authorities,Local Government & Public Services,EAST RIDING OF YORKS (HSG),,,,423159987,5000374743,,Lead Local Flood Authority Grant,HU17 9BA,"45,753.00",Yes
Communities & Local Government,DCLG,15/06/2017,Current (non AEF) Grants to Local Authorities,Local Government & Public Services,EAST SUSSEX COUNTY CNCL,,,,,5000374471,,Additional Better Care Fund element,BN7 1SF,"918,862.00",Yes
Communities & Local Government,DCLG,15/06/2017,Current (non AEF) Grants to Local Authorities,Local Government & Public Services,EAST SUSSEX COUNTY CNCL,,,,,5000374472,,Adult Social Care Support Grant,BN7 1SF,"216,425.00",Yes
Communities & Local Government,DCLG,15/06/2017,Current (non AEF) Grants to Local Authorities,Local Government & Public Services,EAST SUSSEX COUNTY CNCL,,,,,5000374473,,Improved Better Care Fund,BN7 1SF,"23,827.00",Yes
Communities & Local Government,DCLG,15/06/2017,Current (non AEF) Grants to Local Authorities,Local Government & Public Services,EAST SUSSEX COUNTY CNCL,,,,,5000374787,,Lead Local Flood Authority Grant,BN7 1SF,"41,927.00",Yes
Communities & Local Government,DCLG,15/06/2017,Current (non AEF) Grants to Local Authorities,Local Government & Public Services,ENFIELD LB,,,,,5000374474,,Additional Better Care Fund element,EN1 3XF,"474,482.00",Yes
Communities & Local Government,DCLG,15/06/2017,Current (non AEF) Grants to Local Authorities,Local Government & Public Services,ENFIELD LB,,,,,5000374475,,Adult Social Care Support Grant,EN1 3XF,"108,698.00",Yes
Communities & Local Government,DCLG,15/06/2017,Current (non AEF) Grants to Local Authorities,Local Government & Public Services,ENFIELD LB,,,,,5000374476,,Improved Better Care Fund,EN1 3XF,"36,905.00",Yes
Communities & Local Government,DCLG,15/06/2017,Current (non AEF) Grants to Local Authorities,Local Government & Public Services,ENFIELD LB,,,,,5000374788,,Lead Local Flood Authority Grant,EN1 3XF,"21,387.00",Yes
Communities & Local Government,DCLG,15/06/2017,Current (non AEF) Grants to Local Authorities,Local Government & Public Services,ESSEX COUNTY CNCL,,,,233572986,5000374477,,Additional Better Care Fund element,CM1 1JZ,"2,060,384.00",Yes
Communities & Local Government,DCLG,15/06/2017,Current (non AEF) Grants to Local Authorities,Local Government & Public Services,ESSEX COUNTY CNCL,,,,233572986,5000374478,,Adult Social Care Support Grant,CM1 1JZ,"495,476.00",Yes
Communities & Local Government,DCLG,15/06/2017,Current (non AEF) Grants to Local Authorities,Local Government & Public Services,ESSEX COUNTY CNCL,,,,233572986,5000374789,,Lead Local Flood Authority Grant,CM1 1JZ,"93,527.00",Yes
Communities & Local Government,DCLG,15/06/2017,Current (non AEF) Grants to Local Authorities,Local Government & Public Services,GATESHEAD COUNCIL,,,,216116041,5000374479,,Additional Better Care Fund element,NE8 1HH,"430,251.00",Yes
Communities & Local Government,DCLG,15/06/2017,Current (non AEF) Grants to Local Authorities,Local Government & Public Services,GATESHEAD COUNCIL,,,,216116041,5000374480,,Adult Social Care Support Grant,NE8 1HH,"94,859.00",Yes
Communities & Local Government,DCLG,15/06/2017,Current (non AEF) Grants to Local Authorities,Local Government & Public Services,GATESHEAD COUNCIL,,,,216116041,5000374481,,Improved Better Care Fund,NE8 1HH,"63,283.00",Yes
Communities & Local Government,DCLG,15/06/2017,Current (non AEF) Grants to Local Authorities,Local Government & Public Services,GATESHEAD COUNCIL,,,,216116041,5000374790,,Lead Local Flood Authority Grant,NE8 1HH,"5,693.00",Yes
Communities & Local Government,DCLG,15/06/2017,Current (non AEF) Grants to Local Authorities,Local Government & Public Services,GLOUCESTERSHIRE COUNTY CNCL,,,,211272067,5000374482,,Additional Better Care Fund element,GL1 2TG,"883,101.00",Yes
Communities & Local Government,DCLG,15/06/2017,Current (non AEF) Grants to Local Authorities,Local Government & Public Services,GLOUCESTERSHIRE COUNTY CNCL,,,,211272067,5000374483,,Adult Social Care Support Grant,GL1 2TG,"211,766.00",Yes
Communities & Local Government,DCLG,15/06/2017,Current (non AEF) Grants to Local Authorities,Local Government & Public Services,GLOUCESTERSHIRE COUNTY CNCL,,,,211272067,5000374791,,Lead Local Flood Authority Grant,GL1 2TG,"45,667.00",Yes
Communities & Local Government,DCLG,15/06/2017,Current (non AEF) Grants to Local Authorities,Local Government & Public Services,GREENWICH LB,,,,,5000374484,,Additional Better Care Fund element,SE18 6HQ,"528,884.00",Yes
Communities & Local Government,DCLG,15/06/2017,Current (non AEF) Grants to Local Authorities,Local Government & Public Services,GREENWICH LB,,,,,5000374485,,Adult Social Care Support Grant,SE18 6HQ,"111,347.00",Yes
Communities & Local Government,DCLG,15/06/2017,Current (non AEF) Grants to Local Authorities,Local Government & Public Services,GREENWICH LB,,,,,5000374486,,Improved Better Care Fund,SE18 6HQ,"120,072.00",Yes
Communities & Local Government,DCLG,15/06/2017,Current (non AEF) Grants to Local Authorities,Local Government & Public Services,GREENWICH LB,,,,,5000374792,,Lead Local Flood Authority Grant,SE18 6HQ,"28,028.00",Yes
Communities & Local Government,DCLG,15/06/2017,Current (non AEF) Grants to Local Authorities,Local Government & Public Services,HALTON BC (HSG),,,,,5000374357,,Additional Better Care Fund element,WA8 7QF,"247,850.00",Yes
Communities & Local Government,DCLG,15/06/2017,Current (non AEF) Grants to Local Authorities,Local Government & Public Services,HALTON BC (HSG),,,,,5000374358,,Adult Social Care Support Grant,WA8 7QF,"53,497.00",Yes
Communities & Local Government,DCLG,15/06/2017,Current (non AEF) Grants to Local Authorities,Local Government & Public Services,HALTON BC (HSG),,,,,5000374744,,Lead Local Flood Authority Grant,WA8 7QF,"5,353.00",Yes
Communities & Local Government,DCLG,15/06/2017,Current (non AEF) Grants to Local Authorities,Local Government & Public Services,HAMMERSMITH & FULHAM LB,,,,216929489,5000374490,,Additional Better Care Fund element,W6 9JU,"358,028.00",Yes
Communities & Local Government,DCLG,15/06/2017,Current (non AEF) Grants to Local Authorities,Local Government & Public Services,HAMMERSMITH & FULHAM LB,,,,216929489,5000374491,,Adult Social Care Support Grant,W6 9JU,"76,871.00",Yes
Communities & Local Government,DCLG,15/06/2017,Current (non AEF) Grants to Local Authorities,Local Government & Public Services,HAMMERSMITH & FULHAM LB,,,,216929489,5000374492,,Improved Better Care Fund,W6 9JU,"69,265.00",Yes
Communities & Local Government,DCLG,15/06/2017,Current (non AEF) Grants to Local Authorities,Local Government & Public Services,HAMMERSMITH & FULHAM LB,,,,216929489,5000374794,,Lead Local Flood Authority Grant,W6 9JU,"42,406.00",Yes
Communities & Local Government,DCLG,15/06/2017,Current (non AEF) Grants to Local Authorities,Local Government & Public Services,HAMPSHIRE COUNTY COUNCIL,,,,211325832,5000374493,,Additional Better Care Fund element,SO23 8UB,"1,417,455.00",Yes
Communities & Local Government,DCLG,15/06/2017,Current (non AEF) Grants to Local Authorities,Local Government & Public Services,HAMPSHIRE COUNTY COUNCIL,,,,211325832,5000374494,,Adult Social Care Support Grant,SO23 8UB,"397,963.00",Yes
Communities & Local Government,DCLG,15/06/2017,Current (non AEF) Grants to Local Authorities,Local Government & Public Services,HAMPSHIRE COUNTY COUNCIL,,,,211325832,5000374795,,Lead Local Flood Authority Grant,SO23 8UB,"84,786.00",Yes
Communities & Local Government,DCLG,15/06/2017,Current (non AEF) Grants to Local Authorities,Local Government & Public Services,HARINGEY LB,,,,217471767,5000374495,,Additional Better Care Fund element,N22 4TR,"419,509.00",Yes
Communities & Local Government,DCLG,15/06/2017,Current (non AEF) Grants to Local Authorities,Local Government & Public Services,HARINGEY LB,,,,217471767,5000374496,,Adult Social Care Support Grant,N22 4TR,"96,108.00",Yes
Communities & Local Government,DCLG,15/06/2017,Current (non AEF) Grants to Local Authorities,Local Government & Public Services,HARINGEY LB,,,,217471767,5000374497,,Improved Better Care Fund,N22 4TR,"32,611.00",Yes
Communities & Local Government,DCLG,15/06/2017,Current (non AEF) Grants to Local Authorities,Local Government & Public Services,HARINGEY LB,,,,217471767,5000374796,,Lead Local Flood Authority Grant,N22 4TR,"18,796.00",Yes
Communities & Local Government,DCLG,15/06/2017,Current (non AEF) Grants to Local Authorities,Local Government & Public Services,HARROW LB,,,,,5000374498,,Additional Better Care Fund element,HA1 2UZ,"302,306.00",Yes
Communities & Local Government,DCLG,15/06/2017,Current (non AEF) Grants to Local Authorities,Local Government & Public Services,HARROW LB,,,,,5000374499,,Adult Social Care Support Grant,HA1 2UZ,"81,177.00",Yes
Communities & Local Government,DCLG,15/06/2017,Current (non AEF) Grants to Local Authorities,Local Government & Public Services,HARROW LB,,,,,5000374797,,Lead Local Flood Authority Grant,HA1 2UZ,"12,876.00",Yes
Communities & Local Government,DCLG,15/06/2017,Current (non AEF) Grants to Local Authorities,Local Government & Public Services,HARTLEPOOL BOROUGH COUNCIL,,,,424291797,5000374500,,Additional Better Care Fund element,TS24 8AY,"192,789.00",Yes
Communities & Local Government,DCLG,15/06/2017,Current (non AEF) Grants to Local Authorities,Local Government & Public Services,HARTLEPOOL BOROUGH COUNCIL,,,,424291797,5000374501,,Adult Social Care Support Grant,TS24 8AY,"41,946.00",Yes
Communities & Local Government,DCLG,15/06/2017,Current (non AEF) Grants to Local Authorities,Local Government & Public Services,HARTLEPOOL BOROUGH COUNCIL,,,,424291797,5000374502,,Improved Better Care Fund,TS24 8AY,"32,857.00",Yes
Communities & Local Government,DCLG,15/06/2017,Current (non AEF) Grants to Local Authorities,Local Government & Public Services,HARTLEPOOL BOROUGH COUNCIL,,,,424291797,5000374798,,Lead Local Flood Authority Grant,TS24 8AY,"4,932.00",Yes
Communities & Local Government,DCLG,15/06/2017,Current (non AEF) Grants to Local Authorities,Local Government & Public Services,HAVERING LB,,,,211209770,5000374503,,Additional Better Care Fund element,RM1 3BB,"313,396.00",Yes
Communities & Local Government,DCLG,15/06/2017,Current (non AEF) Grants to Local Authorities,Local Government & Public Services,HAVERING LB,,,,211209770,5000374504,,Adult Social Care Support Grant,RM1 3BB,"84,178.00",Yes
Communities & Local Government,DCLG,15/06/2017,Current (non AEF) Grants to Local Authorities,Local Government & Public Services,HAVERING LB,,,,211209770,5000374799,,Lead Local Flood Authority Grant,RM1 3BB,"19,351.00",Yes
Communities & Local Government,DCLG,15/06/2017,Current (non AEF) Grants to Local Authorities,Local Government & Public Services,HEREFORDSHIRE COUNCIL,,,,,5000374359,,Additional Better Care Fund element,HR4 0XH,"297,717.00",Yes
Communities & Local Government,DCLG,15/06/2017,Current (non AEF) Grants to Local Authorities,Local Government & Public Services,HEREFORDSHIRE COUNCIL,,,,,5000374360,,Adult Social Care Support Grant,HR4 0XH,"73,709.00",Yes
Communities & Local Government,DCLG,15/06/2017,Current (non AEF) Grants to Local Authorities,Local Government & Public Services,HEREFORDSHIRE COUNCIL,,,,,5000374745,,Lead Local Flood Authority Grant,HR4 0XH,"17,695.00",Yes
Communities & Local Government,DCLG,15/06/2017,Current (non AEF) Grants to Local Authorities,Local Government & Public Services,HERTFORDSHIRE COUNTY CNCL,,,,210659897,5000374505,,Additional Better Care Fund element,SG13 8DQ,"1,089,216.00",Yes
Communities & Local Government,DCLG,15/06/2017,Current (non AEF) Grants to Local Authorities,Local Government & Public Services,HERTFORDSHIRE COUNTY CNCL,,,,210659897,5000374506,,Adult Social Care Support Grant,SG13 8DQ,"346,061.00",Yes
Communities & Local Government,DCLG,15/06/2017,Current (non AEF) Grants to Local Authorities,Local Government & Public Services,HERTFORDSHIRE COUNTY CNCL,,,,210659897,5000374800,,Lead Local Flood Authority Grant,SG13 8DQ,"83,940.00",Yes
Communities & Local Government,DCLG,15/06/2017,Current (non AEF) Grants to Local Authorities,Local Government & Public Services,HILLINGDON LB,,,,211198585,5000374507,,Additional Better Care Fund element,UB8 1UW,"337,835.00",Yes
Communities & Local Government,DCLG,15/06/2017,Current (non AEF) Grants to Local Authorities,Local Government & Public Services,HILLINGDON LB,,,,211198585,5000374508,,Adult Social Care Support Grant,UB8 1UW,"87,144.00",Yes
Communities & Local Government,DCLG,15/06/2017,Current (non AEF) Grants to Local Authorities,Local Government & Public Services,HILLINGDON LB,,,,211198585,5000374801,,Lead Local Flood Authority Grant,UB8 1UW,"14,818.00",Yes
Communities & Local Government,DCLG,15/06/2017,Current (non AEF) Grants to Local Authorities,Local Government & Public Services,HOUNSLOW LB,,Public Bodies,,210388999,5000374509,,Additional Better Care Fund element,TW3 4DN,"355,297.00",Yes
Communities & Local Government,DCLG,15/06/2017,Current (non AEF) Grants to Local Authorities,Local Government & Public Services,HOUNSLOW LB,,Public Bodies,,210388999,5000374510,,Adult Social Care Support Grant,TW3 4DN,"83,648.00",Yes
Communities & Local Government,DCLG,15/06/2017,Current (non AEF) Grants to Local Authorities,Local Government & Public Services,HOUNSLOW LB,,Public Bodies,,210388999,5000374511,,Improved Better Care Fund,TW3 4DN,"9,519.00",Yes
Communities & Local Government,DCLG,15/06/2017,Current (non AEF) Grants to Local Authorities,Local Government & Public Services,HOUNSLOW LB,,Public Bodies,,210388999,5000374802,,Lead Local Flood Authority Grant,TW3 4DN,"18,316.00",Yes
Communities & Local Government,DCLG,15/06/2017,Current (non AEF) Grants to Local Authorities,Local Government & Public Services,HULL CITY COUNCIL,,,,217460984,5000374526,,Additional Better Care Fund element,HU1 2AA,"591,075.00",Yes
Communities & Local Government,DCLG,15/06/2017,Current (non AEF) Grants to Local Authorities,Local Government & Public Services,HULL CITY COUNCIL,,,,217460984,5000374527,,Adult Social Care Support Grant,HU1 2AA,"121,615.00",Yes
Communities & Local Government,DCLG,15/06/2017,Current (non AEF) Grants to Local Authorities,Local Government & Public Services,HULL CITY COUNCIL,,,,217460984,5000374528,,Improved Better Care Fund,HU1 2AA,"156,919.00",Yes
Communities & Local Government,DCLG,15/06/2017,Current (non AEF) Grants to Local Authorities,Local Government & Public Services,HULL CITY COUNCIL,,,,217460984,5000374808,,Lead Local Flood Authority Grant,HU1 2AA,"71,908.00",Yes
Communities & Local Government,DCLG,15/06/2017,Current (non AEF) Grants to Local Authorities,Local Government & Public Services,ISLE OF WIGHT CNCL,,,,236431730,5000374512,,Additional Better Care Fund element,PO30 1UD,"271,170.00",Yes
Communities & Local Government,DCLG,15/06/2017,Current (non AEF) Grants to Local Authorities,Local Government & Public Services,ISLE OF WIGHT CNCL,,,,236431730,5000374513,,Adult Social Care Support Grant,PO30 1UD,"64,150.00",Yes
Communities & Local Government,DCLG,15/06/2017,Current (non AEF) Grants to Local Authorities,Local Government & Public Services,ISLE OF WIGHT CNCL,,,,236431730,5000374514,,Improved Better Care Fund,PO30 1UD,"4,776.00",Yes
Communities & Local Government,DCLG,15/06/2017,Current (non AEF) Grants to Local Authorities,Local Government & Public Services,ISLE OF WIGHT CNCL,,,,236431730,5000374803,,Lead Local Flood Authority Grant,PO30 1UD,"9,101.00",Yes
Communities & Local Government,DCLG,15/06/2017,Current (non AEF) Grants to Local Authorities,Local Government & Public Services,ISLES OF SCILLY COUNCIL,,,,214146040,5000374515,,Additional Better Care Fund element,TR21 0LW,"3,616.00",Yes
Communities & Local Government,DCLG,15/06/2017,Current (non AEF) Grants to Local Authorities,Local Government & Public Services,ISLES OF SCILLY COUNCIL,,,,214146040,5000374516,,Adult Social Care Support Grant,TR21 0LW,"1,060.00",Yes
Communities & Local Government,DCLG,15/06/2017,Current (non AEF) Grants to Local Authorities,Local Government & Public Services,ISLES OF SCILLY COUNCIL,,,,214146040,5000374804,,Lead Local Flood Authority Grant,TR21 0LW,"1,708.00",Yes
Communities & Local Government,DCLG,15/06/2017,Current (non AEF) Grants to Local Authorities,Local Government & Public Services,ISLINGTON LB,,,,225716729,5000374517,,Additional Better Care Fund element,N1 1XR,"505,852.00",Yes
Communities & Local Government,DCLG,15/06/2017,Current (non AEF) Grants to Local Authorities,Local Government & Public Services,ISLINGTON LB,,,,225716729,5000374518,,Adult Social Care Support Grant,N1 1XR,"107,632.00",Yes
Communities & Local Government,DCLG,15/06/2017,Current (non AEF) Grants to Local Authorities,Local Government & Public Services,ISLINGTON LB,,,,225716729,5000374519,,Improved Better Care Fund,N1 1XR,"105,725.00",Yes
Communities & Local Government,DCLG,15/06/2017,Current (non AEF) Grants to Local Authorities,Local Government & Public Services,ISLINGTON LB,,,,225716729,5000374805,,Lead Local Flood Authority Grant,N1 1XR,"20,853.00",Yes
Communities & Local Government,DCLG,15/06/2017,Current (non AEF) Grants to Local Authorities,Local Government & Public Services,KENT COUNTY CNCL,,,,211334420,5000374523,,Additional Better Care Fund element,ME14 1RF,"2,174,145.00",Yes
Communities & Local Government,DCLG,15/06/2017,Current (non AEF) Grants to Local Authorities,Local Government & Public Services,KENT COUNTY CNCL,,,,211334420,5000374524,,Adult Social Care Support Grant,ME14 1RF,"515,978.00",Yes
Communities & Local Government,DCLG,15/06/2017,Current (non AEF) Grants to Local Authorities,Local Government & Public Services,KENT COUNTY CNCL,,,,211334420,5000374525,,Improved Better Care Fund,ME14 1RF,"25,101.00",Yes
Communities & Local Government,DCLG,15/06/2017,Current (non AEF) Grants to Local Authorities,Local Government & Public Services,KENT COUNTY CNCL,,,,211334420,5000374807,,Lead Local Flood Authority Grant,ME14 1RF,"120,228.00",Yes
Communities & Local Government,DCLG,15/06/2017,Current (non AEF) Grants to Local Authorities,Local Government & Public Services,KINGSTON UPON THAMES  (HSG),,,,211379941,5000374361,,Additional Better Care Fund element,KT1 1EU,"98,162.00",Yes
Communities & Local Government,DCLG,15/06/2017,Current (non AEF) Grants to Local Authorities,Local Government & Public Services,KINGSTON UPON THAMES  (HSG),,,,211379941,5000374362,,Adult Social Care Support Grant,KT1 1EU,"47,976.00",Yes
Communities & Local Government,DCLG,15/06/2017,Current (non AEF) Grants to Local Authorities,Local Government & Public Services,KINGSTON UPON THAMES  (HSG),,,,211379941,5000374746,,Lead Local Flood Authority Grant,KT1 1EU,"9,502.00",Yes
Communities & Local Government,DCLG,15/06/2017,Current (non AEF) Grants to Local Authorities,Local Government & Public Services,KIRKLEES COUNCIL (HSG),,Large,,,5000374363,,Additional Better Care Fund element,HD1 2YU,"688,204.00",Yes
Communities & Local Government,DCLG,15/06/2017,Current (non AEF) Grants to Local Authorities,Local Government & Public Services,KIRKLEES COUNCIL (HSG),,Large,,,5000374364,,Adult Social Care Support Grant,HD1 2YU,"155,676.00",Yes
Communities & Local Government,DCLG,15/06/2017,Current (non AEF) Grants to Local Authorities,Local Government & Public Services,KIRKLEES COUNCIL (HSG),,Large,,,5000374365,,Improved Better Care Fund,HD1 2YU,"69,483.00",Yes
Communities & Local Government,DCLG,15/06/2017,Current (non AEF) Grants to Local Authorities,Local Government & Public Services,KIRKLEES COUNCIL (HSG),,Large,,,5000374747,,Lead Local Flood Authority Grant,HD1 2YU,"25,028.00",Yes
Communities & Local Government,DCLG,15/06/2017,Current (non AEF) Grants to Local Authorities,Local Government & Public Services,KNOWSLEY MBC,,,,,5000374529,,Additional Better Care Fund element,L36 9YZ,"399,310.00",Yes
Communities & Local Government,DCLG,15/06/2017,Current (non AEF) Grants to Local Authorities,Local Government & Public Services,KNOWSLEY MBC,,,,,5000374530,,Adult Social Care Support Grant,L36 9YZ,"81,782.00",Yes
Communities & Local Government,DCLG,15/06/2017,Current (non AEF) Grants to Local Authorities,Local Government & Public Services,KNOWSLEY MBC,,,,,5000374809,,Lead Local Flood Authority Grant,L36 9YZ,"4,648.00",Yes
Communities & Local Government,DCLG,15/06/2017,Current (non AEF) Grants to Local Authorities,Local Government & Public Services,LANCASHIRE COUNTY CNCL,,,,233136584,5000374534,,Additional Better Care Fund element,PR1 8RD,"2,073,784.00",Yes
Communities & Local Government,DCLG,15/06/2017,Current (non AEF) Grants to Local Authorities,Local Government & Public Services,LANCASHIRE COUNTY CNCL,,,,233136584,5000374535,,Adult Social Care Support Grant,PR1 8RD,"461,882.00",Yes
Communities & Local Government,DCLG,15/06/2017,Current (non AEF) Grants to Local Authorities,Local Government & Public Services,LANCASHIRE COUNTY CNCL,,,,233136584,5000374536,,Improved Better Care Fund,PR1 8RD,"267,461.00",Yes
Communities & Local Government,DCLG,15/06/2017,Current (non AEF) Grants to Local Authorities,Local Government & Public Services,LANCASHIRE COUNTY CNCL,,,,233136584,5000374811,,Lead Local Flood Authority Grant,PR1 8RD,"77,907.00",Yes
Communities & Local Government,DCLG,15/06/2017,Current (non AEF) Grants to Local Authorities,Local Government & Public Services,LEEDS CITY CNCL,,Micro,,,5000374537,,Additional Better Care Fund element,LS1 1JF,"1,225,143.00",Yes
Communities & Local Government,DCLG,15/06/2017,Current (non AEF) Grants to Local Authorities,Local Government & Public Services,LEEDS CITY CNCL,,Micro,,,5000374538,,Adult Social Care Support Grant,LS1 1JF,"277,115.00",Yes
Communities & Local Government,DCLG,15/06/2017,Current (non AEF) Grants to Local Authorities,Local Government & Public Services,LEEDS CITY CNCL,,Micro,,,5000374539,,Improved Better Care Fund,LS1 1JF,"123,854.00",Yes
Communities & Local Government,DCLG,15/06/2017,Current (non AEF) Grants to Local Authorities,Local Government & Public Services,LEEDS CITY CNCL,,Micro,,,5000374812,,Lead Local Flood Authority Grant,LS1 1JF,"31,350.00",Yes
Communities & Local Government,DCLG,15/06/2017,Current (non AEF) Grants to Local Authorities,Local Government & Public Services,LEICESTER CITY CNCL,,,,228219960,5000374366,,Additional Better Care Fund element,LE1 1FZ,"618,290.00",Yes
Communities & Local Government,DCLG,15/06/2017,Current (non AEF) Grants to Local Authorities,Local Government & Public Services,LEICESTER CITY CNCL,,,,228219960,5000374367,,Adult Social Care Support Grant,LE1 1FZ,"131,726.00",Yes
Communities & Local Government,DCLG,15/06/2017,Current (non AEF) Grants to Local Authorities,Local Government & Public Services,LEICESTER CITY CNCL,,,,228219960,5000374368,,Improved Better Care Fund,LE1 1FZ,"127,858.00",Yes
Communities & Local Government,DCLG,15/06/2017,Current (non AEF) Grants to Local Authorities,Local Government & Public Services,LEICESTER CITY CNCL,,,,228219960,5000374748,,Lead Local Flood Authority Grant,LE1 1FZ,"24,578.00",Yes
Communities & Local Government,DCLG,15/06/2017,Current (non AEF) Grants to Local Authorities,Local Government & Public Services,LEICESTERSHIRE COUNTY CNCL,,,,423679836,5000374540,,Additional Better Care Fund element,LE3 8RB,"793,766.00",Yes
Communities & Local Government,DCLG,15/06/2017,Current (non AEF) Grants to Local Authorities,Local Government & Public Services,LEICESTERSHIRE COUNTY CNCL,,,,423679836,5000374541,,Adult Social Care Support Grant,LE3 8RB,"202,078.00",Yes
Communities & Local Government,DCLG,15/06/2017,Current (non AEF) Grants to Local Authorities,Local Government & Public Services,LEICESTERSHIRE COUNTY CNCL,,,,423679836,5000374813,,Lead Local Flood Authority Grant,LE3 8RB,"37,811.00",Yes
Communities & Local Government,DCLG,15/06/2017,Current (non AEF) Grants to Local Authorities,Local Government & Public Services,LEWISHAM LB (HSG),,Large,,235653300,5000374369,,Additional Better Care Fund element,SE6 4RU,"532,041.00",Yes
Communities & Local Government,DCLG,15/06/2017,Current (non AEF) Grants to Local Authorities,Local Government & Public Services,LEWISHAM LB (HSG),,Large,,235653300,5000374370,,Adult Social Care Support Grant,SE6 4RU,"114,495.00",Yes
Communities & Local Government,DCLG,15/06/2017,Current (non AEF) Grants to Local Authorities,Local Government & Public Services,LEWISHAM LB (HSG),,Large,,235653300,5000374371,,Improved Better Care Fund,SE6 4RU,"100,819.00",Yes
Communities & Local Government,DCLG,15/06/2017,Current (non AEF) Grants to Local Authorities,Local Government & Public Services,LEWISHAM LB (HSG),,Large,,235653300,5000374749,,Lead Local Flood Authority Grant,SE6 4RU,"29,107.00",Yes
Communities & Local Government,DCLG,15/06/2017,Current (non AEF) Grants to Local Authorities,Local Government & Public Services,LINCOLNSHIRE COUNTY COUNCIL,,,,,5000374542,,Additional Better Care Fund element,LN2 1DY,"1,272,082.00",Yes
Communities & Local Government,DCLG,15/06/2017,Current (non AEF) Grants to Local Authorities,Local Government & Public Services,LINCOLNSHIRE COUNTY COUNCIL,,,,,5000374543,,Adult Social Care Support Grant,LN2 1DY,"281,905.00",Yes
Communities & Local Government,DCLG,15/06/2017,Current (non AEF) Grants to Local Authorities,Local Government & Public Services,LINCOLNSHIRE COUNTY COUNCIL,,,,,5000374544,,Improved Better Care Fund,LN2 1DY,"175,470.00",Yes
Communities & Local Government,DCLG,15/06/2017,Current (non AEF) Grants to Local Authorities,Local Government & Public Services,LINCOLNSHIRE COUNTY COUNCIL,,,,,5000374814,,Lead Local Flood Authority Grant,LN2 1DY,"110,679.00",Yes
Communities & Local Government,DCLG,15/06/2017,Current (non AEF) Grants to Local Authorities,Local Government & Public Services,LIVERPOOL CITY COUNCIL,,,,,5000374545,,Additional Better Care Fund element,L2 2DH,"1,199,265.00",Yes
Communities & Local Government,DCLG,15/06/2017,Current (non AEF) Grants to Local Authorities,Local Government & Public Services,LIVERPOOL CITY COUNCIL,,,,,5000374546,,Adult Social Care Support Grant,L2 2DH,"247,517.00",Yes
Communities & Local Government,DCLG,15/06/2017,Current (non AEF) Grants to Local Authorities,Local Government & Public Services,LIVERPOOL CITY COUNCIL,,,,,5000374815,,Lead Local Flood Authority Grant,L2 2DH,"17,293.00",Yes
Communities & Local Government,DCLG,15/06/2017,Current (non AEF) Grants to Local Authorities,Local Government & Public Services,LONDON BOROUGH OF BARNET,,,,211049507,5000374398,,Additional Better Care Fund element,NN1 1NP,"447,723.00",Yes
Communities & Local Government,DCLG,15/06/2017,Current (non AEF) Grants to Local Authorities,Local Government & Public Services,LONDON BOROUGH OF BARNET,,,,211049507,5000374399,,Adult Social Care Support Grant,NN1 1NP,"121,159.00",Yes
Communities & Local Government,DCLG,15/06/2017,Current (non AEF) Grants to Local Authorities,Local Government & Public Services,LONDON BOROUGH OF BARNET,,,,211049507,5000374760,,Lead Local Flood Authority Grant,NN1 1NP,"19,521.00",Yes
Communities & Local Government,DCLG,15/06/2017,Current (non AEF) Grants to Local Authorities,Local Government & Public Services,LONDON BOROUGH OF HACKNEY,,,,225221597,5000374487,,Additional Better Care Fund element,E8 4RU,"565,914.00",Yes
Communities & Local Government,DCLG,15/06/2017,Current (non AEF) Grants to Local Authorities,Local Government & Public Services,LONDON BOROUGH OF HACKNEY,,,,225221597,5000374488,,Adult Social Care Support Grant,E8 4RU,"117,602.00",Yes
Communities & Local Government,DCLG,15/06/2017,Current (non AEF) Grants to Local Authorities,Local Government & Public Services,LONDON BOROUGH OF HACKNEY,,,,225221597,5000374489,,Improved Better Care Fund,E8 4RU,"140,874.00",Yes
Communities & Local Government,DCLG,15/06/2017,Current (non AEF) Grants to Local Authorities,Local Government & Public Services,LONDON BOROUGH OF HACKNEY,,,,225221597,5000374793,,Lead Local Flood Authority Grant,E8 4RU,"18,274.00",Yes
Communities & Local Government,DCLG,15/06/2017,Current (non AEF) Grants to Local Authorities,Local Government & Public Services,LONDON BOROUGH OF LAMBETH,,,,228216479,5000374531,,Additional Better Care Fund element,SW2 1RL,"575,092.00",Yes
Communities & Local Government,DCLG,15/06/2017,Current (non AEF) Grants to Local Authorities,Local Government & Public Services,LONDON BOROUGH OF LAMBETH,,,,228216479,5000374532,,Adult Social Care Support Grant,SW2 1RL,"126,300.00",Yes
Communities & Local Government,DCLG,15/06/2017,Current (non AEF) Grants to Local Authorities,Local Government & Public Services,LONDON BOROUGH OF LAMBETH,,,,228216479,5000374533,,Improved Better Care Fund,SW2 1RL,"88,544.00",Yes
Communities & Local Government,DCLG,15/06/2017,Current (non AEF) Grants to Local Authorities,Local Government & Public Services,LONDON BOROUGH OF LAMBETH,,,,228216479,5000374810,,Lead Local Flood Authority Grant,SW2 1RL,"34,770.00",Yes
Communities & Local Government,DCLG,15/06/2017,Current (non AEF) Grants to Local Authorities,Local Government & Public Services,LONDON BOROUGH OF NEWHAM,,,,211381004,5000374560,,Additional Better Care Fund element,E16 2QU,"592,398.00",Yes
Communities & Local Government,DCLG,15/06/2017,Current (non AEF) Grants to Local Authorities,Local Government & Public Services,LONDON BOROUGH OF NEWHAM,,,,211381004,5000374561,,Adult Social Care Support Grant,E16 2QU,"122,910.00",Yes
Communities & Local Government,DCLG,15/06/2017,Current (non AEF) Grants to Local Authorities,Local Government & Public Services,LONDON BOROUGH OF NEWHAM,,,,211381004,5000374562,,Improved Better Care Fund,E16 2QU,"149,045.00",Yes
Communities & Local Government,DCLG,15/06/2017,Current (non AEF) Grants to Local Authorities,Local Government & Public Services,LONDON BOROUGH OF NEWHAM,,,,211381004,5000374821,,Lead Local Flood Authority Grant,E16 2QU,"31,946.00",Yes
Communities & Local Government,DCLG,15/06/2017,Current (non AEF) Grants to Local Authorities,Local Government & Public Services,LONDON BOROUGH OF REDBRIDGE,,,,211341417,5000374598,,Additional Better Care Fund element,IG1 1NN,"406,831.00",Yes
Communities & Local Government,DCLG,15/06/2017,Current (non AEF) Grants to Local Authorities,Local Government & Public Services,LONDON BOROUGH OF REDBRIDGE,,,,211341417,5000374599,,Adult Social Care Support Grant,IG1 1NN,"93,410.00",Yes
Communities & Local Government,DCLG,15/06/2017,Current (non AEF) Grants to Local Authorities,Local Government & Public Services,LONDON BOROUGH OF REDBRIDGE,,,,211341417,5000374600,,Improved Better Care Fund,IG1 1NN,"29,960.00",Yes
Communities & Local Government,DCLG,15/06/2017,Current (non AEF) Grants to Local Authorities,Local Government & Public Services,LONDON BOROUGH OF REDBRIDGE,,,,211341417,5000374835,,Lead Local Flood Authority Grant,IG1 1NN,"12,972.00",Yes
Communities & Local Government,DCLG,15/06/2017,Current (non AEF) Grants to Local Authorities,Local Government & Public Services,LUTON BC,,,,365112155,5000374547,,Additional Better Care Fund element,LU1 2BQ,"292,234.00",Yes
Communities & Local Government,DCLG,15/06/2017,Current (non AEF) Grants to Local Authorities,Local Government & Public Services,LUTON BC,,,,365112155,5000374548,,Adult Social Care Support Grant,LU1 2BQ,"65,968.00",Yes
Communities & Local Government,DCLG,15/06/2017,Current (non AEF) Grants to Local Authorities,Local Government & Public Services,LUTON BC,,,,365112155,5000374549,,Improved Better Care Fund,LU1 2BQ,"30,610.00",Yes
Communities & Local Government,DCLG,15/06/2017,Current (non AEF) Grants to Local Authorities,Local Government & Public Services,LUTON BC,,,,365112155,5000374816,,Lead Local Flood Authority Grant,LU1 2BQ,"12,902.00",Yes
Communities & Local Government,DCLG,15/06/2017,Current (non AEF) Grants to Local Authorities,Local Government & Public Services,MANCHESTER CITY CNCL (HSG),,,,211241393,5000374372,,Additional Better Care Fund element,M60 2JR,"1,076,362.00",Yes
Communities & Local Government,DCLG,15/06/2017,Current (non AEF) Grants to Local Authorities,Local Government & Public Services,MANCHESTER CITY CNCL (HSG),,,,211241393,5000374373,,Adult Social Care Support Grant,M60 2JR,"223,155.00",Yes
Communities & Local Government,DCLG,15/06/2017,Current (non AEF) Grants to Local Authorities,Local Government & Public Services,MANCHESTER CITY CNCL (HSG),,,,211241393,5000374374,,Improved Better Care Fund,M60 2JR,"272,151.00",Yes
Communities & Local Government,DCLG,15/06/2017,Current (non AEF) Grants to Local Authorities,Local Government & Public Services,MANCHESTER CITY CNCL (HSG),,,,211241393,5000374750,,Lead Local Flood Authority Grant,M60 2JR,"21,075.00",Yes
Communities & Local Government,DCLG,15/06/2017,Current (non AEF) Grants to Local Authorities,Local Government & Public Services,MEDWAY TOWNS D C (HSG),,,,,5000374375,,Additional Better Care Fund element,ME4 4TR,"330,179.00",Yes
Communities & Local Government,DCLG,15/06/2017,Current (non AEF) Grants to Local Authorities,Local Government & Public Services,MEDWAY TOWNS D C (HSG),,,,,5000374376,,Adult Social Care Support Grant,ME4 4TR,"83,524.00",Yes
Communities & Local Government,DCLG,15/06/2017,Current (non AEF) Grants to Local Authorities,Local Government & Public Services,MEDWAY TOWNS D C (HSG),,,,,5000374751,,Lead Local Flood Authority Grant,ME4 4TR,"19,170.00",Yes
Communities & Local Government,DCLG,15/06/2017,Current (non AEF) Grants to Local Authorities,Local Government & Public Services,MERTON LB,,,,,5000374550,,Additional Better Care Fund element,SM4 5DX,"228,816.00",Yes
Communities & Local Government,DCLG,15/06/2017,Current (non AEF) Grants to Local Authorities,Local Government & Public Services,MERTON LB,,,,,5000374551,,Adult Social Care Support Grant,SM4 5DX,"62,601.00",Yes
Communities & Local Government,DCLG,15/06/2017,Current (non AEF) Grants to Local Authorities,Local Government & Public Services,MERTON LB,,,,,5000374817,,Lead Local Flood Authority Grant,SM4 5DX,"15,380.00",Yes
Communities & Local Government,DCLG,15/06/2017,Current (non AEF) Grants to Local Authorities,Local Government & Public Services,MIDDLESBROUGH BC,,Large,,,5000374552,,Additional Better Care Fund element,TS1 9GA,"298,223.00",Yes
Communities & Local Government,DCLG,15/06/2017,Current (non AEF) Grants to Local Authorities,Local Government & Public Services,MIDDLESBROUGH BC,,Large,,,5000374553,,Adult Social Care Support Grant,TS1 9GA,"63,441.00",Yes
